Vendor,Category,Amount,Payment Date
1105 Media Inc,Miscellaneous,$99.00 ,9/12/2017
1131 Lockport LLC,Leases and Rentals,"$1,500.00 ",1/13/2017
1131 Lockport LLC,Leases and Rentals,"$1,500.00 ",2/24/2017
1131 Lockport LLC,Leases and Rentals,"$1,500.00 ",3/24/2017
1131 Lockport LLC,Leases and Rentals,"$1,875.00 ",4/28/2017
1131 Lockport LLC,Leases and Rentals,"$1,500.00 ",6/1/2017
1131 Lockport LLC,Leases and Rentals,"$1,875.00 ",7/7/2017
1131 Lockport LLC,Leases and Rentals,"$1,500.00 ",8/8/2017
1131 Lockport LLC,Leases and Rentals,"$1,500.00 ",8/18/2017
1131 Lockport LLC,Leases and Rentals,"$1,875.00 ",9/19/2017
1131 Lockport LLC,Leases and Rentals,"$1,500.00 ",10/24/2017
1131 Lockport LLC,Leases and Rentals,"$1,500.00 ",11/17/2017
1131 Lockport LLC,Leases and Rentals,"$1,875.00 ",12/19/2017
1st Choice Taxi,Purchased Transportation,"$1,597.58 ",1/5/2017
1st Choice Taxi,Purchased Transportation,"$14,920.24 ",1/13/2017
1st Choice Taxi,Purchased Transportation,"$14,588.28 ",2/7/2017
1st Choice Taxi,Purchased Transportation,"$1,280.24 ",2/14/2017
1st Choice Taxi,Purchased Transportation,"$15,506.12 ",3/10/2017
1st Choice Taxi,Purchased Transportation,"$13,860.00 ",4/7/2017
1st Choice Taxi,Purchased Transportation,"$17,066.03 ",5/9/2017
1st Choice Taxi,Purchased Transportation,"$2,910.09 ",5/23/2017
1st Choice Taxi,Purchased Transportation,"$19,152.58 ",6/9/2017
1st Choice Taxi,Purchased Transportation,"$17,103.63 ",7/7/2017
1st Choice Taxi,Purchased Transportation,"$1,372.73 ",7/11/2017
1st Choice Taxi,Purchased Transportation,"$16,441.65 ",8/11/2017
1st Choice Taxi,Purchased Transportation,"$1,887.34 ",9/1/2017
1st Choice Taxi,Purchased Transportation,"$13,079.98 ",9/12/2017
1st Choice Taxi,Purchased Transportation,"$16,904.03 ",10/3/2017
1st Choice Taxi,Purchased Transportation,"$1,383.07 ",10/6/2017
1st Choice Taxi,Purchased Transportation,"$1,466.58 ",11/10/2017
1st Choice Taxi,Purchased Transportation,"$16,783.02 ",11/21/2017
1st Choice Taxi,Purchased Transportation,"$1,100.58 ",12/1/2017
1st Choice Taxi,Purchased Transportation,"$17,757.98 ",12/15/2017
24 Seven Taxi Association,Purchased Transportation,($26.50),10/14/2016
24 Seven Taxi Association,Purchased Transportation,$207.00 ,2/14/2017
24 Seven Taxi Association,Purchased Transportation,$26.50 ,3/24/2017
24 Seven Taxi Association,Purchased Transportation,$333.90 ,5/23/2017
24 Seven Taxi Association,Purchased Transportation,$303.67 ,6/27/2017
24 Seven Taxi Association,Purchased Transportation,$196.00 ,7/25/2017
24 Seven Taxi Association,Purchased Transportation,$410.50 ,11/3/2017
24 Seven Taxi Association,Purchased Transportation,$423.75 ,12/12/2017
303 Taxi,Purchased Transportation,"$23,657.62 ",1/5/2017
303 Taxi,Purchased Transportation,"$30,469.03 ",1/13/2017
303 Taxi,Purchased Transportation,"$8,266.73 ",2/3/2017
303 Taxi,Purchased Transportation,"$29,199.00 ",2/7/2017
303 Taxi,Purchased Transportation,"$21,596.77 ",2/14/2017
303 Taxi,Purchased Transportation,"$53,135.11 ",2/17/2017
303 Taxi,Purchased Transportation,"$111,627.93 ",2/21/2017
303 Taxi,Purchased Transportation,"$92,390.58 ",3/7/2017
303 Taxi,Purchased Transportation,"$61,263.60 ",3/10/2017
303 Taxi,Purchased Transportation,"$124,026.10 ",3/24/2017
303 Taxi,Purchased Transportation,"$172,475.58 ",4/11/2017
303 Taxi,Purchased Transportation,"$336,223.71 ",5/2/2017
303 Taxi,Purchased Transportation,"$39,186.67 ",5/9/2017
303 Taxi,Purchased Transportation,"$33,310.86 ",5/23/2017
303 Taxi,Purchased Transportation,"$30,346.41 ",6/9/2017
303 Taxi,Purchased Transportation,"$60,560.57 ",6/16/2017
303 Taxi,Purchased Transportation,"$641,043.69 ",6/20/2017
303 Taxi,Purchased Transportation,"$144,574.66 ",7/11/2017
303 Taxi,Purchased Transportation,"$322,068.94 ",8/4/2017
303 Taxi,Purchased Transportation,"$458,819.29 ",8/11/2017
303 Taxi,Purchased Transportation,"$78,437.14 ",8/25/2017
303 Taxi,Purchased Transportation,"$135,378.19 ",9/1/2017
303 Taxi,Purchased Transportation,"$34,908.23 ",9/12/2017
303 Taxi,Purchased Transportation,"$10,729.51 ",9/22/2017
303 Taxi,Purchased Transportation,"$175,651.19 ",9/29/2017
303 Taxi,Purchased Transportation,"$34,168.52 ",10/3/2017
303 Taxi,Purchased Transportation,"$36,434.64 ",10/6/2017
303 Taxi,Purchased Transportation,"$8,700.32 ",10/10/2017
303 Taxi,Purchased Transportation,"$63,303.12 ",10/27/2017
303 Taxi,Purchased Transportation,"$115,656.37 ",10/31/2017
303 Taxi,Purchased Transportation,"$52,487.44 ",11/10/2017
303 Taxi,Purchased Transportation,"$39,295.76 ",11/21/2017
303 Taxi,Purchased Transportation,"$259,341.39 ",12/1/2017
303 Taxi,Purchased Transportation,"$258,392.07 ",12/28/2017
4One LLC,Fuel/Parts Inventory,$738.40 ,5/2/2017
4One LLC,Fuel/Parts Inventory,"$13,734.80 ",6/1/2017
4One LLC,Fuel/Parts Inventory,"$8,401.60 ",6/27/2017
4One LLC,Fuel/Parts Inventory,"$1,177.90 ",8/15/2017
5301-5303 N Milwaukee Avenue LLC,Land,"$3,975.00 ",5/12/2017
A Horn Inc,Services,"$2,150.00 ",1/20/2017
A Horn Inc,Services,"$6,450.00 ",12/12/2017
A P Private Detective,Services,"$12,718.54 ",1/5/2017
A P Private Detective,Services,"$13,611.04 ",1/27/2017
A Quality Board Up  & Emergency Services Inc,Services,$390.00 ,2/14/2017
A&A Auto Parts Store Inc,Fuel/Parts Inventory,"$7,881.60 ",1/17/2017
A&A Auto Parts Store Inc,Fuel/Parts Inventory,"$1,107.64 ",3/14/2017
A&A Auto Parts Store Inc,Fuel/Parts Inventory,$795.88 ,3/24/2017
A&A Auto Parts Store Inc,Fuel/Parts Inventory,"$1,280.00 ",4/28/2017
A&A Auto Parts Store Inc,Fuel/Parts Inventory,$107.76 ,7/28/2017
A&A Auto Parts Store Inc,Fuel/Parts Inventory,$107.76 ,8/11/2017
A&A Auto Parts Store Inc,Fuel/Parts Inventory,$98.78 ,8/18/2017
A&A Auto Parts Store Inc,Fuel/Parts Inventory,"$2,833.20 ",9/1/2017
A&A Auto Parts Store Inc,Fuel/Parts Inventory,$215.52 ,9/7/2017
A&A Auto Parts Store Inc,Fuel/Parts Inventory,$323.28 ,11/14/2017
A&A Auto Parts Store Inc,Fuel/Parts Inventory,$269.40 ,12/1/2017
A&A Auto Parts Store Inc,Fuel/Parts Inventory,$161.64 ,12/12/2017
A&A Auto Parts Store Inc,Fuel/Parts Inventory,$107.76 ,12/22/2017
A-Adams School of Driving,Services,"$5,833.96 ",1/10/2017
A-Adams School of Driving,Services,"$4,553.60 ",1/13/2017
A-Adams School of Driving,Services,"$3,474.00 ",2/14/2017
A-Adams School of Driving,Services,"$3,233.82 ",3/10/2017
A-Adams School of Driving,Services,"$4,851.38 ",4/14/2017
A-Adams School of Driving,Services,"$4,709.34 ",5/23/2017
A-Adams School of Driving,Services,"$4,215.84 ",6/13/2017
A-Adams School of Driving,Services,"$3,099.38 ",7/21/2017
A-Adams School of Driving,Services,"$4,676.56 ",8/4/2017
A-Adams School of Driving,Services,"$3,292.38 ",9/7/2017
A-Adams School of Driving,Services,"$3,457.14 ",10/10/2017
A-Adams School of Driving,Services,"$6,127.64 ",11/7/2017
A-Adams School of Driving,Services,"$3,710.90 ",12/15/2017
ABC Humane Wildlife Control & Prevention Inc,Miscellaneous,$70.00 ,1/17/2017
ABC Humane Wildlife Control & Prevention Inc,Services,$714.00 ,1/17/2017
ABC Humane Wildlife Control & Prevention Inc,Services,$817.00 ,1/20/2017
ABC Humane Wildlife Control & Prevention Inc,Services,$70.00 ,1/27/2017
ABC Humane Wildlife Control & Prevention Inc,Services,"$1,114.00 ",2/17/2017
ABC Humane Wildlife Control & Prevention Inc,Services,$175.00 ,2/21/2017
ABC Humane Wildlife Control & Prevention Inc,Services,$184.00 ,2/24/2017
ABC Humane Wildlife Control & Prevention Inc,Services,$70.00 ,3/3/2017
ABC Humane Wildlife Control & Prevention Inc,Services,$851.00 ,3/28/2017
ABC Humane Wildlife Control & Prevention Inc,Services,$550.00 ,3/31/2017
ABC Humane Wildlife Control & Prevention Inc,Services,$70.00 ,4/4/2017
ABC Humane Wildlife Control & Prevention Inc,Services,$130.00 ,4/25/2017
ABC Humane Wildlife Control & Prevention Inc,Miscellaneous,$70.00 ,4/28/2017
ABC Humane Wildlife Control & Prevention Inc,Services,$850.00 ,4/28/2017
ABC Humane Wildlife Control & Prevention Inc,Services,$485.00 ,5/5/2017
ABC Humane Wildlife Control & Prevention Inc,Services,"$1,281.00 ",5/19/2017
ABC Humane Wildlife Control & Prevention Inc,Services,$204.00 ,5/26/2017
ABC Humane Wildlife Control & Prevention Inc,Services,$269.00 ,6/1/2017
ABC Humane Wildlife Control & Prevention Inc,Miscellaneous,$70.00 ,6/23/2017
ABC Humane Wildlife Control & Prevention Inc,Services,"$1,087.00 ",6/23/2017
ABC Humane Wildlife Control & Prevention Inc,Services,$206.00 ,6/27/2017
ABC Humane Wildlife Control & Prevention Inc,Services,$105.00 ,6/30/2017
ABC Humane Wildlife Control & Prevention Inc,Services,$437.00 ,7/18/2017
ABC Humane Wildlife Control & Prevention Inc,Services,$639.00 ,7/21/2017
ABC Humane Wildlife Control & Prevention Inc,Services,$383.00 ,7/28/2017
ABC Humane Wildlife Control & Prevention Inc,Services,$923.00 ,8/22/2017
ABC Humane Wildlife Control & Prevention Inc,Services,$562.00 ,8/29/2017
ABC Humane Wildlife Control & Prevention Inc,Services,$395.00 ,9/1/2017
ABC Humane Wildlife Control & Prevention Inc,Services,$70.00 ,9/12/2017
ABC Humane Wildlife Control & Prevention Inc,Services,"$1,137.00 ",9/15/2017
ABC Humane Wildlife Control & Prevention Inc,Services,$338.00 ,9/22/2017
ABC Humane Wildlife Control & Prevention Inc,Miscellaneous,$70.00 ,10/27/2017
ABC Humane Wildlife Control & Prevention Inc,Services,"$1,919.00 ",10/27/2017
ABC Humane Wildlife Control & Prevention Inc,Services,$262.00 ,10/31/2017
ABC Humane Wildlife Control & Prevention Inc,Services,$488.00 ,11/28/2017
ABC Humane Wildlife Control & Prevention Inc,Services,"$1,329.00 ",12/1/2017
ABC Humane Wildlife Control & Prevention Inc,Services,$280.00 ,12/5/2017
ABC Humane Wildlife Control & Prevention Inc,Miscellaneous,$70.00 ,12/8/2017
ABC Humane Wildlife Control & Prevention Inc,Services,$132.00 ,12/8/2017
ABC Humane Wildlife Control & Prevention Inc,Services,$70.00 ,12/12/2017
ABC Humane Wildlife Control & Prevention Inc,Materials and Supplies,"$2,070.00 ",12/15/2017
ABC Humane Wildlife Control & Prevention Inc,Services,$356.00 ,12/22/2017
ABS Associates Inc,Services,$387.50 ,2/17/2017
Abt Associates Inc,Operating,"$14,989.00 ",10/6/2017
ABT Television & Appliance Co,Materials and Supplies,$896.00 ,8/4/2017
Accurate Office Supply,Materials and Supplies,$114.20 ,3/24/2017
Accurate Office Supply,Materials and Supplies,$550.00 ,8/1/2017
Accurate Tank Technologies,Services,$672.50 ,1/20/2017
Accurate Tank Technologies,Building/Bldg Improvement,"$44,600.00 ",1/27/2017
Accurate Tank Technologies,Services,"$1,022.00 ",11/10/2017
Accurate Tank Technologies,Services,$596.00 ,12/5/2017
Accurate Tank Technologies,Services,$588.00 ,12/12/2017
Ace Coffee Bar Inc,Materials and Supplies,"$1,004.68 ",1/5/2017
Ace Coffee Bar Inc,Materials and Supplies,$509.80 ,1/13/2017
Ace Coffee Bar Inc,Materials and Supplies,$460.36 ,1/20/2017
Ace Coffee Bar Inc,Materials and Supplies,$872.20 ,1/27/2017
Ace Coffee Bar Inc,Miscellaneous,$223.70 ,1/27/2017
Ace Coffee Bar Inc,Materials and Supplies,$719.40 ,2/14/2017
Ace Coffee Bar Inc,Miscellaneous,$258.95 ,2/17/2017
Ace Coffee Bar Inc,Materials and Supplies,$569.80 ,3/3/2017
Ace Coffee Bar Inc,Services,$336.70 ,3/3/2017
Ace Coffee Bar Inc,Miscellaneous,$21.00 ,3/17/2017
Ace Coffee Bar Inc,Materials and Supplies,$422.40 ,3/28/2017
Ace Coffee Bar Inc,Materials and Supplies,$369.80 ,4/28/2017
Ace Coffee Bar Inc,Materials and Supplies,$272.50 ,5/12/2017
Ace Coffee Bar Inc,Materials and Supplies,$259.70 ,5/26/2017
Ace Coffee Bar Inc,Services,$188.80 ,7/7/2017
Ace Coffee Bar Inc,Materials and Supplies,$281.60 ,8/4/2017
Ace Coffee Bar Inc,Materials and Supplies,$369.80 ,8/11/2017
Ace Coffee Bar Inc,Services,$213.80 ,8/18/2017
Ace Coffee Bar Inc,Materials and Supplies,"$1,082.20 ",8/29/2017
Ace Coffee Bar Inc,Materials and Supplies,$564.80 ,9/7/2017
Ace Coffee Bar Inc,Materials and Supplies,$332.60 ,9/12/2017
Ace Coffee Bar Inc,Materials and Supplies,$260.82 ,9/29/2017
Ace Coffee Bar Inc,Materials and Supplies,$319.60 ,10/10/2017
Ace Coffee Bar Inc,Services,$189.90 ,11/7/2017
Ace Coffee Bar Inc,Materials and Supplies,$377.00 ,11/28/2017
Ace Coffee Bar Inc,Materials and Supplies,$598.78 ,12/1/2017
Ace Coffee Bar Inc,Services,$350.60 ,12/15/2017
Ace Coffee Bar Inc,Materials and Supplies,"$1,251.92 ",12/19/2017
Acme Truck Brake & Supply Co,Fuel/Parts Inventory,$109.01 ,5/23/2017
Acme Truck Brake & Supply Co,Fuel/Parts Inventory,$545.05 ,6/20/2017
Acme Truck Brake & Supply Co,Fuel/Parts Inventory,$426.32 ,9/1/2017
Acme Truck Brake & Supply Co,Fuel/Parts Inventory,$163.46 ,10/6/2017
Acme Truck Brake & Supply Co,Fuel/Parts Inventory,$225.00 ,10/27/2017
Acme Truck Brake & Supply Co,Fuel/Parts Inventory,"$1,608.26 ",11/7/2017
Acme Truck Brake & Supply Co,Fuel/Parts Inventory,"$1,396.50 ",11/10/2017
Action Fire Equipment Inc,Services,$155.00 ,3/21/2017
Action Fire Equipment Inc,Services,$20.00 ,4/14/2017
Adager Corporation,Services,"$2,999.00 ",1/17/2017
Adams & Westlake LTD,Services,"$3,063.00 ",1/27/2017
Advance Auto Parts,Materials and Supplies,$145.06 ,7/25/2017
Advance Auto Parts,Materials and Supplies,$176.30 ,8/1/2017
Advance Auto Parts,Materials and Supplies,$22.34 ,8/11/2017
Advance Auto Parts,Materials and Supplies,$127.45 ,9/7/2017
Advance Auto Parts,Materials and Supplies,$874.28 ,9/12/2017
Advance Auto Parts,Materials and Supplies,$172.96 ,9/22/2017
Advance Auto Parts,Materials and Supplies,$174.89 ,10/6/2017
Advance Auto Parts,Materials and Supplies,$362.54 ,10/13/2017
Advance Auto Parts,Materials and Supplies,$230.84 ,10/17/2017
Advance Auto Parts,Materials and Supplies,$175.58 ,10/27/2017
Advance Auto Parts,Materials and Supplies,$564.57 ,11/7/2017
Advance Auto Parts,Materials and Supplies,$76.85 ,11/10/2017
Advance Auto Parts,Materials and Supplies,$344.52 ,11/28/2017
Advance Auto Parts,Materials and Supplies,$422.22 ,12/5/2017
Advance Auto Parts,Materials and Supplies,$547.59 ,12/19/2017
Advanced Disposal Services Solid Waste Midwest LLC,Services,$364.25 ,1/10/2017
Advanced Disposal Services Solid Waste Midwest LLC,Services,$386.00 ,1/13/2017
Advanced Disposal Services Solid Waste Midwest LLC,Services,$254.00 ,1/24/2017
Advanced Disposal Services Solid Waste Midwest LLC,Services,$386.00 ,1/27/2017
Advanced Disposal Services Solid Waste Midwest LLC,Services,$220.50 ,2/28/2017
Advanced Disposal Services Solid Waste Midwest LLC,Services,$399.00 ,3/3/2017
Advanced Disposal Services Solid Waste Midwest LLC,Services,$733.00 ,3/7/2017
Advanced Disposal Services Solid Waste Midwest LLC,Services,$254.00 ,3/10/2017
Advanced Disposal Services Solid Waste Midwest LLC,Services,$733.00 ,3/31/2017
Advanced Disposal Services Solid Waste Midwest LLC,Services,$399.00 ,4/4/2017
Advanced Disposal Services Solid Waste Midwest LLC,Services,$252.00 ,4/14/2017
Advanced Disposal Services Solid Waste Midwest LLC,Services,$254.00 ,4/21/2017
Advanced Disposal Services Solid Waste Midwest LLC,Services,$110.25 ,4/28/2017
Advanced Disposal Services Solid Waste Midwest LLC,Services,$364.25 ,5/9/2017
Advanced Disposal Services Solid Waste Midwest LLC,Services,"$1,132.00 ",5/12/2017
Advanced Disposal Services Solid Waste Midwest LLC,Services,$859.78 ,5/23/2017
Advanced Disposal Services Solid Waste Midwest LLC,Services,$319.00 ,5/26/2017
Advanced Disposal Services Solid Waste Midwest LLC,Services,$399.00 ,6/1/2017
Advanced Disposal Services Solid Waste Midwest LLC,Services,"$1,116.87 ",6/16/2017
Advanced Disposal Services Solid Waste Midwest LLC,Services,$399.00 ,6/20/2017
Advanced Disposal Services Solid Waste Midwest LLC,Services,$147.00 ,6/23/2017
Advanced Disposal Services Solid Waste Midwest LLC,Services,$64.00 ,7/21/2017
Advanced Disposal Services Solid Waste Midwest LLC,Services,$399.00 ,7/25/2017
Advanced Disposal Services Solid Waste Midwest LLC,Services,"$1,000.00 ",7/28/2017
Advanced Disposal Services Solid Waste Midwest LLC,Services,$231.52 ,8/22/2017
Advanced Disposal Services Solid Waste Midwest LLC,Services,$64.00 ,9/1/2017
Advanced Disposal Services Solid Waste Midwest LLC,Services,$733.00 ,9/7/2017
Advanced Disposal Services Solid Waste Midwest LLC,Services,$666.00 ,9/12/2017
Advanced Disposal Services Solid Waste Midwest LLC,Services,$331.00 ,9/22/2017
Advanced Disposal Services Solid Waste Midwest LLC,Services,$399.00 ,9/29/2017
Advanced Disposal Services Solid Waste Midwest LLC,Services,$848.76 ,10/10/2017
Advanced Disposal Services Solid Waste Midwest LLC,Services,$115.76 ,11/7/2017
Advanced Disposal Services Solid Waste Midwest LLC,Services,"$1,064.00 ",11/10/2017
Advanced Disposal Services Solid Waste Midwest LLC,Services,$399.00 ,11/17/2017
Advanced Disposal Services Solid Waste Midwest LLC,Services,$64.00 ,12/1/2017
Advanced Disposal Services Solid Waste Midwest LLC,Services,"$1,115.76 ",12/5/2017
Advanced Disposal Services Solid Waste Midwest LLC,Services,$399.00 ,12/8/2017
Advanced Disposal Services Solid Waste Midwest LLC,Services,"$1,000.00 ",12/28/2017
Advantage Marketing Group Ltd,Materials and Supplies,$153.75 ,1/13/2017
Advantage Marketing Group Ltd,Services,$563.75 ,1/13/2017
Advantage Marketing Group Ltd,Materials and Supplies,$151.41 ,1/31/2017
Advantage Marketing Group Ltd,Services,$549.32 ,1/31/2017
Advantage Marketing Group Ltd,Materials and Supplies,$153.39 ,3/14/2017
Advantage Marketing Group Ltd,Services,$584.53 ,3/14/2017
Advantage Marketing Group Ltd,Materials and Supplies,$176.12 ,4/4/2017
Advantage Marketing Group Ltd,Services,$561.52 ,4/4/2017
Advantage Marketing Group Ltd,Materials and Supplies,$144.34 ,5/5/2017
Advantage Marketing Group Ltd,Services,$526.31 ,5/5/2017
Advantage Marketing Group Ltd,Materials and Supplies,$152.29 ,6/13/2017
Advantage Marketing Group Ltd,Services,$577.49 ,6/13/2017
Advantage Marketing Group Ltd,Materials and Supplies,$148.35 ,7/21/2017
Advantage Marketing Group Ltd,Services,$552.13 ,7/21/2017
Advantage Marketing Group Ltd,Materials and Supplies,$149.16 ,8/4/2017
Advantage Marketing Group Ltd,Services,$557.30 ,8/4/2017
Advantage Marketing Group Ltd,Materials and Supplies,$146.16 ,9/7/2017
Advantage Marketing Group Ltd,Services,$538.05 ,9/7/2017
Advantage Marketing Group Ltd,Services,$678.24 ,10/13/2017
Advantage Marketing Group Ltd,Materials and Supplies,$144.41 ,11/28/2017
Advantage Marketing Group Ltd,Services,$526.78 ,11/28/2017
Advantage Marketing Group Ltd,Materials and Supplies,$143.32 ,12/8/2017
Advantage Marketing Group Ltd,Services,$519.74 ,12/8/2017
Advantage Trailers & Hitches,Services,$64.74 ,2/3/2017
Advantage Trailers & Hitches,Services,$157.90 ,5/12/2017
Adventus,Miscellaneous,$698.15 ,3/21/2017
Advocate,Services,$538.00 ,1/5/2017
Advocate,Services,$469.00 ,1/17/2017
Advocate,Services,"$5,154.00 ",1/24/2017
Advocate,Services,$42.00 ,1/27/2017
Advocate,Services,"$1,025.00 ",1/31/2017
Advocate,Services,$488.00 ,2/10/2017
Advocate,Services,"$2,381.00 ",2/17/2017
Advocate,Services,$614.00 ,2/24/2017
Advocate,Services,$277.00 ,3/10/2017
Advocate,Services,"$2,941.50 ",3/14/2017
Advocate,Services,"$1,382.25 ",3/24/2017
Advocate,Services,$96.00 ,3/31/2017
Advocate,Services,"$5,632.00 ",4/4/2017
Advocate,Services,$647.00 ,4/7/2017
Advocate,Services,$603.00 ,4/21/2017
Advocate,Services,"$2,095.50 ",5/5/2017
Advocate,Services,"$2,752.00 ",5/12/2017
Advocate,Services,"$4,628.00 ",5/26/2017
Advocate,Services,"$1,783.25 ",6/1/2017
Advocate,Services,"$1,126.00 ",6/23/2017
Advocate,Services,"$2,639.75 ",6/30/2017
Advocate,Services,"$3,629.00 ",7/7/2017
Advocate,Services,$753.00 ,8/1/2017
Advocate,Services,"$1,810.25 ",8/4/2017
Advocate,Services,$895.00 ,8/8/2017
Advocate,Services,"$4,070.00 ",8/18/2017
Advocate,Services,$553.00 ,8/29/2017
Advocate,Services,"$1,711.00 ",9/1/2017
Advocate,Services,$148.00 ,9/12/2017
Advocate,Services,"$2,357.00 ",9/22/2017
Advocate,Services,"$1,845.25 ",9/26/2017
Advocate,Services,"$2,498.00 ",9/29/2017
Advocate,Services,$589.00 ,10/27/2017
Advocate,Services,"$3,816.00 ",11/3/2017
Advocate,Services,$914.00 ,11/17/2017
Advocate,Services,"$2,116.00 ",12/8/2017
AECOM  Technical Services Inc,Services,"$4,000.00 ",12/8/2017
Aetna Truck Parts Inc,Materials and Supplies,"$10,150.00 ",8/11/2017
Aetna Truck Parts Inc,Materials and Supplies,"$5,075.00 ",8/18/2017
Aetna Truck Parts Inc,Materials and Supplies,"$2,709.95 ",10/13/2017
Ahead Of Our Time Publishing,Miscellaneous,$500.00 ,8/4/2017
AICPA - American Institute of CPAs,Miscellaneous,"$1,685.00 ",7/7/2017
AICPA - American Institute of CPAs,Miscellaneous,$265.00 ,7/21/2017
Airgas Refrigerants Inc,Fuel/Parts Inventory,$433.75 ,1/31/2017
Airgas Refrigerants Inc,Fuel/Parts Inventory,$867.50 ,4/21/2017
Airgas Refrigerants Inc,Materials and Supplies,$200.00 ,4/21/2017
Airgas Refrigerants Inc,Fuel/Parts Inventory,$798.10 ,5/9/2017
Airgas Refrigerants Inc,Materials and Supplies,$400.00 ,5/9/2017
Airgas Refrigerants Inc,Fuel/Parts Inventory,"$2,168.75 ",5/19/2017
Airgas Refrigerants Inc,Fuel/Parts Inventory,"$3,036.25 ",7/11/2017
Airgas Refrigerants Inc,Fuel/Parts Inventory,$433.75 ,7/14/2017
Airgas Refrigerants Inc,Fuel/Parts Inventory,$867.50 ,7/28/2017
Airgas Refrigerants Inc,Fuel/Parts Inventory,$433.75 ,8/1/2017
Airgas Refrigerants Inc,Fuel/Parts Inventory,$399.05 ,8/11/2017
Airgas Refrigerants Inc,Materials and Supplies,$200.00 ,8/11/2017
Airgas Refrigerants Inc,Fuel/Parts Inventory,$523.75 ,8/29/2017
Airgas Refrigerants Inc,Fuel/Parts Inventory,"$2,968.00 ",10/10/2017
Airgas Refrigerants Inc,Materials and Supplies,$88.35 ,10/10/2017
Airgas Refrigerants Inc,Miscellaneous,$400.00 ,10/10/2017
Airgas Refrigerants Inc,Fuel/Parts Inventory,$792.35 ,10/17/2017
Airgas Refrigerants Inc,Materials and Supplies,$200.00 ,10/17/2017
Airgas Refrigerants Inc,Fuel/Parts Inventory,$960.25 ,10/27/2017
Airgas Refrigerants Inc,Miscellaneous,$200.00 ,10/27/2017
Airport Electric Company,Equipment,"$127,716.43 ",1/27/2017
Airport Electric Company,Equipment,"$349,775.64 ",3/17/2017
Airport Electric Company,Equipment,"$125,701.71 ",4/25/2017
Airport Electric Company,Equipment,"$253,675.53 ",7/28/2017
Airstream Pressure Washing Inc,Services,"$4,880.00 ",3/14/2017
Airstream Pressure Washing Inc,Services,"$5,300.00 ",4/28/2017
Airstream Pressure Washing Inc,Services,"$5,240.00 ",6/6/2017
Airstream Pressure Washing Inc,Services,"$2,640.00 ",7/14/2017
Airstream Pressure Washing Inc,Materials and Supplies,"$8,820.00 ",8/4/2017
Airstream Pressure Washing Inc,Services,"$28,180.00 ",12/8/2017
Alarm Detection Systems Of Illinois,Services,$775.57 ,1/5/2017
Alarm Detection Systems Of Illinois,Services,$261.81 ,1/17/2017
Alarm Detection Systems Of Illinois,Services,$435.00 ,2/3/2017
Alarm Detection Systems Of Illinois,Services,$154.50 ,2/28/2017
Alarm Detection Systems Of Illinois,Services,$55.50 ,3/28/2017
Alarm Detection Systems Of Illinois,Services,$435.00 ,3/31/2017
Alarm Detection Systems Of Illinois,Services,$159.00 ,4/4/2017
Alarm Detection Systems Of Illinois,Services,"$1,106.31 ",4/14/2017
Alarm Detection Systems Of Illinois,Services,$55.50 ,7/14/2017
Alarm Detection Systems Of Illinois,Services,$209.40 ,7/18/2017
Alarm Detection Systems Of Illinois,Services,$900.00 ,7/21/2017
Alarm Detection Systems Of Illinois,Services,$444.00 ,8/11/2017
Alarm Detection Systems Of Illinois,Services,$159.00 ,8/18/2017
Alarm Detection Systems Of Illinois,Services,$55.50 ,9/22/2017
Alarm Detection Systems Of Illinois,Services,$209.40 ,9/26/2017
Alarm Detection Systems Of Illinois,Services,$444.00 ,10/3/2017
Alarm Detection Systems Of Illinois,Services,$159.00 ,10/6/2017
Alarm Detection Systems Of Illinois,Services,$900.00 ,10/13/2017
Albin Masonry Inc,Services,"$4,964.00 ",6/23/2017
Alesig Consulting LLC,Services,"$4,800.00 ",9/15/2017
Alga Member Services,Services,$975.00 ,4/14/2017
Alga Member Services,Miscellaneous,$300.00 ,6/23/2017
ALGO LLC,Leases and Rentals,"$18,829.75 ",1/5/2017
ALGO LLC,Leases and Rentals,"$18,829.75 ",1/27/2017
ALGO LLC,Leases and Rentals,"$18,829.75 ",2/24/2017
ALGO LLC,Leases and Rentals,"$18,829.75 ",3/31/2017
ALGO LLC,Leases and Rentals,"$18,829.75 ",4/28/2017
ALGO LLC,Leases and Rentals,"$18,829.75 ",5/26/2017
ALGO LLC,Leases and Rentals,"$18,829.75 ",7/7/2017
ALGO LLC,Leases and Rentals,"$18,829.75 ",7/21/2017
ALGO LLC,Leases and Rentals,"$19,377.33 ",8/22/2017
ALGO LLC,Leases and Rentals,"$19,377.33 ",9/22/2017
ALGO LLC,Leases and Rentals,"$19,377.33 ",10/24/2017
ALGO LLC,Leases and Rentals,"$19,377.33 ",11/28/2017
ALGO LLC,Leases and Rentals,"$19,377.33 ",12/28/2017
Allegro Consultants Inc,Services,$480.00 ,2/28/2017
Alliance Taxi,Purchased Transportation,"$75,018.54 ",1/13/2017
Alliance Taxi,Purchased Transportation,"$66,384.21 ",2/7/2017
Alliance Taxi,Purchased Transportation,"$71,871.05 ",3/7/2017
Alliance Taxi,Purchased Transportation,"$70,805.86 ",4/7/2017
Alliance Taxi,Purchased Transportation,"$81,941.13 ",5/9/2017
Alliance Taxi,Purchased Transportation,"$75,932.62 ",6/9/2017
Alliance Taxi,Purchased Transportation,"$73,846.47 ",7/7/2017
Alliance Taxi,Purchased Transportation,"$74,811.22 ",8/11/2017
Alliance Taxi,Purchased Transportation,"$69,958.42 ",9/12/2017
Alliance Taxi,Purchased Transportation,"$76,620.33 ",10/3/2017
Alliance Taxi,Purchased Transportation,"$79,543.57 ",11/21/2017
Alliance Taxi,Purchased Transportation,"$88,037.59 ",12/15/2017
Alpha Building Maintenance Services Inc,Services,$866.00 ,1/17/2017
Alpha Building Maintenance Services Inc,Services,$866.00 ,2/7/2017
Alpha Building Maintenance Services Inc,Services,$866.00 ,3/17/2017
Alpha Building Maintenance Services Inc,Services,$866.00 ,4/14/2017
Alpha Building Maintenance Services Inc,Services,$866.00 ,5/9/2017
Alpha Building Maintenance Services Inc,Services,$866.00 ,7/7/2017
Alpha Building Maintenance Services Inc,Services,$866.00 ,7/21/2017
Alpha Building Maintenance Services Inc,Services,$866.00 ,9/7/2017
Alpha Building Maintenance Services Inc,Services,$866.00 ,9/22/2017
Alpha Building Maintenance Services Inc,Services,$866.00 ,10/10/2017
Alpha Building Maintenance Services Inc,Services,$866.00 ,11/7/2017
Alvarez Inc,Services,$321.03 ,7/21/2017
Alvarez Inc,Services,$321.03 ,8/18/2017
Alvarez Inc,Services,$321.03 ,9/19/2017
Alvarez Inc,Services,$321.03 ,10/27/2017
Alvarez Inc,Services,$321.03 ,11/10/2017
Alvarez Inc,Services,$321.03 ,12/12/2017
AM Best Company,Miscellaneous,$68.00 ,4/14/2017
AM Best Company,Miscellaneous,$227.50 ,7/14/2017
Amalgamated Services Inc,Services,$250.00 ,6/16/2017
Amalgamated Services Inc,Services,$420.29 ,7/21/2017
Amalgamated Services Inc,Services,$429.47 ,8/18/2017
Amalgamated Services Inc,Services,"$1,160.82 ",8/29/2017
Amalgamated Services Inc,Services,$630.24 ,11/28/2017
AMC Theatres National Sales,Miscellaneous,$9.95 ,2/10/2017
AMC Theatres National Sales,Miscellaneous,$9.95 ,7/28/2017
AMC Theatres National Sales,Miscellaneous,$9.95 ,12/15/2017
American Brake & Clutch Inc,Fuel/Parts Inventory,"$3,465.00 ",10/6/2017
American Brake & Clutch Inc,Fuel/Parts Inventory,"$1,035.00 ",11/28/2017
American Brake & Clutch Inc,Fuel/Parts Inventory,"$3,240.00 ",12/5/2017
American Brake & Clutch Inc,Fuel/Parts Inventory,"$1,711.25 ",12/12/2017
American Institute of CPA's - AICPA,Miscellaneous,$265.00 ,7/14/2017
American Management Assoc,Services,"$3,390.00 ",2/28/2017
American Management Assoc,Miscellaneous,"$2,295.00 ",3/17/2017
American Management Assoc,Services,"$1,695.00 ",3/17/2017
American Management Assoc,Services,"$1,595.00 ",8/18/2017
American Management Assoc,Services,"$1,796.00 ",12/15/2017
American Planning Association,Miscellaneous,$411.00 ,2/24/2017
American Planning Association,Miscellaneous,$306.00 ,3/17/2017
American Planning Association,Miscellaneous,$469.00 ,4/28/2017
American Planning Association,Miscellaneous,$306.00 ,5/2/2017
American Planning Association,Miscellaneous,$431.00 ,5/19/2017
American Planning Association,Miscellaneous,$945.00 ,8/1/2017
American Planning Association,Miscellaneous,$338.00 ,9/1/2017
American Planning Association,Miscellaneous,$473.00 ,11/17/2017
American Public Transportation Assoc - APTA,Miscellaneous,$609.00 ,3/3/2017
American Public Transportation Assoc - APTA,Miscellaneous,$375.00 ,4/14/2017
American Public Works Association,Miscellaneous,$190.00 ,6/13/2017
American Snow Removal Service,Services,"$3,625.00 ",1/24/2017
American Snow Removal Service,Services,$190.00 ,2/14/2017
American Snow Removal Service,Services,$725.00 ,3/3/2017
American Snow Removal Service,Services,"$1,640.00 ",4/14/2017
American Society of Civil Engineers,Miscellaneous,$270.00 ,1/10/2017
American Society of Civil Engineers,Services,$275.00 ,10/6/2017
American Society of Civil Engineers,Miscellaneous,$275.00 ,12/22/2017
American Welding & Gas,Materials and Supplies,$51.50 ,4/21/2017
American Welding & Gas,Materials and Supplies,$60.24 ,4/28/2017
American Welding & Gas,Materials and Supplies,$361.80 ,5/16/2017
American Welding & Gas,Materials and Supplies,$59.40 ,6/20/2017
American Welding & Gas,Materials and Supplies,$221.40 ,7/14/2017
American Welding & Gas,Materials and Supplies,$354.00 ,7/25/2017
American Welding & Gas,Materials and Supplies,$140.66 ,8/4/2017
American Welding & Gas,Materials and Supplies,$59.40 ,8/11/2017
American Welding & Gas,Materials and Supplies,$30.00 ,8/18/2017
American Welding & Gas,Materials and Supplies,$30.00 ,9/15/2017
American Welding & Gas,Materials and Supplies,$324.00 ,9/19/2017
American Welding & Gas,Materials and Supplies,$59.40 ,10/6/2017
American Welding & Gas,Materials and Supplies,$30.00 ,10/13/2017
American Welding & Gas,Materials and Supplies,$162.00 ,10/27/2017
American Welding & Gas,Materials and Supplies,$59.40 ,11/3/2017
American Welding & Gas,Materials and Supplies,$89.40 ,11/10/2017
American Welding & Gas,Materials and Supplies,$162.00 ,11/17/2017
American Welding & Gas,Materials and Supplies,$59.40 ,12/12/2017
American Welding & Gas,Materials and Supplies,$30.00 ,12/15/2017
American Welding & Gas,Materials and Supplies,$162.00 ,12/22/2017
Amerimex Sales & Service Inc,Materials and Supplies,"$1,865.28 ",4/4/2017
Ameritemp LTD,Services,"$5,727.25 ",2/24/2017
ANA Laboratories Inc,Materials and Supplies,$747.00 ,1/17/2017
ANA Laboratories Inc,Materials and Supplies,$747.00 ,1/20/2017
ANA Laboratories Inc,Materials and Supplies,$249.00 ,2/14/2017
ANA Laboratories Inc,Materials and Supplies,$498.00 ,2/24/2017
ANA Laboratories Inc,Materials and Supplies,$498.00 ,3/3/2017
ANA Laboratories Inc,Materials and Supplies,$498.00 ,3/17/2017
ANA Laboratories Inc,Materials and Supplies,$747.00 ,3/24/2017
ANA Laboratories Inc,Materials and Supplies,$249.00 ,3/31/2017
ANA Laboratories Inc,Materials and Supplies,$249.00 ,4/7/2017
ANA Laboratories Inc,Materials and Supplies,$249.00 ,4/14/2017
ANA Laboratories Inc,Materials and Supplies,$996.00 ,4/21/2017
ANA Laboratories Inc,Materials and Supplies,$249.00 ,5/12/2017
ANA Laboratories Inc,Materials and Supplies,$249.00 ,6/23/2017
ANA Laboratories Inc,Materials and Supplies,$249.00 ,6/30/2017
ANA Laboratories Inc,Materials and Supplies,$236.00 ,7/21/2017
ANA Laboratories Inc,Materials and Supplies,$236.00 ,10/6/2017
ANA Laboratories Inc,Materials and Supplies,"$1,416.00 ",10/31/2017
ANA Laboratories Inc,Materials and Supplies,"$1,180.00 ",11/3/2017
ANA Laboratories Inc,Materials and Supplies,$236.00 ,11/7/2017
Anagnos Door Co Inc,Services,$290.00 ,8/11/2017
Analytical Intel LLC,Services,"$1,140.00 ",11/10/2017
Anderson Elevator Company,Services,$131.00 ,2/3/2017
Anderson Elevator Company,Services,$131.00 ,4/14/2017
Anderson Elevator Company,Services,$131.00 ,6/13/2017
Anderson Elevator Company,Services,$350.00 ,7/25/2017
Anderson Lock,Services,$580.00 ,1/20/2017
Anderson Lock,Services,$267.00 ,2/14/2017
Anderson Lock,Services,$440.70 ,2/24/2017
Anderson Lock,Services,$160.00 ,3/17/2017
Anderson Lock,Services,$189.50 ,3/24/2017
Anderson Lock,Services,$729.33 ,5/12/2017
Anderson Lock,Services,"$4,667.88 ",9/29/2017
Anderson Lock,Services,$539.95 ,10/27/2017
Anderson Lock,Services,"$1,048.15 ",12/1/2017
Anthony Roofing,Services,"$1,370.45 ",4/4/2017
Anthony Roofing,Services,"$1,395.00 ",6/23/2017
Anthony Roofing,Services,"$3,024.98 ",9/1/2017
APEX Material Handling Company,Materials and Supplies,$298.31 ,5/19/2017
APEX Material Handling Company,Materials and Supplies,$403.79 ,6/27/2017
Apollo Video Technology,Materials and Supplies,"$4,021.96 ",3/28/2017
Apollo Video Technology,Fuel/Parts Inventory,"$14,345.00 ",10/27/2017
Apollo Video Technology,Fuel/Parts Inventory,"$16,265.00 ",12/1/2017
Apollo Video Technology,Services,"$576,910.75 ",12/15/2017
Argon Electric Company Inc,Services,$327.03 ,1/5/2017
Argon Electric Company Inc,Services,"$1,863.01 ",1/17/2017
Argon Electric Company Inc,Services,$186.00 ,2/24/2017
Argon Electric Company Inc,Services,$287.00 ,3/3/2017
Argon Electric Company Inc,Services,$337.50 ,6/16/2017
Argon Electric Company Inc,Services,$756.06 ,6/20/2017
Argon Electric Company Inc,Services,"$4,905.00 ",9/19/2017
Argon Electric Company Inc,Services,$548.50 ,11/17/2017
Arlington Car Wash & Detail Inc,Services,$143.20 ,3/7/2017
Arlington Car Wash & Detail Inc,Services,$397.05 ,3/14/2017
Arlington Car Wash & Detail Inc,Services,$385.65 ,3/17/2017
Arlington Car Wash & Detail Inc,Services,$26.85 ,3/21/2017
Arlington Car Wash & Detail Inc,Services,$179.00 ,4/14/2017
Arlington Car Wash & Detail Inc,Services,$494.65 ,4/18/2017
Arlington Car Wash & Detail Inc,Services,$208.20 ,5/16/2017
Arlington Car Wash & Detail Inc,Services,$134.25 ,5/19/2017
Arlington Car Wash & Detail Inc,Services,$116.35 ,6/20/2017
Arlington Car Wash & Detail Inc,Services,$315.60 ,7/7/2017
Arlington Car Wash & Detail Inc,Services,$113.35 ,7/25/2017
Arlington Car Wash & Detail Inc,Services,$125.30 ,8/4/2017
Arlington Car Wash & Detail Inc,Services,$562.40 ,8/15/2017
Arlington Car Wash & Detail Inc,Services,$170.45 ,8/29/2017
Arlington Car Wash & Detail Inc,Services,$636.35 ,9/12/2017
Arlington Car Wash & Detail Inc,Services,$152.55 ,9/22/2017
Arlington Car Wash & Detail Inc,Services,$152.55 ,10/20/2017
Arlington Car Wash & Detail Inc,Services,$244.00 ,10/27/2017
Arlington Car Wash & Detail Inc,Services,$214.80 ,11/14/2017
Arlington Car Wash & Detail Inc,Services,$286.40 ,12/12/2017
Arrow Messenger Service,Miscellaneous,$74.88 ,1/5/2017
Arrow Messenger Service,Miscellaneous,$74.88 ,1/10/2017
Arrow Messenger Service,Miscellaneous,$74.88 ,1/31/2017
Arrow Messenger Service,Miscellaneous,$124.80 ,2/17/2017
Arrow Messenger Service,Miscellaneous,$149.76 ,2/24/2017
Arrow Messenger Service,Miscellaneous,$324.48 ,3/17/2017
Arrow Messenger Service,Miscellaneous,$74.88 ,3/24/2017
Arrow Messenger Service,Miscellaneous,$74.88 ,3/31/2017
Arrow Messenger Service,Miscellaneous,$74.88 ,4/7/2017
Arrow Messenger Service,Miscellaneous,$149.76 ,4/21/2017
Arrow Messenger Service,Miscellaneous,$74.88 ,4/28/2017
Arrow Messenger Service,Miscellaneous,$74.88 ,5/5/2017
Arrow Messenger Service,Miscellaneous,$74.88 ,5/19/2017
Arrow Messenger Service,Miscellaneous,$224.64 ,5/26/2017
Arrow Messenger Service,Miscellaneous,$74.88 ,6/16/2017
Arrow Messenger Service,Miscellaneous,$124.80 ,6/23/2017
Arrow Messenger Service,Miscellaneous,$149.76 ,7/7/2017
Arrow Messenger Service,Miscellaneous,$151.24 ,7/21/2017
Arrow Messenger Service,Miscellaneous,$77.10 ,8/1/2017
Arrow Messenger Service,Miscellaneous,$154.20 ,8/11/2017
Arrow Messenger Service,Miscellaneous,$154.20 ,8/29/2017
Arrow Messenger Service,Miscellaneous,$77.10 ,9/1/2017
Arrow Messenger Service,Miscellaneous,$77.10 ,9/7/2017
Arrow Messenger Service,Miscellaneous,$154.20 ,9/19/2017
Arrow Messenger Service,Miscellaneous,$51.40 ,9/29/2017
Arrow Messenger Service,Miscellaneous,$77.10 ,10/3/2017
Arrow Messenger Service,Miscellaneous,$77.10 ,10/13/2017
Arrow Messenger Service,Miscellaneous,$77.10 ,10/17/2017
Arrow Messenger Service,Miscellaneous,$205.60 ,11/10/2017
Arrow Messenger Service,Miscellaneous,$77.10 ,11/14/2017
Arrow Messenger Service,Miscellaneous,$77.10 ,11/28/2017
Arrow Messenger Service,Miscellaneous,$154.20 ,12/1/2017
Arrow Messenger Service,Miscellaneous,$77.10 ,12/15/2017
Arrow Messenger Service,Miscellaneous,$77.10 ,12/22/2017
Arrow Uniform Rental,Services,$53.76 ,1/20/2017
Arrow Uniform Rental,Services,$161.28 ,1/27/2017
Arrow Uniform Rental,Services,$53.76 ,2/10/2017
Arrow Uniform Rental,Services,$53.76 ,2/14/2017
Arrow Uniform Rental,Services,$107.52 ,2/24/2017
Arrow Uniform Rental,Services,$53.76 ,2/28/2017
Arrow Uniform Rental,Services,$53.76 ,3/3/2017
Arrow Uniform Rental,Services,$53.76 ,3/17/2017
Arrow Uniform Rental,Services,$53.76 ,3/28/2017
Arrow Uniform Rental,Services,$107.52 ,4/7/2017
Arrow Uniform Rental,Services,$107.52 ,4/14/2017
Arrow Uniform Rental,Services,$107.52 ,5/9/2017
Arrow Uniform Rental,Services,$53.76 ,5/19/2017
Arrow Uniform Rental,Services,$107.52 ,5/26/2017
Arrow Uniform Rental,Services,$483.84 ,9/12/2017
Ashrae,Miscellaneous,$256.00 ,5/5/2017
Ashrae,Miscellaneous,$256.00 ,11/10/2017
Associated Air Filter Company,Materials and Supplies,$382.20 ,8/8/2017
Associated Equipment Corporation,Materials and Supplies,$822.08 ,12/12/2017
Associated Technical Services LTD,Services,$376.25 ,4/4/2017
Associated Technical Services LTD,Services,"$2,999.00 ",10/17/2017
Association For Commuter Transportation,Miscellaneous,$575.00 ,1/5/2017
Association of Licensed Architects,Miscellaneous,$230.00 ,12/8/2017
AT&T,Purchased Transportation,"$1,134.16 ",1/5/2017
AT&T,Services,"$121,866.49 ",1/5/2017
AT&T,Utilities,"$16,101.46 ",1/5/2017
AT&T,Utilities,$106.76 ,1/10/2017
AT&T,Utilities,$37.24 ,1/13/2017
AT&T,Utilities,$43.42 ,1/20/2017
AT&T,Services,"$87,791.95 ",1/24/2017
AT&T,Utilities,"$13,141.19 ",1/24/2017
AT&T,Services,"$20,862.03 ",1/27/2017
AT&T,Utilities,$242.45 ,1/27/2017
AT&T,Purchased Transportation,"$1,030.60 ",2/7/2017
AT&T,Services,"$109,674.56 ",2/7/2017
AT&T,Utilities,"$15,486.97 ",2/7/2017
AT&T,Utilities,$43.33 ,2/10/2017
AT&T,Services,"$22,694.63 ",3/3/2017
AT&T,Utilities,$170.29 ,3/3/2017
AT&T,Purchased Transportation,"$1,108.39 ",3/10/2017
AT&T,Services,"$70,110.45 ",3/10/2017
AT&T,Utilities,"$2,089.95 ",3/10/2017
AT&T,Services,"$47,066.39 ",3/17/2017
AT&T,Utilities,"$12,783.17 ",3/17/2017
AT&T,Services,"$30,626.14 ",3/31/2017
AT&T,Building/Bldg Improvement,$500.00 ,4/7/2017
AT&T,Utilities,$150.04 ,4/11/2017
AT&T,Purchased Transportation,$248.13 ,4/14/2017
AT&T,Services,"$69,701.89 ",4/14/2017
AT&T,Utilities,$501.07 ,4/14/2017
AT&T,Utilities,$374.42 ,4/18/2017
AT&T,Services,"$36,534.60 ",4/21/2017
AT&T,Utilities,$777.74 ,4/21/2017
AT&T,Services,"$5,809.62 ",4/25/2017
AT&T,Utilities,$183.41 ,4/25/2017
AT&T,Services,"$5,406.47 ",4/28/2017
AT&T,Utilities,"$3,874.47 ",4/28/2017
AT&T,Services,"$8,600.77 ",5/2/2017
AT&T,Utilities,$468.71 ,5/2/2017
AT&T,Services,"$7,130.65 ",5/5/2017
AT&T,Utilities,"$1,156.09 ",5/5/2017
AT&T,Services,"$1,304.78 ",5/9/2017
AT&T,Utilities,$123.55 ,5/9/2017
AT&T,Services,$849.15 ,5/12/2017
AT&T,Utilities,$380.69 ,5/12/2017
AT&T,Services,$454.93 ,5/16/2017
AT&T,Utilities,$150.08 ,5/16/2017
AT&T,Utilities,$518.28 ,5/19/2017
AT&T,Services,$309.26 ,5/23/2017
AT&T,Utilities,$73.38 ,5/23/2017
AT&T,Services,"$89,852.34 ",5/26/2017
AT&T,Utilities,$648.90 ,5/26/2017
AT&T,Services,"$20,822.16 ",6/1/2017
AT&T,Utilities,"$1,031.98 ",6/1/2017
AT&T,Building/Bldg Improvement,"$8,987.58 ",6/6/2017
AT&T,Services,"$57,716.63 ",6/6/2017
AT&T,Utilities,"$20,802.26 ",6/6/2017
AT&T,Services,"$2,365.84 ",6/9/2017
AT&T,Utilities,$606.02 ,6/9/2017
AT&T,Services,"$2,248.19 ",6/13/2017
AT&T,Utilities,$187.38 ,6/13/2017
AT&T,Services,"$3,515.66 ",6/16/2017
AT&T,Utilities,$172.89 ,6/16/2017
AT&T,Services,"$168,148.16 ",6/23/2017
AT&T,Utilities,"$11,766.68 ",6/23/2017
AT&T,Services,"$9,684.76 ",6/27/2017
AT&T,Utilities,$84.12 ,6/27/2017
AT&T,Services,"$15,361.67 ",6/30/2017
AT&T,Utilities,"$2,433.98 ",6/30/2017
AT&T,Services,"$32,937.80 ",7/7/2017
AT&T,Utilities,$480.30 ,7/7/2017
AT&T,Services,"$2,039.60 ",7/14/2017
AT&T,Utilities,$266.65 ,7/14/2017
AT&T,Services,$84.08 ,7/18/2017
AT&T,Utilities,$259.78 ,7/18/2017
AT&T,Services,"$24,936.31 ",7/21/2017
AT&T,Utilities,$172.38 ,7/21/2017
AT&T,Services,"$24,901.41 ",7/25/2017
AT&T,Utilities,"$9,884.57 ",7/25/2017
AT&T,Services,"$17,851.34 ",7/28/2017
AT&T,Utilities,"$1,503.54 ",7/28/2017
AT&T,Utilities,"$1,278.77 ",8/1/2017
AT&T,Services,"$15,344.33 ",8/4/2017
AT&T,Services,"$69,482.61 ",8/11/2017
AT&T,Utilities,$547.97 ,8/11/2017
AT&T,Services,"$1,585.36 ",8/18/2017
AT&T,Utilities,$345.86 ,8/18/2017
AT&T,Services,"$60,684.85 ",8/22/2017
AT&T,Utilities,"$9,893.76 ",8/22/2017
AT&T,Utilities,$344.09 ,8/25/2017
AT&T,Services,"$91,411.51 ",8/29/2017
AT&T,Utilities,$51.59 ,8/29/2017
AT&T,Services,"$4,739.88 ",9/1/2017
AT&T,Utilities,"$2,537.46 ",9/1/2017
AT&T,Services,"$2,261.41 ",9/7/2017
AT&T,Utilities,$173.66 ,9/7/2017
AT&T,Utilities,$87.94 ,9/12/2017
AT&T,Services,"$26,107.13 ",9/15/2017
AT&T,Utilities,"$10,286.43 ",9/15/2017
AT&T,Services,"$1,585.36 ",9/19/2017
AT&T,Utilities,$85.13 ,9/19/2017
AT&T,Services,"$33,467.81 ",9/22/2017
AT&T,Utilities,$174.80 ,9/22/2017
AT&T,Purchased Transportation,$932.50 ,9/29/2017
AT&T,Services,"$74,844.33 ",9/29/2017
AT&T,Utilities,$142.90 ,9/29/2017
AT&T,Services,"$2,094.14 ",10/3/2017
AT&T,Services,"$16,725.13 ",10/6/2017
AT&T,Utilities,"$2,971.61 ",10/6/2017
AT&T,Utilities,$87.94 ,10/10/2017
AT&T,Utilities,$170.90 ,10/20/2017
AT&T,Utilities,$175.76 ,10/24/2017
AT&T,Services,"$67,706.31 ",10/27/2017
AT&T,Utilities,"$10,275.21 ",10/27/2017
AT&T,Services,"$2,388.30 ",10/31/2017
AT&T,Services,"$10,435.51 ",11/3/2017
AT&T,Utilities,"$2,401.38 ",11/3/2017
AT&T,Utilities,$175.26 ,11/7/2017
AT&T,Services,"$1,900.92 ",11/10/2017
AT&T,Utilities,$88.27 ,11/14/2017
AT&T,Utilities,$248.86 ,11/17/2017
AT&T,Services,"$1,585.58 ",11/21/2017
AT&T,Services,"$58,151.34 ",11/28/2017
AT&T,Utilities,"$10,542.02 ",11/28/2017
AT&T,Services,"$21,622.84 ",12/5/2017
AT&T,Utilities,$922.00 ,12/5/2017
AT&T,Services,"$4,948.37 ",12/8/2017
AT&T,Utilities,"$1,037.06 ",12/8/2017
AT&T,Utilities,$729.01 ,12/12/2017
AT&T,Services,$498.89 ,12/15/2017
AT&T,Utilities,$549.51 ,12/19/2017
AT&T,Services,"$1,500.00 ",12/22/2017
AT&T,Utilities,$435.80 ,12/22/2017
AT&T,Services,"$194,224.34 ",12/28/2017
AT&T,Utilities,$117.04 ,12/28/2017
AT&T Mobility National Accounts LLC,Utilities,"$13,372.81 ",1/13/2017
AT&T Mobility National Accounts LLC,Utilities,"$13,089.06 ",1/31/2017
AT&T Mobility National Accounts LLC,Utilities,"$12,381.94 ",3/3/2017
AT&T Mobility National Accounts LLC,Utilities,"$13,726.33 ",3/31/2017
AT&T Mobility National Accounts LLC,Utilities,"$14,060.86 ",5/2/2017
AT&T Mobility National Accounts LLC,Utilities,"$14,031.74 ",6/13/2017
AT&T Mobility National Accounts LLC,Utilities,"$14,946.20 ",6/30/2017
AT&T Mobility National Accounts LLC,Utilities,"$14,127.60 ",7/25/2017
AT&T Mobility National Accounts LLC,Utilities,"$14,207.40 ",8/29/2017
AT&T Mobility National Accounts LLC,Utilities,"$15,779.70 ",10/17/2017
AT&T Mobility National Accounts LLC,Utilities,"$14,767.13 ",10/20/2017
AT&T Mobility National Accounts LLC,Utilities,"$15,130.04 ",11/28/2017
AT&T Mobility National Accounts LLC,Utilities,"$3,560.91 ",12/28/2017
Atkinson-Baker Inc,Miscellaneous,"$1,744.50 ",12/5/2017
Atkinson-Baker Inc,Miscellaneous,$285.50 ,12/8/2017
Atlas & Associates Inc,Materials and Supplies,"$1,375.00 ",4/7/2017
Atlas & Associates Inc,Materials and Supplies,"$2,815.00 ",5/16/2017
Atlas Bobcat Inc,Materials and Supplies,"$1,140.68 ",10/20/2017
Atlas Copco Compressors LLC,Services,$407.00 ,2/14/2017
Atlas Copco Compressors LLC,Materials and Supplies,"$1,271.00 ",3/24/2017
Atlas Copco Compressors LLC,Services,"$4,052.00 ",3/24/2017
Atlas Copco Compressors LLC,Services,"$2,781.00 ",4/4/2017
Atlas Copco Compressors LLC,Services,$354.00 ,4/21/2017
Atlas Copco Compressors LLC,Services,$180.00 ,4/25/2017
Atlas Copco Compressors LLC,Services,"$1,338.22 ",5/12/2017
Atlas Copco Compressors LLC,Services,$345.00 ,6/23/2017
Atlas Copco Compressors LLC,Services,$447.95 ,7/21/2017
Atlas Copco Compressors LLC,Services,"$2,489.50 ",8/18/2017
Atlas Copco Compressors LLC,Services,$342.00 ,10/20/2017
Atlas Copco Compressors LLC,Services,"$2,427.50 ",12/8/2017
Atlas Copco Compressors LLC,Services,$199.77 ,12/19/2017
Atlas Toyota Material Handling,Equipment,"$57,453.00 ",4/7/2017
Atlas Translation Services Inc,Miscellaneous,$225.00 ,9/7/2017
Atlas Translation Services Inc,Miscellaneous,$310.00 ,11/10/2017
Atlas World Class Body Shop Inc,Casualty and Liability,"$4,564.00 ",3/10/2017
Atlas World Class Body Shop Inc,Casualty and Liability,"$3,094.00 ",3/28/2017
Atlas World Class Body Shop Inc,Services,"$10,283.00 ",3/28/2017
Atlas World Class Body Shop Inc,Casualty and Liability,"$9,368.00 ",5/5/2017
Atlas World Class Body Shop Inc,Services,"$1,420.00 ",5/5/2017
Atlas World Class Body Shop Inc,Casualty and Liability,"$3,566.00 ",5/26/2017
Atlas World Class Body Shop Inc,Services,"$1,476.00 ",5/26/2017
Atlas World Class Body Shop Inc,Casualty and Liability,"$9,223.00 ",7/21/2017
Atlas World Class Body Shop Inc,Casualty and Liability,"$12,512.00 ",8/11/2017
Atlas World Class Body Shop Inc,Services,$385.00 ,8/11/2017
Atlas World Class Body Shop Inc,Casualty and Liability,"$6,379.00 ",10/6/2017
Atlas World Class Body Shop Inc,Casualty and Liability,"$8,878.00 ",10/13/2017
Atlas World Class Body Shop Inc,Services,"$11,014.00 ",11/28/2017
Attorney Registration & Disciplinary,Miscellaneous,$385.00 ,1/10/2017
Attorney Registration & Disciplinary,Miscellaneous,$385.00 ,10/27/2017
Attorney Registration & Disciplinary,Miscellaneous,"$1,155.00 ",10/31/2017
Attorney Registration & Disciplinary,Miscellaneous,$385.00 ,11/3/2017
Attorney Registration & Disciplinary,Miscellaneous,$385.00 ,12/1/2017
Aurora Regional Chamber,Miscellaneous,$500.00 ,7/14/2017
Aurora Regional Chamber,Miscellaneous,$300.00 ,7/21/2017
Aurora Township,Purchased Transportation,"$30,025.77 ",1/13/2017
Aurora Township,Purchased Transportation,"$29,874.05 ",2/7/2017
Aurora Township,Purchased Transportation,"$32,577.16 ",3/10/2017
Aurora Township,Purchased Transportation,"$32,729.01 ",3/31/2017
Aurora Township,Purchased Transportation,"$38,564.32 ",5/5/2017
Aurora Township,Purchased Transportation,"$34,715.18 ",6/1/2017
Aurora Township,Purchased Transportation,"$39,446.70 ",7/11/2017
Aurora Township,Purchased Transportation,"$39,149.54 ",8/4/2017
Aurora Township,Purchased Transportation,"$33,809.68 ",9/7/2017
Aurora Township,Purchased Transportation,"$37,274.24 ",10/13/2017
Aurora Township,Purchased Transportation,"$35,418.41 ",10/31/2017
Aurora Township,Purchased Transportation,"$37,149.78 ",12/5/2017
Aurora University,Services,"$1,525.00 ",2/3/2017
Aurora University,Services,"$1,525.00 ",4/21/2017
Aurora University,Services,"$1,950.00 ",6/1/2017
Austin Electric,Services,"$2,189.00 ",1/13/2017
Austin Electric,Services,"$1,165.50 ",1/27/2017
Austin Electric,Services,"$6,888.00 ",2/28/2017
Austin Electric,Services,$238.00 ,3/24/2017
Austin Electric,Services,$876.00 ,4/14/2017
Austin Electric,Services,"$3,221.93 ",5/5/2017
Austin Electric,Services,"$12,657.47 ",5/9/2017
Austin Electric,Services,$984.00 ,5/16/2017
Austin Electric,Services,$535.50 ,5/26/2017
Austin Electric,Services,"$1,040.00 ",6/1/2017
Austin Electric,Services,"$1,963.99 ",6/23/2017
Austin Electric,Services,$178.50 ,6/27/2017
Austin Electric,Casualty and Liability,"$4,181.86 ",7/18/2017
Austin Electric,Services,"$1,046.00 ",8/8/2017
Austin Electric,Services,$304.64 ,8/15/2017
Austin Electric,Services,"$3,031.00 ",9/1/2017
Austin Electric,Services,"$3,122.50 ",9/26/2017
Austin Electric,Services,$884.50 ,9/29/2017
Austin Electric,Services,$388.00 ,10/27/2017
Austin Electric,Services,"$1,746.60 ",11/3/2017
Avaya Inc,Services,$200.00 ,2/28/2017
Axiom Services Inc,Services,$125.55 ,4/7/2017
B & T Pump & Lube Service Inc,Miscellaneous,"$1,676.86 ",1/5/2017
B & T Pump & Lube Service Inc,Materials and Supplies,$258.75 ,2/3/2017
B & T Pump & Lube Service Inc,Materials and Supplies,$226.95 ,2/24/2017
B & T Pump & Lube Service Inc,Materials and Supplies,$320.40 ,3/28/2017
B & T Pump & Lube Service Inc,Materials and Supplies,"$1,141.00 ",4/21/2017
B & T Pump & Lube Service Inc,Materials and Supplies,$381.69 ,11/7/2017
Baker Tilly Virchow Krause LLP,Services,"$20,000.00 ",3/17/2017
Baker Tilly Virchow Krause LLP,Services,"$40,000.00 ",4/14/2017
Baker Tilly Virchow Krause LLP,Services,"$17,000.00 ",6/20/2017
Baker Tilly Virchow Krause LLP,Services,"$2,359.00 ",7/14/2017
Bargain Trading Inc,Materials and Supplies,"$4,453.71 ",7/25/2017
Bargain Trading Inc,Materials and Supplies,"$9,457.94 ",9/12/2017
Bargain Trading Inc,Materials and Supplies,"$1,458.99 ",9/22/2017
Bargain Trading Inc,Materials and Supplies,$225.00 ,10/13/2017
Bargain Trading Inc,Materials and Supplies,"$5,134.99 ",10/20/2017
Bargain Trading Inc,Materials and Supplies,"$1,253.00 ",11/21/2017
Bargain Trading Inc,Materials and Supplies,$699.00 ,12/22/2017
Bargain Trading Inc,Materials and Supplies,"$4,438.99 ",12/28/2017
Barney Miller,Purchased Transportation,$9.00 ,10/27/2017
Barr Management LTD,Miscellaneous,$25.00 ,6/27/2017
Barricade Lites Inc,Services,"$4,050.00 ",5/23/2017
Battery Service Corporation,Fuel/Parts Inventory,"$4,720.00 ",1/5/2017
Battery Service Corporation,Fuel/Parts Inventory,"$1,770.00 ",1/10/2017
Battery Service Corporation,Fuel/Parts Inventory,"$1,534.00 ",1/24/2017
Battery Service Corporation,Fuel/Parts Inventory,"$2,950.00 ",1/27/2017
Battery Service Corporation,Fuel/Parts Inventory,"$2,360.00 ",2/3/2017
Battery Service Corporation,Fuel/Parts Inventory,"$4,484.00 ",3/7/2017
Battery Service Corporation,Fuel/Parts Inventory,$826.00 ,3/17/2017
Battery Service Corporation,Fuel/Parts Inventory,"$4,248.00 ",4/21/2017
Battery Service Corporation,Materials and Supplies,"$2,410.00 ",4/21/2017
Battery Service Corporation,Materials and Supplies,$482.00 ,4/28/2017
Battery Service Corporation,Fuel/Parts Inventory,"$6,608.00 ",5/9/2017
Battery Service Corporation,Fuel/Parts Inventory,"$6,665.70 ",5/26/2017
Battery Service Corporation,Fuel/Parts Inventory,"$1,800.00 ",8/4/2017
Battery Service Corporation,Fuel/Parts Inventory,"$2,478.00 ",9/12/2017
Battery Service Corporation,Fuel/Parts Inventory,"$13,320.00 ",11/7/2017
Battery Service Corporation,Materials and Supplies,($315.00),11/7/2017
Beary Landscape Management Inc,Services,"$8,455.00 ",1/20/2017
Beary Landscape Management Inc,Services,"$3,255.00 ",2/14/2017
Beary Landscape Management Inc,Services,$180.00 ,2/21/2017
Beary Landscape Management Inc,Services,"$1,308.00 ",2/28/2017
Beary Landscape Management Inc,Services,$260.00 ,3/3/2017
Beary Landscape Management Inc,Services,"$2,145.00 ",3/14/2017
Beary Landscape Management Inc,Services,"$1,390.00 ",3/31/2017
Beary Landscape Management Inc,Services,"$3,474.00 ",4/14/2017
Beary Landscape Management Inc,Services,"$1,060.00 ",5/9/2017
Bedford Park-Clearing Industrial Association,Miscellaneous,$375.00 ,1/31/2017
Bell Fuels Inc,Fuel/Parts Inventory,"$6,705.93 ",6/20/2017
Bell Fuels Inc,Fuel/Parts Inventory,"$7,555.72 ",10/6/2017
Benefit Express,Health Insurance,"$30,449.80 ",1/17/2017
Benefit Express,Health Insurance,"$30,359.36 ",2/10/2017
Benefit Express,Health Insurance,"$15,116.24 ",3/7/2017
Benefit Express,Health Insurance,"$36,535.29 ",4/18/2017
Benefit Express,Health Insurance,"$14,476.68 ",6/6/2017
Benefit Express,Health Insurance,"$14,497.19 ",7/7/2017
Benefit Express,Health Insurance,"$14,611.53 ",8/1/2017
Benefit Express,Health Insurance,"$15,206.00 ",9/22/2017
Benefit Express,Health Insurance,"$24,824.79 ",10/13/2017
Benefit Express,Health Insurance,"$12,842.85 ",12/5/2017
Bensinger Du Pont & Associates,Services,"$1,926.61 ",1/10/2017
Bensinger Du Pont & Associates,Services,"$1,926.61 ",2/10/2017
Bensinger Du Pont & Associates,Services,"$1,926.61 ",3/7/2017
Bensinger Du Pont & Associates,Services,"$1,926.61 ",4/18/2017
Bensinger Du Pont & Associates,Services,"$1,926.61 ",5/23/2017
Bensinger Du Pont & Associates,Services,"$1,926.61 ",6/13/2017
Bentley Systems Inc,Services,$837.50 ,2/3/2017
Bentley Systems Inc,Services,$902.00 ,3/24/2017
Bentley Systems Inc,Services,$837.50 ,4/28/2017
Bentley Systems Inc,Services,$733.00 ,11/3/2017
Best Quality Cleaning Inc,Services,$900.00 ,1/5/2017
Best Quality Cleaning Inc,Services,"$3,475.00 ",1/10/2017
Best Quality Cleaning Inc,Services,$487.50 ,1/13/2017
Best Quality Cleaning Inc,Services,"$1,172.50 ",2/14/2017
Best Quality Cleaning Inc,Services,$984.50 ,2/17/2017
Best Quality Cleaning Inc,Services,$900.00 ,2/21/2017
Best Quality Cleaning Inc,Services,"$1,765.00 ",2/24/2017
Best Quality Cleaning Inc,Services,"$4,844.32 ",3/10/2017
Best Quality Cleaning Inc,Services,$875.00 ,4/7/2017
Best Quality Cleaning Inc,Services,"$3,602.50 ",4/18/2017
Best Quality Cleaning Inc,Services,"$1,585.00 ",4/21/2017
Best Quality Cleaning Inc,Services,"$2,090.00 ",5/12/2017
Best Quality Cleaning Inc,Services,"$1,172.50 ",5/16/2017
Best Quality Cleaning Inc,Services,"$1,025.00 ",5/19/2017
Best Quality Cleaning Inc,Services,$900.00 ,5/23/2017
Best Quality Cleaning Inc,Services,$685.00 ,6/6/2017
Best Quality Cleaning Inc,Services,$900.00 ,6/16/2017
Best Quality Cleaning Inc,Services,"$1,702.50 ",6/23/2017
Best Quality Cleaning Inc,Services,$875.00 ,6/30/2017
Best Quality Cleaning Inc,Services,$487.50 ,7/7/2017
Best Quality Cleaning Inc,Services,"$1,025.00 ",7/14/2017
Best Quality Cleaning Inc,Services,"$2,610.00 ",7/28/2017
Best Quality Cleaning Inc,Services,"$2,090.00 ",8/1/2017
Best Quality Cleaning Inc,Services,"$2,090.00 ",8/4/2017
Best Quality Cleaning Inc,Services,"$1,585.00 ",8/11/2017
Best Quality Cleaning Inc,Services,$487.50 ,8/15/2017
Best Quality Cleaning Inc,Services,$925.00 ,8/18/2017
Best Quality Cleaning Inc,Services,"$1,387.50 ",9/7/2017
Best Quality Cleaning Inc,Services,"$2,775.00 ",9/12/2017
Best Quality Cleaning Inc,Services,"$1,025.00 ",9/22/2017
Best Quality Cleaning Inc,Services,"$3,115.00 ",10/13/2017
Best Quality Cleaning Inc,Services,$685.00 ,10/20/2017
Best Quality Cleaning Inc,Services,$487.50 ,10/27/2017
Best Quality Cleaning Inc,Services,"$2,990.00 ",11/10/2017
Best Quality Cleaning Inc,Services,$685.00 ,11/14/2017
Best Quality Cleaning Inc,Services,$487.50 ,11/17/2017
Best Quality Cleaning Inc,Services,"$1,025.00 ",11/28/2017
Best Quality Cleaning Inc,Services,"$2,990.00 ",12/8/2017
Best Quality Cleaning Inc,Services,$487.50 ,12/12/2017
Best Quality Cleaning Inc,Services,$685.00 ,12/19/2017
Betty Pierce,Purchased Transportation,$9.00 ,10/27/2017
Bill's Grove Florist Ltd,Materials and Supplies,$150.00 ,1/20/2017
Bill's Grove Florist Ltd,Materials and Supplies,$106.00 ,1/24/2017
Bill's Grove Florist Ltd,Materials and Supplies,$123.00 ,1/27/2017
Bill's Grove Florist Ltd,Materials and Supplies,$423.00 ,1/31/2017
Bill's Grove Florist Ltd,Materials and Supplies,"$1,184.00 ",3/31/2017
Bill's Grove Florist Ltd,Materials and Supplies,$546.00 ,5/9/2017
Bill's Grove Florist Ltd,Materials and Supplies,$123.00 ,6/16/2017
Bill's Grove Florist Ltd,Materials and Supplies,$201.00 ,7/7/2017
Bill's Grove Florist Ltd,Materials and Supplies,$518.00 ,7/11/2017
Bill's Grove Florist Ltd,Materials and Supplies,$205.00 ,9/29/2017
Bill's Grove Florist Ltd,Materials and Supplies,$709.00 ,10/6/2017
Bill's Grove Florist Ltd,Materials and Supplies,$140.00 ,10/20/2017
Bill's Grove Florist Ltd,Materials and Supplies,$150.00 ,11/10/2017
Bill's Grove Florist Ltd,Materials and Supplies,$276.00 ,11/17/2017
Bill's Grove Florist Ltd,Materials and Supplies,$153.00 ,11/21/2017
Bloom Companies LLC,Building/Bldg Improvement,"$37,744.80 ",3/17/2017
Bloom Companies LLC,Building/Bldg Improvement,"$25,092.77 ",8/29/2017
Bloom Township Center,Purchased Transportation,"$4,104.00 ",1/5/2017
Bloom Township Center,Purchased Transportation,"$4,158.00 ",1/20/2017
Bloom Township Center,Purchased Transportation,"$3,516.75 ",2/24/2017
Bloom Township Center,Purchased Transportation,"$3,522.75 ",3/10/2017
Bloom Township Center,Purchased Transportation,"$3,843.00 ",4/4/2017
Bloom Township Center,Purchased Transportation,"$3,687.00 ",5/5/2017
Bloom Township Center,Purchased Transportation,"$3,999.00 ",6/6/2017
Bloom Township Center,Miscellaneous,$35.00 ,6/9/2017
Bloom Township Center,Purchased Transportation,"$3,843.00 ",6/30/2017
Bloom Township Center,Purchased Transportation,"$3,843.00 ",8/4/2017
Bloom Township Center,Purchased Transportation,"$3,843.00 ",9/12/2017
Bloom Township Center,Purchased Transportation,"$3,843.00 ",10/10/2017
Bloom Township Center,Miscellaneous,$100.00 ,10/20/2017
Bloom Township Center,Purchased Transportation,"$3,843.00 ",11/7/2017
Bloom Township Center,Purchased Transportation,"$3,843.00 ",12/12/2017
Bloomberg BNA,Services,"$8,257.00 ",3/17/2017
Bloomberg BNA,Miscellaneous,$599.14 ,7/11/2017
Bloomberg BNA,Miscellaneous,"$8,257.00 ",11/10/2017
Blue Apple Health LLC,Health Insurance,"$92,290.59 ",1/5/2017
Blue Apple Health LLC,Health Insurance,"$90,281.61 ",12/1/2017
Blue Apple Health LLC,Health Insurance,"$7,365.16 ",12/5/2017
Blue Cross Blue Shield of Illinois,Health Insurance,"$1,821,553.23 ",1/18/2017
Blue Cross Blue Shield of Illinois,Health Insurance,"$2,087,426.95 ",2/22/2017
Blue Cross Blue Shield of Illinois,Health Insurance,"$1,891,705.41 ",3/16/2017
Blue Cross Blue Shield of Illinois,Health Insurance,"$2,032,068.94 ",4/14/2017
Blue Cross Blue Shield of Illinois,Health Insurance,"$2,170,870.57 ",5/15/2017
Blue Cross Blue Shield of Illinois,Health Insurance,"$1,940,919.91 ",6/23/2017
Blue Cross Blue Shield of Illinois,Health Insurance,"$2,037,891.10 ",7/14/2017
Blue Cross Blue Shield of Illinois,Health Insurance,"$2,131,359.50 ",8/14/2017
Blue Cross Blue Shield of Illinois,Health Insurance,"$1,957,693.95 ",9/15/2017
Blue Cross Blue Shield of Illinois,Health Insurance,"$1,977,242.58 ",10/18/2017
Blue Cross Blue Shield of Illinois,Health Insurance,"$1,961,364.37 ",11/17/2017
Blue Cross Blue Shield of Illinois,Health Insurance,"$2,066,175.03 ",12/15/2017
Blue Ribbon Taxi Association,Purchased Transportation,$466.75 ,1/5/2017
Blue Ribbon Taxi Association,Purchased Transportation,"$12,263.30 ",1/10/2017
Blue Ribbon Taxi Association,Purchased Transportation,"$9,719.50 ",1/24/2017
Blue Ribbon Taxi Association,Purchased Transportation,"$15,934.70 ",2/3/2017
Blue Ribbon Taxi Association,Purchased Transportation,"$2,014.50 ",2/10/2017
Blue Ribbon Taxi Association,Purchased Transportation,"$4,056.25 ",2/28/2017
Blue Ribbon Taxi Association,Purchased Transportation,"$6,992.30 ",3/21/2017
Blue Ribbon Taxi Association,Purchased Transportation,"$6,274.60 ",3/31/2017
Blue Ribbon Taxi Association,Purchased Transportation,"$32,281.63 ",4/7/2017
Blue Ribbon Taxi Association,Purchased Transportation,"$1,275.25 ",4/18/2017
Blue Ribbon Taxi Association,Purchased Transportation,"$10,195.23 ",4/21/2017
Blue Ribbon Taxi Association,Purchased Transportation,"$4,591.64 ",4/28/2017
Blue Ribbon Taxi Association,Purchased Transportation,"$16,650.24 ",5/23/2017
Blue Ribbon Taxi Association,Purchased Transportation,"$22,021.29 ",6/23/2017
Blue Ribbon Taxi Association,Purchased Transportation,"$1,606.25 ",6/27/2017
Blue Ribbon Taxi Association,Purchased Transportation,"$1,162.25 ",7/11/2017
Blue Ribbon Taxi Association,Purchased Transportation,"$18,563.46 ",7/21/2017
Blue Ribbon Taxi Association,Purchased Transportation,"$2,525.85 ",7/25/2017
Blue Ribbon Taxi Association,Purchased Transportation,"$12,376.59 ",8/1/2017
Blue Ribbon Taxi Association,Purchased Transportation,"$4,175.75 ",9/12/2017
Blue Ribbon Taxi Association,Purchased Transportation,"$22,788.26 ",9/15/2017
Blue Ribbon Taxi Association,Purchased Transportation,"$4,202.00 ",10/13/2017
Blue Ribbon Taxi Association,Purchased Transportation,"$18,051.90 ",10/20/2017
Blue Ribbon Taxi Association,Purchased Transportation,$685.25 ,10/31/2017
Blue Ribbon Taxi Association,Purchased Transportation,"$10,203.75 ",11/3/2017
Blue Ribbon Taxi Association,Purchased Transportation,"$8,765.74 ",11/10/2017
Blue Ribbon Taxi Association,Purchased Transportation,"$13,894.16 ",11/28/2017
Blue Ribbon Taxi Association,Purchased Transportation,"$4,265.25 ",12/12/2017
Blue Ribbon Taxi Association,Purchased Transportation,"$8,506.37 ",12/19/2017
Bolingbrook Area Chamber of Commerce,Services,$70.00 ,1/31/2017
BP Consultants,Services,"$3,000.00 ",1/10/2017
BP Consultants,Services,"$3,000.00 ",2/14/2017
BP Consultants,Services,"$3,000.00 ",3/7/2017
BP Consultants,Services,"$3,000.00 ",4/4/2017
BP Consultants,Services,"$3,000.00 ",5/5/2017
BP Consultants,Services,"$3,000.00 ",6/6/2017
BP Consultants,Services,"$3,000.00 ",7/7/2017
BP Consultants,Services,"$3,000.00 ",8/22/2017
BP Consultants,Services,"$3,000.00 ",9/7/2017
BP Consultants,Services,"$3,000.00 ",10/6/2017
BP Consultants,Services,"$3,000.00 ",10/31/2017
BP Consultants,Services,"$3,000.00 ",12/8/2017
Brabazon Pumpe Company LTD,Materials and Supplies,"$1,220.61 ",2/21/2017
Brabazon Pumpe Company LTD,Materials and Supplies,"$1,264.12 ",3/24/2017
Brabazon Pumpe Company LTD,Materials and Supplies,"$1,656.43 ",9/7/2017
Brabazon Pumpe Company LTD,Materials and Supplies,$588.24 ,11/7/2017
Bradburne Briller & Johnson LLC,Building/Bldg Improvement,"$2,962.11 ",1/20/2017
Bradburne Briller & Johnson LLC,Building/Bldg Improvement,"$1,070.33 ",2/21/2017
Bradburne Briller & Johnson LLC,Building/Bldg Improvement,"$6,363.25 ",6/23/2017
Bradburne Briller & Johnson LLC,Building/Bldg Improvement,"$4,023.95 ",7/28/2017
Bradburne Briller & Johnson LLC,Building/Bldg Improvement,"$7,557.75 ",8/22/2017
Bradburne Briller & Johnson LLC,Building/Bldg Improvement,"$1,600.00 ",9/7/2017
Brasco International,Equipment,"$150,450.00 ",4/7/2017
Brasco International,Equipment,"$34,050.00 ",6/30/2017
Brasco International,Equipment,"$42,775.00 ",12/15/2017
Braxton Grant Technologies Inc,Services,"$39,150.83 ",6/30/2017
Brent Hassert Consulting LLC,Services,"$4,500.00 ",1/13/2017
Brent Hassert Consulting LLC,Services,"$4,500.00 ",3/17/2017
Brent Hassert Consulting LLC,Services,"$4,500.00 ",5/9/2017
Brent Hassert Consulting LLC,Services,"$4,500.00 ",8/4/2017
Brent Hassert Consulting LLC,Services,"$4,500.00 ",10/3/2017
Brent Hassert Consulting LLC,Services,"$4,500.00 ",12/12/2017
Bridgestone Americas Tire Operations LLC,Materials and Supplies,"$105,780.81 ",1/10/2017
Bridgestone Americas Tire Operations LLC,Materials and Supplies,"$15,343.96 ",1/27/2017
Bridgestone Americas Tire Operations LLC,Materials and Supplies,"$130,710.22 ",2/7/2017
Bridgestone Americas Tire Operations LLC,Materials and Supplies,"$133,195.11 ",3/10/2017
Bridgestone Americas Tire Operations LLC,Materials and Supplies,"$119,122.01 ",4/7/2017
Bridgestone Americas Tire Operations LLC,Materials and Supplies,"$132,953.14 ",5/16/2017
Bridgestone Americas Tire Operations LLC,Materials and Supplies,"$119,739.77 ",6/23/2017
Bridgestone Americas Tire Operations LLC,Materials and Supplies,"$125,140.15 ",7/11/2017
Bridgestone Americas Tire Operations LLC,Materials and Supplies,"$119,701.41 ",8/18/2017
Bridgestone Americas Tire Operations LLC,Materials and Supplies,"$127,649.13 ",10/6/2017
Bridgestone Americas Tire Operations LLC,Materials and Supplies,"$128,929.74 ",10/17/2017
Bridgestone Americas Tire Operations LLC,Materials and Supplies,"$106,928.62 ",11/10/2017
Bridgestone Americas Tire Operations LLC,Materials and Supplies,"$105,269.69 ",12/15/2017
Bridgeview Chamber of Commerce,Miscellaneous,$100.00 ,1/31/2017
Buck Bros Inc,Vehicle,"$14,205.00 ",4/21/2017
Builders Chicago Corporation,Services,"$7,242.16 ",2/28/2017
Builders Chicago Corporation,Services,"$1,834.80 ",3/21/2017
Builders Chicago Corporation,Services,"$17,164.50 ",4/4/2017
Builders Chicago Corporation,Services,"$13,200.00 ",4/14/2017
Builders Chicago Corporation,Services,"$9,504.00 ",4/21/2017
Builders Chicago Corporation,Services,"$2,091.59 ",5/9/2017
Builders Chicago Corporation,Services,"$2,243.00 ",5/16/2017
Builders Chicago Corporation,Services,"$2,191.10 ",5/19/2017
Builders Chicago Corporation,Services,"$1,151.24 ",5/26/2017
Builders Chicago Corporation,Services,$395.00 ,6/13/2017
Builders Chicago Corporation,Services,"$2,101.17 ",6/16/2017
Builders Chicago Corporation,Services,"$7,857.70 ",6/23/2017
Builders Chicago Corporation,Services,$329.00 ,7/7/2017
Builders Chicago Corporation,Services,"$5,189.16 ",7/14/2017
Builders Chicago Corporation,Services,"$6,719.93 ",7/28/2017
Builders Chicago Corporation,Services,$659.00 ,8/8/2017
Builders Chicago Corporation,Services,$593.00 ,8/22/2017
Builders Chicago Corporation,Services,$376.82 ,8/29/2017
Builders Chicago Corporation,Services,"$2,561.41 ",9/1/2017
Builders Chicago Corporation,Services,$210.20 ,9/15/2017
Builders Chicago Corporation,Services,"$1,475.23 ",9/29/2017
Builders Chicago Corporation,Services,$329.00 ,10/6/2017
Builders Chicago Corporation,Services,$592.00 ,10/13/2017
Builders Chicago Corporation,Services,"$4,411.52 ",10/17/2017
Builders Chicago Corporation,Services,"$13,738.00 ",11/14/2017
Builders Chicago Corporation,Services,"$7,920.00 ",11/21/2017
Builders Chicago Corporation,Services,"$1,056.00 ",12/1/2017
Builders Chicago Corporation,Services,"$4,511.44 ",12/5/2017
Builders Chicago Corporation,Services,"$5,852.76 ",12/22/2017
Burrink Commercial Services Inc,Services,"$11,499.00 ",11/17/2017
Burrink Commercial Services Inc,Services,"$4,200.00 ",11/28/2017
Bus & Truck of Chicago Inc,Casualty and Liability,"$2,855.00 ",7/21/2017
Bus & Truck of Chicago Inc,Casualty and Liability,"$2,445.00 ",8/18/2017
Business Publishers Inc,Miscellaneous,$299.00 ,12/8/2017
C & T Lawn and Landscape,Services,$256.00 ,1/13/2017
C & T Lawn and Landscape,Services,$256.00 ,5/16/2017
C & T Lawn and Landscape,Services,$256.00 ,6/30/2017
C & T Lawn and Landscape,Services,$256.00 ,8/4/2017
C & T Lawn and Landscape,Services,$256.00 ,8/25/2017
C & T Lawn and Landscape,Services,$256.00 ,9/22/2017
C & T Lawn and Landscape,Services,$256.00 ,10/13/2017
C & T Lawn and Landscape,Services,$256.00 ,12/1/2017
C & T Lawn and Landscape,Services,$256.00 ,12/15/2017
Cabconnect Inc,Miscellaneous,"$19,694.83 ",2/10/2017
Cabconnect Inc,Miscellaneous,"$19,959.83 ",2/21/2017
Cabconnect Inc,Miscellaneous,"$20,534.83 ",4/7/2017
Cabconnect Inc,Miscellaneous,"$20,824.83 ",4/21/2017
Cabconnect Inc,Miscellaneous,"$20,493.83 ",5/26/2017
Cabconnect Inc,Miscellaneous,"$20,544.83 ",6/30/2017
Cabconnect Inc,Miscellaneous,"$20,736.83 ",8/8/2017
Cabconnect Inc,Miscellaneous,"$20,604.83 ",9/22/2017
Cabconnect Inc,Miscellaneous,"$20,539.83 ",10/13/2017
Cabconnect Inc,Miscellaneous,"$21,079.83 ",10/27/2017
Cabconnect Inc,Miscellaneous,"$21,658.83 ",11/10/2017
Cabconnect Inc,Miscellaneous,"$21,012.83 ",12/19/2017
CALSTART,Miscellaneous,"$3,950.00 ",8/1/2017
Calumet City Plumbing Co,Services,$510.00 ,1/10/2017
Calumet City Plumbing Co,Services,"$1,821.22 ",1/20/2017
Calumet City Plumbing Co,Services,"$4,021.30 ",1/31/2017
Calumet City Plumbing Co,Materials and Supplies,"$1,790.00 ",2/7/2017
Calumet City Plumbing Co,Services,"$1,241.46 ",2/10/2017
Calumet City Plumbing Co,Services,"$2,113.00 ",2/24/2017
Calumet City Plumbing Co,Services,"$3,181.73 ",3/28/2017
Calumet City Plumbing Co,Services,"$6,413.58 ",4/25/2017
Calumet City Plumbing Co,Services,$434.98 ,4/28/2017
Calumet City Plumbing Co,Services,"$1,846.75 ",5/12/2017
Calumet City Plumbing Co,Services,$687.53 ,5/23/2017
Calumet City Plumbing Co,Services,$325.59 ,5/26/2017
Calumet City Plumbing Co,Services,"$2,287.56 ",6/13/2017
Calumet City Plumbing Co,Services,$628.00 ,6/23/2017
Calumet City Plumbing Co Inc,Services,$584.47 ,7/28/2017
Calumet City Plumbing Co Inc,Services,$867.13 ,8/8/2017
Calumet City Plumbing Co Inc,Services,"$15,213.41 ",8/22/2017
Calumet City Plumbing Co Inc,Services,"$1,781.68 ",8/25/2017
Calumet City Plumbing Co Inc,Services,$630.00 ,8/29/2017
Calumet City Plumbing Co Inc,Services,$420.59 ,9/1/2017
Calumet City Plumbing Co Inc,Services,"$2,637.36 ",9/7/2017
Calumet City Plumbing Co Inc,Services,"$1,054.93 ",9/15/2017
Calumet City Plumbing Co Inc,Services,"$1,434.00 ",9/26/2017
Calumet City Plumbing Co Inc,Services,"$1,312.49 ",10/6/2017
Calumet City Plumbing Co Inc,Services,"$1,099.00 ",10/27/2017
Calumet City Plumbing Co Inc,Services,$313.20 ,11/3/2017
Calumet City Plumbing Co Inc,Services,$725.54 ,11/10/2017
Calumet City Plumbing Co Inc,Services,$597.00 ,12/1/2017
Calumet City Plumbing Co Inc,Services,"$15,068.00 ",12/8/2017
Calumet City Plumbing Co Inc,Services,"$2,693.00 ",12/22/2017
Calyptus Consulting Group Inc,Services,"$41,321.50 ",7/28/2017
Calyptus Consulting Group Inc,Services,"$32,766.25 ",8/22/2017
Calyptus Consulting Group Inc,Services,"$6,858.00 ",10/10/2017
Calyptus Consulting Group Inc,Services,"$4,290.00 ",11/28/2017
Canteen Refreshment Services,Miscellaneous,$21.00 ,4/4/2017
Canteen Refreshment Services,Miscellaneous,$406.70 ,5/5/2017
Canteen Refreshment Services,Miscellaneous,$224.70 ,6/23/2017
Canteen Refreshment Services,Miscellaneous,$233.30 ,9/7/2017
Canteen Refreshment Services,Miscellaneous,$190.75 ,10/3/2017
Canteen Refreshment Services,Miscellaneous,$21.00 ,11/10/2017
Canteen Refreshment Services,Miscellaneous,$169.75 ,11/14/2017
Carahsoft Technology Corp,Services,"$2,084.45 ",2/17/2017
Carahsoft Technology Corp,Services,"$128,552.40 ",4/7/2017
Carahsoft Technology Corp,Services,"$7,810.47 ",4/21/2017
Carahsoft Technology Corp,Services,"$128,552.40 ",12/22/2017
Cardinal Fence and Supply Inc,Services,"$3,577.00 ",4/28/2017
CareerBuilder Government Solutions LLC,Miscellaneous,"$2,999.00 ",2/14/2017
CareerBuilder Government Solutions LLC,Miscellaneous,$100.00 ,4/14/2017
Careys Heating & Air Conditioning Inc,Services,$196.00 ,1/5/2017
Careys Heating & Air Conditioning Inc,Services,"$1,845.00 ",3/14/2017
Careys Heating & Air Conditioning Inc,Services,$294.00 ,3/31/2017
Careys Heating & Air Conditioning Inc,Services,$823.00 ,4/18/2017
Careys Heating & Air Conditioning Inc,Services,$651.99 ,6/16/2017
Careys Heating & Air Conditioning Inc,Services,"$3,375.00 ",8/4/2017
Careys Heating & Air Conditioning Inc,Services,"$1,738.50 ",10/13/2017
Careys Heating & Air Conditioning Inc,Services,$251.72 ,10/17/2017
Careys Heating & Air Conditioning Inc,Services,$875.00 ,12/8/2017
Carrier Corporation,Services,"$2,914.00 ",2/7/2017
Carrier Corporation,Services,"$2,001.00 ",9/19/2017
Carrier Corporation,Services,"$3,001.00 ",12/8/2017
Carrier Corporation,Services,"$3,002.00 ",12/19/2017
CCH a Wolters Kluwer Business,Services,"$4,250.00 ",10/13/2017
CCH a Wolters Kluwer Business,Services,"$8,500.00 ",10/17/2017
CCH Incorporated,Miscellaneous,$387.52 ,8/11/2017
CDM Smith Inc,Operating,"$45,189.74 ",1/5/2017
CDM Smith Inc,Operating,"$118,261.75 ",5/16/2017
CDM Smith Inc,Equipment,"$18,421.14 ",8/25/2017
CDM Smith Inc,Operating,"$105,062.16 ",8/29/2017
CDM Smith Inc,Equipment,"$40,035.97 ",10/13/2017
CDM Smith Inc,Equipment,"$36,048.19 ",12/8/2017
CDS Office Technologies,Materials and Supplies,$345.00 ,1/20/2017
CDS Office Technologies,Services,$115.00 ,1/20/2017
CDS Office Technologies,Leases and Rentals,"$2,686.20 ",1/24/2017
CDS Office Technologies,Services,"$1,200.00 ",1/24/2017
CDS Office Technologies,Leases and Rentals,"$2,629.49 ",2/10/2017
CDS Office Technologies,Materials and Supplies,$345.00 ,2/21/2017
CDS Office Technologies,Services,$115.00 ,2/21/2017
CDS Office Technologies,Services,"$1,200.00 ",2/28/2017
CDS Office Technologies,Leases and Rentals,"$2,558.07 ",3/7/2017
CDS Office Technologies,Services,"$1,200.00 ",3/10/2017
CDS Office Technologies,Materials and Supplies,$345.00 ,3/17/2017
CDS Office Technologies,Services,"$1,015.00 ",3/17/2017
CDS Office Technologies,Services,"$1,200.00 ",4/4/2017
CDS Office Technologies,Leases and Rentals,"$2,538.30 ",4/18/2017
CDS Office Technologies,Materials and Supplies,$460.00 ,5/5/2017
CDS Office Technologies,Materials and Supplies,$345.00 ,5/16/2017
CDS Office Technologies,Services,$115.00 ,5/16/2017
CDS Office Technologies,Services,"$1,200.00 ",5/26/2017
CDS Office Technologies,Services,$900.00 ,6/27/2017
CDS Office Technologies,Materials and Supplies,$345.00 ,6/30/2017
CDS Office Technologies,Services,$115.00 ,6/30/2017
CDS Office Technologies,Services,"$2,400.00 ",7/14/2017
CDS Office Technologies,Materials and Supplies,$345.00 ,7/18/2017
CDS Office Technologies,Services,$115.00 ,7/18/2017
CDS Office Technologies,Materials and Supplies,$345.00 ,8/15/2017
CDS Office Technologies,Services,$115.00 ,8/15/2017
CDS Office Technologies,Services,"$1,200.00 ",8/18/2017
CDS Office Technologies,Services,$900.00 ,9/12/2017
CDS Office Technologies,Services,"$1,200.00 ",9/15/2017
CDS Office Technologies,Materials and Supplies,$345.00 ,9/19/2017
CDS Office Technologies,Services,$115.00 ,9/19/2017
CDS Office Technologies,Services,"$1,200.00 ",10/13/2017
CDS Office Technologies,Materials and Supplies,$345.00 ,10/20/2017
CDS Office Technologies,Services,$115.00 ,10/20/2017
CDS Office Technologies,Services,"$1,200.00 ",11/14/2017
CDS Office Technologies,Materials and Supplies,$345.00 ,12/1/2017
CDS Office Technologies,Services,$115.00 ,12/1/2017
CDS Office Technologies,Services,$900.00 ,12/8/2017
CDS Office Technologies,Materials and Supplies,$345.00 ,12/15/2017
CDS Office Technologies,Services,$115.00 ,12/15/2017
CDW Government LLC,Services,"$52,184.70 ",1/10/2017
CDW Government LLC,Services,"$499,341.38 ",1/13/2017
CDW Government LLC,Services,"$147,781.00 ",6/27/2017
CDW Government LLC,Services,"$11,637.15 ",9/7/2017
CDW Government LLC,Equipment,"$47,800.00 ",11/7/2017
CDW Government LLC,Services,"$67,647.60 ",12/15/2017
CDW Government LLC,Services,"$281,958.13 ",12/22/2017
CenterPoint Energy Services Inc,Fuel/Parts Inventory,"$11,633.70 ",1/5/2017
CenterPoint Energy Services Inc,Utilities,"$32,459.16 ",1/5/2017
CenterPoint Energy Services Inc,Utilities,"$2,188.00 ",1/24/2017
CenterPoint Energy Services Inc,Fuel/Parts Inventory,"$11,005.50 ",1/31/2017
CenterPoint Energy Services Inc,Utilities,"$70,098.66 ",1/31/2017
CenterPoint Energy Services Inc,Fuel/Parts Inventory,"$6,672.85 ",2/24/2017
CenterPoint Energy Services Inc,Utilities,"$91,492.27 ",2/24/2017
CenterPoint Energy Services Inc,Fuel/Parts Inventory,"$7,098.08 ",3/24/2017
CenterPoint Energy Services Inc,Utilities,"$54,218.93 ",3/24/2017
CenterPoint Energy Services Inc,Fuel/Parts Inventory,"$5,601.55 ",4/18/2017
CenterPoint Energy Services Inc,Utilities,"$42,982.30 ",5/5/2017
CenterPoint Energy Services Inc,Utilities,"$17,766.20 ",5/19/2017
CenterPoint Energy Services Inc,Fuel/Parts Inventory,"$10,716.62 ",6/1/2017
CenterPoint Energy Services Inc,Fuel/Parts Inventory,"$14,719.77 ",6/27/2017
CenterPoint Energy Services Inc,Utilities,"$12,098.79 ",6/27/2017
CenterPoint Energy Services Inc,Utilities,$544.60 ,6/30/2017
CenterPoint Energy Services Inc,Fuel/Parts Inventory,"$25,892.24 ",7/21/2017
CenterPoint Energy Services Inc,Utilities,"$2,119.60 ",7/28/2017
CenterPoint Energy Services Inc,Fuel/Parts Inventory,"$27,456.47 ",8/18/2017
CenterPoint Energy Services Inc,Utilities,"$1,536.91 ",8/25/2017
CenterPoint Energy Services Inc,Fuel/Parts Inventory,"$29,331.69 ",9/22/2017
CenterPoint Energy Services Inc,Utilities,"$1,780.39 ",9/29/2017
CenterPoint Energy Services Inc,Utilities,"$2,188.88 ",10/13/2017
CenterPoint Energy Services Inc,Fuel/Parts Inventory,"$30,196.92 ",10/27/2017
CenterPoint Energy Services Inc,Fuel/Parts Inventory,"$37,561.21 ",11/17/2017
CenterPoint Energy Services Inc,Utilities,"$11,965.98 ",11/28/2017
CenterPoint Energy Services Inc,Fuel/Parts Inventory,"$42,496.58 ",12/28/2017
Central States Bus Sales Inc,Vehicle,"$286,386.00 ",1/13/2017
Central States Bus Sales Inc,Vehicle,"$286,386.00 ",1/17/2017
Central States Bus Sales Inc,Vehicle,"$501,175.50 ",1/27/2017
Central States Bus Sales Inc,Vehicle,"$565,612.35 ",2/10/2017
Central States Bus Sales Inc,Vehicle,"$7,159.65 ",2/14/2017
Central States Bus Sales Inc,Vehicle,"$357,982.50 ",2/24/2017
Central States Bus Sales Inc,Vehicle,"$214,789.50 ",3/17/2017
Central States Bus Sales Inc,Vehicle,"$286,386.00 ",4/14/2017
Certif-A-Gift,Services,"$2,225.00 ",1/5/2017
Certif-A-Gift,Services,$500.00 ,1/17/2017
Certif-A-Gift,Services,$500.00 ,2/24/2017
Certif-A-Gift,Services,$500.00 ,3/31/2017
Certif-A-Gift,Services,$225.00 ,4/18/2017
Certif-A-Gift,Services,$725.00 ,5/23/2017
Certif-A-Gift,Services,$375.00 ,6/1/2017
Certif-A-Gift,Services,$600.00 ,7/21/2017
Certif-A-Gift,Services,"$1,375.00 ",8/29/2017
Certif-A-Gift,Services,$875.00 ,9/7/2017
Certif-A-Gift,Services,"$1,000.00 ",9/22/2017
Certif-A-Gift,Services,$500.00 ,9/26/2017
Certif-A-Gift,Services,$500.00 ,11/17/2017
Certif-A-Gift,Services,$375.00 ,12/5/2017
Certif-A-Gift,Services,$500.00 ,12/22/2017
Chandler Services Inc,Services,"$3,374.57 ",1/13/2017
Chandler Services Inc,Equipment,"$69,335.00 ",1/17/2017
Chandler Services Inc,Equipment,"$69,335.00 ",1/27/2017
Chandler Services Inc,Services,$668.50 ,2/3/2017
Chandler Services Inc,Equipment,"$69,335.00 ",2/10/2017
Chandler Services Inc,Services,"$1,828.91 ",2/17/2017
Chandler Services Inc,Equipment,"$69,335.00 ",2/24/2017
Chandler Services Inc,Services,"$3,779.03 ",3/10/2017
Chandler Services Inc,Equipment,"$69,335.00 ",3/14/2017
Chandler Services Inc,Casualty and Liability,"$19,116.04 ",3/28/2017
Chandler Services Inc,Casualty and Liability,"$9,902.61 ",3/31/2017
Chandler Services Inc,Services,$535.50 ,4/7/2017
Chandler Services Inc,Services,$860.00 ,4/18/2017
Chandler Services Inc,Equipment,"$69,335.00 ",4/21/2017
Chandler Services Inc,Casualty and Liability,"$26,419.66 ",5/5/2017
Chandler Services Inc,Equipment,"$69,335.00 ",5/5/2017
Chandler Services Inc,Casualty and Liability,"$4,061.94 ",5/12/2017
Chandler Services Inc,Equipment,"$69,335.00 ",5/16/2017
Chandler Services Inc,Services,"$12,165.17 ",5/16/2017
Chandler Services Inc,Services,"$1,297.16 ",5/23/2017
Chandler Services Inc,Equipment,"$69,335.00 ",6/13/2017
Chandler Services Inc,Casualty and Liability,"$2,817.93 ",6/16/2017
Chandler Services Inc,Services,"$3,909.76 ",6/20/2017
Chandler Services Inc,Equipment,"$69,335.00 ",6/23/2017
Chandler Services Inc,Equipment,"$69,335.00 ",7/21/2017
Chandler Services Inc,Equipment,"$69,335.00 ",7/28/2017
Chandler Services Inc,Services,"$12,714.25 ",8/11/2017
Chandler Services Inc,Equipment,"$138,670.00 ",8/22/2017
Chandler Services Inc,Equipment,"$69,335.00 ",9/12/2017
Chandler Services Inc,Casualty and Liability,"$6,173.98 ",10/6/2017
Chandler Services Inc,Services,"$23,701.93 ",10/6/2017
Chandler Services Inc,Casualty and Liability,"$5,883.53 ",10/13/2017
Chandler Services Inc,Equipment,"$69,335.00 ",10/13/2017
Chandler Services Inc,Services,"$12,648.45 ",10/13/2017
Chandler Services Inc,Casualty and Liability,"$7,640.21 ",10/27/2017
Chandler Services Inc,Equipment,"$69,335.00 ",10/27/2017
Chandler Services Inc,Services,"$4,117.93 ",10/27/2017
Chandler Services Inc,Equipment,"$69,335.00 ",11/17/2017
Chandler Services Inc,Casualty and Liability,"$1,700.50 ",11/21/2017
Chandler Services Inc,Services,"$23,953.00 ",12/19/2017
Chandler Services Inc,Services,"$3,803.33 ",12/22/2017
Chandler Services Inc,Casualty and Liability,"$1,346.23 ",12/28/2017
Chandler Services Inc,Equipment,"$69,335.00 ",12/28/2017
Chemex of Northern Il Inc,Fuel/Parts Inventory,$472.50 ,1/13/2017
Chemex of Northern Il Inc,Fuel/Parts Inventory,$675.00 ,1/17/2017
Chemex of Northern Il Inc,Fuel/Parts Inventory,$540.00 ,2/17/2017
Chemex of Northern Il Inc,Fuel/Parts Inventory,$270.00 ,2/21/2017
Chemex of Northern Il Inc,Fuel/Parts Inventory,$445.50 ,2/28/2017
Chemex of Northern Il Inc,Fuel/Parts Inventory,$168.75 ,3/24/2017
Chemex of Northern Il Inc,Fuel/Parts Inventory,$303.75 ,4/14/2017
Chemex of Northern Il Inc,Fuel/Parts Inventory,$445.50 ,4/18/2017
Chemex of Northern Il Inc,Fuel/Parts Inventory,"$2,821.50 ",4/21/2017
Chemex of Northern Il Inc,Fuel/Parts Inventory,"$1,221.75 ",5/12/2017
Chemex of Northern Il Inc,Fuel/Parts Inventory,$270.00 ,6/27/2017
Chemex of Northern Il Inc,Fuel/Parts Inventory,$540.00 ,7/7/2017
Chemex of Northern Il Inc,Fuel/Parts Inventory,"$1,586.25 ",8/1/2017
Chemex of Northern Il Inc,Fuel/Parts Inventory,$540.00 ,9/12/2017
Chemex of Northern Il Inc,Fuel/Parts Inventory,$405.00 ,9/29/2017
Chemex of Northern Il Inc,Fuel/Parts Inventory,$675.00 ,11/3/2017
Chemex of Northern Il Inc,Fuel/Parts Inventory,$540.00 ,11/7/2017
Chemex of Northern Il Inc,Fuel/Parts Inventory,"$2,281.50 ",11/17/2017
Chicago Bar Association,Miscellaneous,$148.00 ,4/18/2017
Chicago Carriage Cab,Purchased Transportation,"$6,526.30 ",1/5/2017
Chicago Carriage Cab,Purchased Transportation,"$1,966.50 ",1/24/2017
Chicago Carriage Cab,Purchased Transportation,"$1,863.20 ",2/3/2017
Chicago Carriage Cab,Purchased Transportation,"$7,845.27 ",2/14/2017
Chicago Carriage Cab,Purchased Transportation,"$3,053.60 ",2/17/2017
Chicago Carriage Cab,Purchased Transportation,"$2,078.81 ",2/28/2017
Chicago Carriage Cab,Purchased Transportation,$841.60 ,3/7/2017
Chicago Carriage Cab,Purchased Transportation,"$3,390.02 ",3/14/2017
Chicago Carriage Cab,Purchased Transportation,"$3,453.40 ",3/21/2017
Chicago Carriage Cab,Purchased Transportation,"$1,473.64 ",3/31/2017
Chicago Carriage Cab,Purchased Transportation,"$1,491.56 ",4/4/2017
Chicago Carriage Cab,Purchased Transportation,"$3,099.75 ",4/7/2017
Chicago Carriage Cab,Purchased Transportation,"$3,067.62 ",4/14/2017
Chicago Carriage Cab,Purchased Transportation,"$1,576.00 ",4/18/2017
Chicago Carriage Cab,Purchased Transportation,"$1,565.34 ",4/21/2017
Chicago Carriage Cab,Purchased Transportation,"$6,032.65 ",5/9/2017
Chicago Carriage Cab,Purchased Transportation,"$5,875.00 ",5/23/2017
Chicago Carriage Cab,Purchased Transportation,"$11,489.97 ",6/23/2017
Chicago Carriage Cab,Purchased Transportation,"$2,835.75 ",6/27/2017
Chicago Carriage Cab,Purchased Transportation,"$6,717.67 ",7/11/2017
Chicago Carriage Cab,Purchased Transportation,"$4,876.53 ",7/21/2017
Chicago Carriage Cab,Purchased Transportation,"$7,679.60 ",7/25/2017
Chicago Carriage Cab,Purchased Transportation,"$4,924.76 ",8/1/2017
Chicago Carriage Cab,Purchased Transportation,"$9,390.16 ",8/22/2017
Chicago Carriage Cab,Purchased Transportation,"$7,720.42 ",9/1/2017
Chicago Carriage Cab,Purchased Transportation,"$5,098.92 ",9/12/2017
Chicago Carriage Cab,Purchased Transportation,"$4,055.31 ",9/29/2017
Chicago Carriage Cab,Purchased Transportation,"$4,125.40 ",10/3/2017
Chicago Carriage Cab,Purchased Transportation,"$11,155.94 ",10/13/2017
Chicago Carriage Cab,Purchased Transportation,"$4,522.07 ",10/20/2017
Chicago Carriage Cab,Purchased Transportation,"$5,196.46 ",10/31/2017
Chicago Carriage Cab,Purchased Transportation,"$3,970.20 ",11/3/2017
Chicago Carriage Cab,Purchased Transportation,"$2,518.65 ",11/10/2017
Chicago Carriage Cab,Purchased Transportation,"$9,558.28 ",12/1/2017
Chicago Carriage Cab,Purchased Transportation,"$12,017.67 ",12/12/2017
Chicago Carriage Cab,Purchased Transportation,"$2,760.89 ",12/19/2017
Chicago Chapter RIMS,Miscellaneous,$350.00 ,4/14/2017
Chicago Communication Systems,Services,$338.00 ,1/13/2017
Chicago Communication Systems,Services,"$1,071.00 ",3/17/2017
Chicago Communication Systems,Services,"$2,434.50 ",4/7/2017
Chicago Communication Systems,Services,$409.50 ,4/14/2017
Chicago Communication Systems,Services,$210.00 ,6/13/2017
Chicago Jazz Publishing & Entertainment,Miscellaneous,$350.00 ,9/7/2017
Chicago Minority Supplier Development Council,Miscellaneous,$850.00 ,1/27/2017
Chicago Power Clean,Services,"$1,275.00 ",7/7/2017
Chicago Power Clean,Services,"$1,275.00 ",9/15/2017
Chicago Red White Cab Co,Purchased Transportation,$42.00 ,2/10/2017
Chicago Southland Chamber of Commerce,Miscellaneous,$700.00 ,10/27/2017
Chicago Transit Authority,Services,$200.00 ,2/14/2017
Chicago United Industries Ltd,Fuel/Parts Inventory,"$1,872.00 ",1/10/2017
Chicago United Industries Ltd,Fuel/Parts Inventory,"$3,978.00 ",1/17/2017
Chicago United Industries Ltd,Fuel/Parts Inventory,"$3,978.00 ",2/10/2017
Chicago United Industries Ltd,Fuel/Parts Inventory,"$9,664.20 ",2/17/2017
Chicago United Industries Ltd,Fuel/Parts Inventory,"$1,872.00 ",2/24/2017
Chicago United Industries Ltd,Materials and Supplies,$946.00 ,3/7/2017
Chicago United Industries Ltd,Fuel/Parts Inventory,"$11,232.00 ",3/24/2017
Chicago United Industries Ltd,Fuel/Parts Inventory,"$1,872.00 ",3/31/2017
Chicago United Industries Ltd,Fuel/Parts Inventory,"$23,236.20 ",4/21/2017
Chicago United Industries Ltd,Fuel/Parts Inventory,"$9,126.00 ",5/19/2017
Chicago United Industries Ltd,Fuel/Parts Inventory,"$8,026.20 ",5/23/2017
Chicago United Industries Ltd,Fuel/Parts Inventory,"$4,680.00 ",6/6/2017
Chicago United Industries Ltd,Fuel/Parts Inventory,"$20,750.00 ",6/27/2017
Chicago United Industries Ltd,Fuel/Parts Inventory,"$1,936.00 ",8/1/2017
Chicago United Industries Ltd,Fuel/Parts Inventory,"$7,574.60 ",8/8/2017
Chicago United Industries Ltd,Fuel/Parts Inventory,"$7,612.00 ",8/15/2017
Chicago United Industries Ltd,Fuel/Parts Inventory,"$7,260.00 ",8/25/2017
Chicago United Industries Ltd,Fuel/Parts Inventory,"$3,872.00 ",9/7/2017
Chicago United Industries Ltd,Fuel/Parts Inventory,"$9,136.60 ",9/12/2017
Chicago United Industries Ltd,Fuel/Parts Inventory,"$23,062.60 ",10/10/2017
Chicago United Industries Ltd,Fuel/Parts Inventory,"$6,512.00 ",11/7/2017
Chicago United Industries Ltd,Materials and Supplies,"$1,010.72 ",11/7/2017
Chicago United Industries Ltd,Fuel/Parts Inventory,"$5,808.00 ",11/17/2017
Chicago United Industries Ltd,Services,"$2,773.13 ",11/17/2017
Chicago United Industries Ltd,Fuel/Parts Inventory,"$1,694.00 ",12/5/2017
Chicago United Industries Ltd,Fuel/Parts Inventory,"$5,544.00 ",12/8/2017
Choose DuPage,Miscellaneous,"$6,250.00 ",6/6/2017
Christopher Haefner,Miscellaneous,$603.46 ,3/24/2017
Cicero Mfg & Supply Company Inc,Materials and Supplies,"$1,821.41 ",6/30/2017
Cicero Mfg & Supply Company Inc,Materials and Supplies,"$1,176.86 ",9/29/2017
Cintas Fire Protection,Miscellaneous,$164.97 ,6/30/2017
Cintas Fire Protection,Miscellaneous,"$1,359.76 ",10/6/2017
Ciorba Group Inc,Building/Bldg Improvement,"$18,376.80 ",2/3/2017
Ciorba Group Inc,Building/Bldg Improvement,"$48,143.12 ",2/10/2017
Ciorba Group Inc,Building/Bldg Improvement,"$31,304.92 ",2/24/2017
Ciorba Group Inc,Building/Bldg Improvement,"$20,749.37 ",3/3/2017
Ciorba Group Inc,Building/Bldg Improvement,"$29,136.82 ",4/11/2017
Ciorba Group Inc,Building/Bldg Improvement,"$23,423.24 ",7/11/2017
Ciorba Group Inc,Building/Bldg Improvement,"$8,471.63 ",8/25/2017
Ciorba Group Inc,Building/Bldg Improvement,"$6,995.40 ",9/12/2017
Ciorba Group Inc,Building/Bldg Improvement,"$11,115.54 ",9/22/2017
Ciorba Group Inc,Building/Bldg Improvement,"$11,180.34 ",11/14/2017
City Colleges of Chicago,Miscellaneous,$295.00 ,10/3/2017
City of Berwyn,Miscellaneous,"$2,792.62 ",3/21/2017
City of Blue Island,Miscellaneous,"$10,495.74 ",3/21/2017
City of Calumet City,Miscellaneous,"$12,590.20 ",3/21/2017
City of Chicago,Building/Bldg Improvement,"$234,700.00 ",6/13/2017
City of Chicago Heights,Services,$73.79 ,1/5/2017
City of Chicago Heights,Services,$87.58 ,1/27/2017
City of Chicago Heights,Services,$67.10 ,2/24/2017
City of Chicago Heights,Miscellaneous,"$14,684.65 ",3/21/2017
City of Chicago Heights,Services,$77.34 ,3/28/2017
City of Chicago Heights,Services,$77.34 ,5/2/2017
City of Chicago Heights,Services,$84.63 ,6/1/2017
City of Chicago Heights,Services,$81.05 ,6/30/2017
City of Chicago Heights,Services,$118.59 ,8/4/2017
City of Chicago Heights,Services,$57.94 ,8/25/2017
City of Chicago Heights,Services,$99.98 ,9/26/2017
City of Chicago Heights,Services,$78.96 ,10/31/2017
City of Chicago Heights,Services,$99.98 ,12/1/2017
City of Crest Hill,Miscellaneous,"$2,094.46 ",3/21/2017
City of Des Plaines,Utilities,"$3,969.96 ",2/3/2017
City of Des Plaines,Utilities,"$4,048.60 ",2/24/2017
City of Des Plaines,Utilities,"$3,368.61 ",4/4/2017
City of Des Plaines,Utilities,"$3,695.98 ",4/25/2017
City of Des Plaines,Utilities,"$3,577.57 ",5/23/2017
City of Des Plaines,Services,$75.00 ,5/26/2017
City of Des Plaines,Utilities,"$4,505.70 ",6/23/2017
City of Des Plaines,Utilities,"$4,276.28 ",7/25/2017
City of Des Plaines,Utilities,"$4,970.00 ",7/28/2017
City of Des Plaines,Utilities,"$3,542.19 ",8/25/2017
City of Des Plaines,Utilities,"$3,929.83 ",9/26/2017
City of Des Plaines,Utilities,"$5,082.85 ",11/3/2017
City of Des Plaines,Services,$300.00 ,11/17/2017
City of Des Plaines,Utilities,"$4,443.38 ",11/28/2017
City of Des Plaines,Utilities,"$4,194.01 ",12/22/2017
City of Elgin,Utilities,$176.39 ,1/17/2017
City of Elgin,Utilities,"$1,757.75 ",1/24/2017
City of Elgin,Utilities,$139.18 ,2/10/2017
City of Elgin,Utilities,"$2,211.60 ",2/21/2017
City of Elgin,Utilities,$130.64 ,3/14/2017
City of Elgin,Utilities,"$1,849.92 ",3/17/2017
City of Elgin,Utilities,$484.20 ,4/18/2017
City of Elgin,Utilities,"$2,092.35 ",4/21/2017
City of Elgin,Utilities,$398.53 ,5/12/2017
City of Elgin,Utilities,"$1,898.48 ",5/19/2017
City of Elgin,Utilities,$81.20 ,6/16/2017
City of Elgin,Utilities,"$1,986.11 ",6/27/2017
City of Elgin,Utilities,$91.64 ,7/11/2017
City of Elgin,Utilities,"$1,966.39 ",7/25/2017
City of Elgin,Utilities,$103.13 ,8/11/2017
City of Elgin,Utilities,"$1,996.31 ",8/22/2017
City of Elgin,Utilities,$102.09 ,9/12/2017
City of Elgin,Utilities,"$1,883.70 ",9/19/2017
City of Elgin,Services,$241.41 ,9/29/2017
City of Elgin,Utilities,$95.26 ,10/17/2017
City of Elgin,Services,$74.77 ,10/20/2017
City of Elgin,Utilities,"$1,866.48 ",10/27/2017
City of Elgin,Services,$64.00 ,11/10/2017
City of Elgin,Utilities,$93.29 ,11/14/2017
City of Elgin,Utilities,"$1,931.09 ",11/28/2017
City of Elgin,Services,$69.91 ,12/12/2017
City of Elgin,Utilities,$102.09 ,12/12/2017
City of Elgin,Utilities,"$1,757.57 ",12/28/2017
City of Evanston,Utilities,"$3,117.44 ",1/24/2017
City of Evanston,Utilities,"$3,116.10 ",3/28/2017
City of Evanston,Utilities,"$3,291.26 ",5/19/2017
City of Evanston,Utilities,"$3,356.82 ",7/18/2017
City of Evanston,Utilities,"$4,547.94 ",9/19/2017
City of Evanston,Services,$110.00 ,10/3/2017
City of Evanston,Utilities,$974.78 ,11/17/2017
City of Harvard,Miscellaneous,$698.15 ,3/21/2017
City of Harvey,Miscellaneous,"$15,359.37 ",3/21/2017
City of Highland Park,Purchased Transportation,"$67,744.08 ",2/3/2017
City of Highland Park,Fuel/Parts Inventory,"$21,919.45 ",3/10/2017
City of Highland Park,Purchased Transportation,"$88,180.19 ",3/10/2017
City of Highland Park,Purchased Transportation,"$78,861.53 ",3/17/2017
City of Highland Park,Purchased Transportation,"$89,288.54 ",5/5/2017
City of Highland Park,Purchased Transportation,"$160,000.20 ",5/19/2017
City of Highland Park,Purchased Transportation,"$148,089.35 ",6/23/2017
City of Highland Park,Purchased Transportation,"$159,787.00 ",7/21/2017
City of Highland Park,Purchased Transportation,"$156,596.55 ",8/18/2017
City of Highland Park,Purchased Transportation,"$116,598.06 ",9/22/2017
City of Highland Park,Purchased Transportation,"$111,407.33 ",10/20/2017
City of Highland Park,Purchased Transportation,"$153,088.43 ",11/17/2017
City of Highland Park,Purchased Transportation,"$70,203.48 ",12/28/2017
City of Hometown,Miscellaneous,"$1,490.07 ",9/29/2017
City of Joliet,Utilities,$969.31 ,1/27/2017
City of Joliet,Utilities,"$1,083.91 ",2/17/2017
City of Joliet,Miscellaneous,"$6,330.26 ",3/21/2017
City of Joliet,Utilities,"$1,180.39 ",3/21/2017
City of Joliet,Utilities,"$1,017.88 ",4/11/2017
City of Joliet,Services,$979.62 ,5/9/2017
City of Joliet,Services,$150.22 ,5/26/2017
City of Joliet,Services,"$1,069.59 ",6/6/2017
City of Joliet,Services,$899.23 ,6/30/2017
City of Joliet,Utilities,"$1,106.52 ",8/4/2017
City of Joliet,Utilities,$899.23 ,8/15/2017
City of Joliet,Utilities,"$1,106.52 ",9/15/2017
City of Joliet,Utilities,"$1,187.78 ",10/17/2017
City of Joliet,Utilities,"$1,064.27 ",11/28/2017
City of Joliet,Utilities,"$1,124.57 ",12/19/2017
City of Lockport,Miscellaneous,"$2,094.46 ",3/21/2017
City of Markham,Utilities,"$2,284.12 ",1/4/2017
City of Markham,Utilities,"$2,693.00 ",1/27/2017
City of Markham,Utilities,"$4,156.36 ",2/28/2017
City of Markham,Miscellaneous,"$6,958.09 ",3/21/2017
City of Markham,Miscellaneous,"$5,641.24 ",3/28/2017
City of Markham,Utilities,"$3,403.16 ",4/28/2017
City of Markham,Utilities,"$2,811.36 ",6/1/2017
City of Markham,Utilities,"$3,263.28 ",6/27/2017
City of Markham,Utilities,"$3,327.84 ",7/28/2017
City of Markham,Utilities,"$3,693.68 ",8/29/2017
City of Markham,Utilities,"$3,424.68 ",9/29/2017
City of Markham,Utilities,"$3,306.32 ",10/27/2017
City of Markham,Utilities,"$3,456.96 ",12/5/2017
City of Markham,Utilities,"$3,596.84 ",12/28/2017
City of McHenry,Services,$270.00 ,1/24/2017
City of McHenry,Miscellaneous,"$1,396.31 ",3/21/2017
City of McHenry,Services,$270.00 ,3/31/2017
City of McHenry,Services,$270.00 ,7/11/2017
City of McHenry,Services,$270.00 ,10/6/2017
City of North Chicago,Miscellaneous,"$4,887.08 ",3/21/2017
City of Oak Forest,Miscellaneous,"$5,585.22 ",3/21/2017
City of Palos Hills,Purchased Transportation,"$1,110.25 ",1/5/2017
City of Palos Hills,Purchased Transportation,"$1,110.25 ",1/20/2017
City of Palos Hills,Purchased Transportation,"$1,378.00 ",2/24/2017
City of Palos Hills,Purchased Transportation,"$1,378.00 ",3/10/2017
City of Palos Hills,Purchased Transportation,"$1,378.00 ",4/4/2017
City of Palos Hills,Purchased Transportation,"$1,373.00 ",5/5/2017
City of Palos Hills,Purchased Transportation,"$1,383.00 ",6/6/2017
City of Palos Hills,Purchased Transportation,"$1,227.00 ",6/30/2017
City of Palos Hills,Purchased Transportation,"$1,389.00 ",8/4/2017
City of Palos Hills,Purchased Transportation,"$1,230.00 ",9/12/2017
City of Palos Hills,Purchased Transportation,$954.00 ,10/10/2017
City of Palos Hills,Purchased Transportation,"$1,119.00 ",11/7/2017
City of Palos Hills,Purchased Transportation,"$1,062.00 ",12/12/2017
City of Park City,Miscellaneous,"$2,885.00 ",3/21/2017
City of Rolling Meadows,Miscellaneous,"$7,679.68 ",3/21/2017
City of Waukegan,Utilities,"$1,233.00 ",1/13/2017
City of Waukegan,Miscellaneous,"$11,868.61 ",3/21/2017
City of Waukegan,Utilities,"$1,484.75 ",4/18/2017
City of Woodstock,Miscellaneous,"$2,792.62 ",3/21/2017
City Service Taxi Association,Purchased Transportation,"$1,142.25 ",1/5/2017
City Service Taxi Association,Purchased Transportation,"$1,133.00 ",2/10/2017
City Service Taxi Association,Purchased Transportation,"$1,399.75 ",2/28/2017
City Service Taxi Association,Purchased Transportation,"$3,077.00 ",4/21/2017
City Service Taxi Association,Purchased Transportation,"$1,302.75 ",5/23/2017
City Service Taxi Association,Purchased Transportation,"$3,374.75 ",6/23/2017
City Service Taxi Association,Purchased Transportation,"$2,746.47 ",7/25/2017
City Service Taxi Association,Purchased Transportation,"$3,359.44 ",8/22/2017
City Service Taxi Association,Purchased Transportation,$60.75 ,9/1/2017
City Service Taxi Association,Purchased Transportation,"$2,723.64 ",9/12/2017
City Service Taxi Association,Purchased Transportation,"$3,335.09 ",10/31/2017
City Service Taxi Association,Purchased Transportation,"$3,204.11 ",11/10/2017
Claims,Claims,($500.00),10/4/2016
Claims,Claims,($300.00),10/25/2016
Claims,Claims,"($20,000.00)",11/4/2016
Claims,Claims,($25.84),11/11/2016
Claims,Claims,"($1,295.00)",12/2/2016
Claims,Claims,($20.44),12/9/2016
Claims,Claims,"$33,278.78 ",1/4/2017
Claims,Claims,"$17,180.78 ",1/5/2017
Claims,Claims,"$41,110.26 ",1/10/2017
Claims,Claims,"$11,522.82 ",1/11/2017
Claims,Claims,"$87,666.20 ",1/13/2017
Claims,Claims,"$11,214.43 ",1/16/2017
Claims,Claims,"$261,657.34 ",1/17/2017
Claims,Claims,"$32,040.76 ",1/18/2017
Claims,Claims,"$51,638.23 ",1/20/2017
Claims,Claims,"$78,462.33 ",1/24/2017
Claims,Claims,"$18,367.55 ",1/27/2017
Claims,Claims,"$702,055.45 ",1/31/2017
Claims,Claims,"$8,965.92 ",2/3/2017
Claims,Claims,"$116,638.73 ",2/7/2017
Claims,Claims,"$4,748.88 ",2/10/2017
Claims,Claims,"$52,399.74 ",2/14/2017
Claims,Claims,"$4,300.00 ",2/17/2017
Claims,Claims,"$7,627.70 ",2/22/2017
Claims,Claims,"$16,464.84 ",2/24/2017
Claims,Claims,"$22,724.68 ",3/1/2017
Claims,Claims,"$20,329.75 ",3/3/2017
Claims,Claims,"$55,917.10 ",3/7/2017
Claims,Claims,"$32,687.23 ",3/10/2017
Claims,Claims,"$38,349.38 ",3/14/2017
Claims,Claims,"$57,616.53 ",3/16/2017
Claims,Claims,"$22,378.98 ",3/17/2017
Claims,Claims,"$14,426.00 ",3/21/2017
Claims,Claims,"$57,026.60 ",3/24/2017
Claims,Claims,"$44,808.62 ",3/28/2017
Claims,Claims,"$918,031.18 ",3/31/2017
Claims,Claims,"$28,451.18 ",4/4/2017
Claims,Claims,"$215,293.16 ",4/5/2017
Claims,Claims,"$3,965.00 ",4/7/2017
Claims,Claims,"$68,823.35 ",4/11/2017
Claims,Claims,"$9,347.92 ",4/14/2017
Claims,Claims,$115.00 ,4/18/2017
Claims,Claims,"$9,118.15 ",4/19/2017
Claims,Claims,"$18,608.05 ",4/21/2017
Claims,Claims,"$96,668.25 ",4/25/2017
Claims,Claims,"$27,405.91 ",4/26/2017
Claims,Claims,"$72,299.05 ",4/28/2017
Claims,Claims,"$116,872.41 ",5/2/2017
Claims,Claims,"$2,962.80 ",5/5/2017
Claims,Claims,"$79,129.59 ",5/9/2017
Claims,Claims,"$28,976.96 ",5/12/2017
Claims,Claims,"$77,407.76 ",5/16/2017
Claims,Claims,"$11,498.40 ",5/19/2017
Claims,Claims,"$102,439.19 ",5/23/2017
Claims,Claims,"$15,760.68 ",5/26/2017
Claims,Claims,"$22,513.04 ",6/1/2017
Claims,Claims,"$69,438.67 ",6/6/2017
Claims,Claims,"$31,474.49 ",6/9/2017
Claims,Claims,"$56,729.89 ",6/13/2017
Claims,Claims,"$5,273.26 ",6/16/2017
Claims,Claims,"$77,599.27 ",6/20/2017
Claims,Claims,"$21,704.55 ",6/23/2017
Claims,Claims,"$6,494.92 ",6/27/2017
Claims,Claims,"$12,125.00 ",6/30/2017
Claims,Claims,"$30,429.48 ",7/3/2017
Claims,Claims,"$1,355.00 ",7/7/2017
Claims,Claims,"$11,821.94 ",7/11/2017
Claims,Claims,"$54,155.78 ",7/14/2017
Claims,Claims,"$27,063.55 ",7/18/2017
Claims,Claims,"$14,173.58 ",7/25/2017
Claims,Claims,"$32,054.29 ",7/28/2017
Claims,Claims,"$69,866.27 ",8/1/2017
Claims,Claims,"$3,172.88 ",8/4/2017
Claims,Claims,"$18,350.17 ",8/8/2017
Claims,Claims,"$62,670.07 ",8/9/2017
Claims,Claims,"$31,465.72 ",8/11/2017
Claims,Claims,"$63,076.62 ",8/15/2017
Claims,Claims,"$14,670.97 ",8/22/2017
Claims,Claims,"$146,338.78 ",8/25/2017
Claims,Claims,"$28,507.70 ",8/28/2017
Claims,Claims,"$9,591.22 ",8/29/2017
Claims,Claims,"$301,014.76 ",8/30/2017
Claims,Claims,"$2,070.10 ",9/1/2017
Claims,Claims,"$23,036.78 ",9/6/2017
Claims,Claims,"$175,114.38 ",9/12/2017
Claims,Claims,"$39,110.57 ",9/15/2017
Claims,Claims,"$12,415.37 ",9/19/2017
Claims,Claims,"$27,558.21 ",9/22/2017
Claims,Claims,"$94,721.36 ",9/26/2017
Claims,Claims,"$11,666.93 ",9/29/2017
Claims,Claims,"$17,661.59 ",10/4/2017
Claims,Claims,"$7,245.30 ",10/6/2017
Claims,Claims,"$30,775.53 ",10/11/2017
Claims,Claims,"$15,585.55 ",10/13/2017
Claims,Claims,"$10,154.00 ",10/17/2017
Claims,Claims,"$15,556.38 ",10/18/2017
Claims,Claims,"$3,236.49 ",10/20/2017
Claims,Claims,"$1,235.20 ",10/24/2017
Claims,Claims,"$22,458.76 ",10/25/2017
Claims,Claims,"$8,297.40 ",10/27/2017
Claims,Claims,"$33,967.75 ",10/31/2017
Claims,Claims,"$39,053.97 ",11/1/2017
Claims,Claims,"$76,533.99 ",11/3/2017
Claims,Claims,"$19,996.37 ",11/8/2017
Claims,Claims,"$3,890.79 ",11/10/2017
Claims,Claims,"$605,594.97 ",11/14/2017
Claims,Claims,"$25,964.30 ",11/17/2017
Claims,Claims,"$52,773.53 ",11/20/2017
Claims,Claims,"$1,164.55 ",11/21/2017
Claims,Claims,"$135,487.79 ",11/28/2017
Claims,Claims,"$13,166.99 ",11/29/2017
Claims,Claims,"$60,689.04 ",12/1/2017
Claims,Claims,"$443,454.55 ",12/5/2017
Claims,Claims,"$40,235.60 ",12/6/2017
Claims,Claims,"$19,049.85 ",12/8/2017
Claims,Claims,"$6,364.50 ",12/12/2017
Claims,Claims,"$11,849.49 ",12/13/2017
Claims,Claims,"$23,753.57 ",12/15/2017
Claims,Claims,"$9,191.42 ",12/18/2017
Claims,Claims,"$9,208.26 ",12/19/2017
Claims,Claims,"$29,645.89 ",12/21/2017
Clark Dietz Inc,Building/Bldg Improvement,"$106,070.44 ",3/3/2017
Clarke Power Services Inc,Fuel/Parts Inventory,"$5,763.16 ",1/13/2017
Clarke Power Services Inc,Fuel/Parts Inventory,$486.92 ,1/20/2017
Clarke Power Services Inc,Fuel/Parts Inventory,$121.18 ,1/27/2017
Clarke Power Services Inc,Fuel/Parts Inventory,"$3,798.24 ",2/3/2017
Clarke Power Services Inc,Fuel/Parts Inventory,"$1,468.98 ",2/7/2017
Clarke Power Services Inc,Fuel/Parts Inventory,"$1,689.55 ",2/17/2017
Clarke Power Services Inc,Materials and Supplies,$15.43 ,2/17/2017
Clarke Power Services Inc,Fuel/Parts Inventory,"$7,742.22 ",2/28/2017
Clarke Power Services Inc,Fuel/Parts Inventory,"$2,114.25 ",3/7/2017
Clarke Power Services Inc,Fuel/Parts Inventory,"$1,620.66 ",3/10/2017
Clarke Power Services Inc,Fuel/Parts Inventory,$640.00 ,3/14/2017
Clarke Power Services Inc,Fuel/Parts Inventory,$56.34 ,3/24/2017
Clarke Power Services Inc,Fuel/Parts Inventory,"$4,934.82 ",4/7/2017
Clarke Power Services Inc,Fuel/Parts Inventory,"$4,578.01 ",4/21/2017
Clarke Power Services Inc,Fuel/Parts Inventory,"$1,324.57 ",5/12/2017
Clarke Power Services Inc,Fuel/Parts Inventory,"$3,632.81 ",5/16/2017
Clarke Power Services Inc,Fuel/Parts Inventory,$53.00 ,5/23/2017
Clarke Power Services Inc,Fuel/Parts Inventory,$156.00 ,6/6/2017
Clarke Power Services Inc,Fuel/Parts Inventory,"$1,230.68 ",6/27/2017
Clarke Power Services Inc,Fuel/Parts Inventory,"$2,467.62 ",7/28/2017
Clarke Power Services Inc,Fuel/Parts Inventory,$567.00 ,8/1/2017
Clarke Power Services Inc,Fuel/Parts Inventory,"$2,691.39 ",8/25/2017
Clarke Power Services Inc,Fuel/Parts Inventory,$111.85 ,9/26/2017
Clarke Power Services Inc,Services,"$43,281.00 ",9/26/2017
Clarke Power Services Inc,Fuel/Parts Inventory,$817.54 ,9/29/2017
Clarke Power Services Inc,Fuel/Parts Inventory,$284.64 ,11/7/2017
Clauss ADR Inc,Services,$750.00 ,11/10/2017
Clear Height Properties Lively LLC,Leases and Rentals,"$5,971.25 ",1/5/2017
Clear Height Properties Lively LLC,Leases and Rentals,"$5,971.25 ",2/10/2017
Clear Height Properties Lively LLC,Leases and Rentals,"$6,148.33 ",2/28/2017
Clear Height Properties Lively LLC,Leases and Rentals,"$6,148.33 ",3/28/2017
Clear Height Properties Lively LLC,Leases and Rentals,"$6,148.33 ",4/28/2017
Clear Height Properties Lively LLC,Leases and Rentals,"$6,148.33 ",5/26/2017
Clear Height Properties Lively LLC,Leases and Rentals,"$6,148.33 ",7/7/2017
Clear Height Properties Lively LLC,Leases and Rentals,"$6,148.33 ",7/21/2017
Clear Height Properties Lively LLC,Leases and Rentals,"$6,148.33 ",8/22/2017
Clear Height Properties Lively LLC,Leases and Rentals,"$6,148.33 ",9/22/2017
Clear Height Properties Lively LLC,Leases and Rentals,"$6,148.33 ",11/3/2017
Clear Height Properties Lively LLC,Leases and Rentals,"$6,148.33 ",11/28/2017
Clever Devices Ltd,Services,"$11,500.00 ",3/3/2017
Clever Devices Ltd,Services,"$5,070.00 ",4/25/2017
Clever Devices Ltd,Services,"$51,714.00 ",5/12/2017
Coffman Truck Sales Inc,Services,$107.50 ,1/13/2017
Coffman Truck Sales Inc,Services,$86.00 ,2/10/2017
Coffman Truck Sales Inc,Services,$43.00 ,2/21/2017
Coffman Truck Sales Inc,Services,$64.00 ,2/28/2017
Coffman Truck Sales Inc,Services,$129.00 ,3/10/2017
Coffman Truck Sales Inc,Services,$130.00 ,4/21/2017
Coffman Truck Sales Inc,Services,$43.00 ,5/9/2017
Coffman Truck Sales Inc,Services,$21.50 ,5/16/2017
Coffman Truck Sales Inc,Services,$128.50 ,5/23/2017
Coffman Truck Sales Inc,Services,$43.00 ,6/1/2017
Coffman Truck Sales Inc,Services,$86.00 ,6/27/2017
Coffman Truck Sales Inc,Services,$21.50 ,7/21/2017
Coffman Truck Sales Inc,Services,$150.50 ,7/28/2017
Coffman Truck Sales Inc,Services,$21.50 ,8/4/2017
Coffman Truck Sales Inc,Services,$86.00 ,8/22/2017
Coffman Truck Sales Inc,Services,$193.50 ,9/12/2017
Coffman Truck Sales Inc,Services,$750.00 ,10/10/2017
Coffman Truck Sales Inc,Services,$172.50 ,10/13/2017
Coffman Truck Sales Inc,Services,$150.00 ,11/17/2017
Coffman Truck Sales Inc,Services,$129.00 ,12/12/2017
Colley Elevator Co,Services,$155.00 ,8/29/2017
Colley Elevator Co,Services,$155.00 ,12/8/2017
Combined Charities Campaign,Fringe Benefits,$270.50 ,12/15/2017
Combined Sales Company,Materials and Supplies,$937.50 ,1/13/2017
Combined Sales Company,Materials and Supplies,$436.00 ,2/24/2017
Combined Sales Company,Materials and Supplies,$937.50 ,3/7/2017
Combined Sales Company,Materials and Supplies,$937.50 ,5/12/2017
Combined Sales Company,Materials and Supplies,$187.50 ,5/23/2017
Combined Sales Company,Services,$249.75 ,5/26/2017
Combined Sales Company,Materials and Supplies,$473.76 ,6/1/2017
Combined Sales Company,Materials and Supplies,"$1,125.00 ",7/7/2017
Combined Sales Company,Services,$262.20 ,8/1/2017
Combined Sales Company,Materials and Supplies,"$1,125.00 ",9/12/2017
Combined Sales Company,Materials and Supplies,"$1,849.00 ",10/10/2017
Combined Sales Company,Services,$262.20 ,11/10/2017
Comcast,Services,$129.65 ,1/10/2017
Comcast,Utilities,$131.44 ,1/10/2017
Comcast,Utilities,$354.42 ,1/20/2017
Comcast,Services,$145.94 ,1/27/2017
Comcast,Utilities,$114.80 ,1/27/2017
Comcast,Services,$114.90 ,2/17/2017
Comcast,Utilities,$354.42 ,2/21/2017
Comcast,Services,$286.15 ,3/17/2017
Comcast,Utilities,$485.82 ,3/17/2017
Comcast,Services,$278.61 ,3/31/2017
Comcast,Services,$529.19 ,4/4/2017
Comcast,Utilities,$114.80 ,4/4/2017
Comcast,Utilities,$354.74 ,4/18/2017
Comcast,Services,$344.70 ,5/5/2017
Comcast,Services,$927.84 ,5/9/2017
Comcast,Services,$566.72 ,5/16/2017
Comcast,Utilities,$354.74 ,5/16/2017
Comcast,Services,$290.71 ,5/26/2017
Comcast,Services,$125.72 ,6/1/2017
Comcast,Utilities,$125.72 ,6/1/2017
Comcast,Utilities,$354.74 ,6/16/2017
Comcast,Services,$12.35 ,6/20/2017
Comcast,Services,$245.37 ,6/27/2017
Comcast,Utilities,$130.47 ,6/27/2017
Comcast,Services,$278.62 ,7/14/2017
Comcast,Utilities,$356.13 ,7/21/2017
Comcast,Services,$342.14 ,7/25/2017
Comcast,Services,$114.90 ,7/28/2017
Comcast,Services,$126.03 ,8/1/2017
Comcast,Utilities,$126.03 ,8/1/2017
Comcast,Services,$444.94 ,8/18/2017
Comcast,Utilities,$356.31 ,8/18/2017
Comcast,Services,$125.98 ,8/25/2017
Comcast,Utilities,$125.98 ,8/25/2017
Comcast,Services,$114.90 ,8/29/2017
Comcast,Utilities,$356.31 ,9/19/2017
Comcast,Services,$444.94 ,9/22/2017
Comcast,Services,$125.98 ,9/26/2017
Comcast,Utilities,$125.98 ,9/26/2017
Comcast,Services,$114.90 ,10/13/2017
Comcast,Utilities,$357.05 ,10/17/2017
Comcast,Services,$278.60 ,10/20/2017
Comcast,Services,$241.05 ,10/27/2017
Comcast,Utilities,$126.14 ,10/27/2017
Comcast,Services,$166.30 ,11/3/2017
Comcast,Services,$261.45 ,11/17/2017
Comcast,Services,$89.07 ,11/21/2017
Comcast,Services,$301.96 ,11/28/2017
Comcast,Utilities,$126.14 ,11/28/2017
Comcast,Services,$571.35 ,12/28/2017
Comcast,Utilities,$840.24 ,12/28/2017
Commercial Tire Services Inc,Services,"$2,500.00 ",1/13/2017
Commercial Tire Services Inc,Services,"$2,500.00 ",2/17/2017
Commercial Tire Services Inc,Services,"$2,500.00 ",3/10/2017
Commercial Tire Services Inc,Services,"$2,450.00 ",4/21/2017
Commercial Tire Services Inc,Services,"$2,450.00 ",5/12/2017
Commercial Tire Services Inc,Services,"$2,450.00 ",6/27/2017
Commercial Tire Services Inc,Services,"$2,450.00 ",8/1/2017
Commercial Tire Services Inc,Services,"$2,500.00 ",8/8/2017
Commonwealth Edison,Services,"$3,709.22 ",1/5/2017
Commonwealth Edison,Utilities,"$20,694.83 ",1/5/2017
Commonwealth Edison,Services,$452.54 ,1/10/2017
Commonwealth Edison,Utilities,"$12,831.94 ",1/10/2017
Commonwealth Edison,Utilities,"$20,222.44 ",1/13/2017
Commonwealth Edison,Services,$93.31 ,1/17/2017
Commonwealth Edison,Utilities,"$10,084.39 ",1/20/2017
Commonwealth Edison,Services,"$2,464.09 ",1/24/2017
Commonwealth Edison,Utilities,"$27,787.89 ",1/24/2017
Commonwealth Edison,Equipment,"$70,000.00 ",1/27/2017
Commonwealth Edison,Services,$335.89 ,1/27/2017
Commonwealth Edison,Utilities,"$2,377.42 ",1/31/2017
Commonwealth Edison,Services,"$2,051.35 ",2/3/2017
Commonwealth Edison,Utilities,$32.23 ,2/3/2017
Commonwealth Edison,Utilities,$587.83 ,2/7/2017
Commonwealth Edison,Services,$169.45 ,2/10/2017
Commonwealth Edison,Utilities,"$1,783.97 ",2/10/2017
Commonwealth Edison,Utilities,"$25,699.60 ",2/14/2017
Commonwealth Edison,Services,$290.73 ,2/17/2017
Commonwealth Edison,Utilities,"$26,959.82 ",2/17/2017
Commonwealth Edison,Services,"$1,861.80 ",2/21/2017
Commonwealth Edison,Utilities,"$15,653.02 ",2/24/2017
Commonwealth Edison,Equipment,"$9,720.88 ",2/28/2017
Commonwealth Edison,Services,$816.93 ,2/28/2017
Commonwealth Edison,Utilities,"$20,412.66 ",2/28/2017
Commonwealth Edison,Services,$111.58 ,3/3/2017
Commonwealth Edison,Utilities,"$7,873.63 ",3/3/2017
Commonwealth Edison,Services,"$1,778.74 ",3/10/2017
Commonwealth Edison,Utilities,"$5,456.54 ",3/10/2017
Commonwealth Edison,Services,$360.69 ,3/14/2017
Commonwealth Edison,Utilities,"$7,142.02 ",3/14/2017
Commonwealth Edison,Services,$248.58 ,3/17/2017
Commonwealth Edison,Utilities,"$9,902.06 ",3/17/2017
Commonwealth Edison,Services,"$1,511.29 ",3/21/2017
Commonwealth Edison,Utilities,"$8,704.51 ",3/21/2017
Commonwealth Edison,Services,$454.36 ,3/24/2017
Commonwealth Edison,Utilities,"$28,161.10 ",3/24/2017
Commonwealth Edison,Utilities,"$15,440.72 ",3/28/2017
Commonwealth Edison,Utilities,"$2,240.07 ",3/31/2017
Commonwealth Edison,Services,"$2,152.04 ",4/4/2017
Commonwealth Edison,Utilities,$409.41 ,4/4/2017
Commonwealth Edison,Services,$483.09 ,4/7/2017
Commonwealth Edison,Utilities,"$15,241.60 ",4/14/2017
Commonwealth Edison,Services,$193.20 ,4/18/2017
Commonwealth Edison,Utilities,"$27,929.53 ",4/18/2017
Commonwealth Edison,Services,"$1,593.84 ",4/21/2017
Commonwealth Edison,Utilities,"$18,522.33 ",4/21/2017
Commonwealth Edison,Utilities,"$1,626.52 ",4/25/2017
Commonwealth Edison,Services,$143.86 ,4/28/2017
Commonwealth Edison,Utilities,"$16,112.25 ",4/28/2017
Commonwealth Edison,Utilities,"$2,215.52 ",5/5/2017
Commonwealth Edison,Services,"$1,912.32 ",5/9/2017
Commonwealth Edison,Utilities,$731.17 ,5/9/2017
Commonwealth Edison,Utilities,"$8,331.40 ",5/12/2017
Commonwealth Edison,Services,$172.07 ,5/16/2017
Commonwealth Edison,Utilities,"$8,375.55 ",5/16/2017
Commonwealth Edison,Utilities,"$38,119.67 ",5/19/2017
Commonwealth Edison,Services,"$1,280.71 ",5/23/2017
Commonwealth Edison,Utilities,"$3,701.18 ",5/23/2017
Commonwealth Edison,Utilities,"$15,404.29 ",5/26/2017
Commonwealth Edison,Services,"$1,470.48 ",6/1/2017
Commonwealth Edison,Utilities,$447.59 ,6/1/2017
Commonwealth Edison,Services,$325.42 ,6/6/2017
Commonwealth Edison,Utilities,"$4,432.72 ",6/6/2017
Commonwealth Edison,Utilities,"$4,401.63 ",6/9/2017
Commonwealth Edison,Utilities,"$28,576.41 ",6/13/2017
Commonwealth Edison,Utilities,"$6,283.88 ",6/16/2017
Commonwealth Edison,Services,"$1,556.71 ",6/20/2017
Commonwealth Edison,Utilities,"$10,635.79 ",6/20/2017
Commonwealth Edison,Utilities,"$28,965.91 ",6/23/2017
Commonwealth Edison,Utilities,"$4,394.02 ",6/27/2017
Commonwealth Edison,Services,$309.03 ,6/30/2017
Commonwealth Edison,Utilities,$532.76 ,6/30/2017
Commonwealth Edison,Services,"$1,849.29 ",7/7/2017
Commonwealth Edison,Utilities,"$4,809.90 ",7/7/2017
Commonwealth Edison,Services,$551.76 ,7/11/2017
Commonwealth Edison,Utilities,"$11,799.73 ",7/11/2017
Commonwealth Edison,Utilities,"$3,866.67 ",7/14/2017
Commonwealth Edison,Services,$66.25 ,7/18/2017
Commonwealth Edison,Utilities,"$12,906.64 ",7/18/2017
Commonwealth Edison,Utilities,"$25,685.27 ",7/21/2017
Commonwealth Edison,Utilities,"$12,729.66 ",7/25/2017
Commonwealth Edison,Services,$814.14 ,7/28/2017
Commonwealth Edison,Utilities,"$22,935.01 ",7/28/2017
Commonwealth Edison,Services,"$1,726.16 ",8/4/2017
Commonwealth Edison,Utilities,$549.29 ,8/4/2017
Commonwealth Edison,Utilities,"$8,950.57 ",8/8/2017
Commonwealth Edison,Utilities,"$8,320.37 ",8/11/2017
Commonwealth Edison,Services,$445.54 ,8/15/2017
Commonwealth Edison,Utilities,"$41,658.34 ",8/18/2017
Commonwealth Edison,Services,$185.89 ,8/22/2017
Commonwealth Edison,Services,$776.59 ,8/25/2017
Commonwealth Edison,Utilities,"$24,036.85 ",8/25/2017
Commonwealth Edison,Services,$405.23 ,8/29/2017
Commonwealth Edison,Utilities,"$11,093.74 ",8/29/2017
Commonwealth Edison,Services,"$1,506.26 ",9/1/2017
Commonwealth Edison,Utilities,"$4,728.45 ",9/1/2017
Commonwealth Edison,Services,$363.62 ,9/7/2017
Commonwealth Edison,Utilities,"$3,779.48 ",9/7/2017
Commonwealth Edison,Services,$591.35 ,9/12/2017
Commonwealth Edison,Utilities,"$9,838.38 ",9/12/2017
Commonwealth Edison,Utilities,"$15,338.62 ",9/15/2017
Commonwealth Edison,Services,$572.56 ,9/19/2017
Commonwealth Edison,Utilities,"$7,775.27 ",9/19/2017
Commonwealth Edison,Utilities,"$22,647.65 ",9/22/2017
Commonwealth Edison,Services,"$1,694.38 ",9/26/2017
Commonwealth Edison,Utilities,$850.71 ,9/29/2017
Commonwealth Edison,Utilities,"$3,607.72 ",10/3/2017
Commonwealth Edison,Services,$648.73 ,10/6/2017
Commonwealth Edison,Utilities,"$1,753.11 ",10/6/2017
Commonwealth Edison,Utilities,"$32,754.83 ",10/10/2017
Commonwealth Edison,Utilities,"$18,486.77 ",10/17/2017
Commonwealth Edison,Utilities,"$24,564.82 ",10/20/2017
Commonwealth Edison,Services,"$1,026.29 ",10/27/2017
Commonwealth Edison,Utilities,$31.91 ,10/27/2017
Commonwealth Edison,Utilities,$700.38 ,10/31/2017
Commonwealth Edison,Utilities,"$7,182.16 ",11/3/2017
Commonwealth Edison,Utilities,"$10,271.20 ",11/7/2017
Commonwealth Edison,Services,"$2,932.15 ",11/10/2017
Commonwealth Edison,Utilities,"$30,075.02 ",11/10/2017
Commonwealth Edison,Utilities,"$27,830.10 ",11/14/2017
Commonwealth Edison,Services,$288.97 ,11/17/2017
Commonwealth Edison,Utilities,"$1,612.18 ",11/17/2017
Commonwealth Edison,Utilities,"$2,186.32 ",11/21/2017
Commonwealth Edison,Services,"$3,044.80 ",11/28/2017
Commonwealth Edison,Utilities,$516.83 ,11/28/2017
Commonwealth Edison,Services,$203.61 ,12/1/2017
Commonwealth Edison,Utilities,"$24,861.48 ",12/1/2017
Commonwealth Edison,Utilities,"$7,541.58 ",12/5/2017
Commonwealth Edison,Utilities,"$10,182.74 ",12/8/2017
Commonwealth Edison,Services,"$1,835.21 ",12/12/2017
Commonwealth Edison,Utilities,"$35,780.09 ",12/12/2017
Commonwealth Edison,Utilities,"$4,282.38 ",12/15/2017
Commonwealth Edison,Utilities,"$5,554.28 ",12/19/2017
Commonwealth Edison,Services,$668.33 ,12/22/2017
Commonwealth Edison,Utilities,"$23,753.91 ",12/22/2017
Commonwealth Edison,Services,"$3,193.05 ",12/28/2017
Commonwealth Edison,Utilities,$100.61 ,12/28/2017
Computer Training Source Inc,Services,$299.00 ,7/11/2017
Concentra Medical Center,Services,$433.00 ,1/10/2017
Concentra Medical Center,Services,$144.00 ,1/13/2017
Concentra Medical Center,Services,$289.00 ,1/20/2017
Concentra Medical Center,Services,$360.00 ,1/27/2017
Concentra Medical Center,Services,$30.00 ,2/7/2017
Concentra Medical Center,Services,$217.00 ,2/14/2017
Concentra Medical Center,Services,$252.50 ,3/3/2017
Concentra Medical Center,Services,$325.50 ,3/10/2017
Concentra Medical Center,Services,$108.50 ,3/14/2017
Concentra Medical Center,Services,$108.50 ,3/24/2017
Concentra Medical Center,Services,$289.00 ,3/28/2017
Concentra Medical Center,Services,$217.00 ,4/7/2017
Concentra Medical Center,Services,$72.00 ,4/14/2017
Concentra Medical Center,Services,$542.50 ,4/18/2017
Concentra Medical Center,Services,$108.50 ,4/28/2017
Concentra Medical Center,Services,$434.00 ,5/5/2017
Concentra Medical Center,Services,$72.00 ,5/9/2017
Concentra Medical Center,Services,$434.00 ,5/16/2017
Concentra Medical Center,Services,$325.50 ,5/26/2017
Concentra Medical Center,Services,$72.00 ,6/27/2017
Concentra Medical Center,Services,$217.00 ,7/14/2017
Concentra Medical Center,Services,$108.50 ,7/28/2017
Concentra Medical Center,Services,$325.50 ,8/1/2017
Concentra Medical Center,Services,$72.00 ,8/8/2017
Concentra Medical Center,Services,$542.50 ,8/18/2017
Concentra Medical Center,Services,$108.50 ,8/25/2017
Concentra Medical Center,Services,$180.50 ,8/29/2017
Concentra Medical Center,Services,$325.50 ,9/12/2017
Concentra Medical Center,Services,$108.50 ,9/22/2017
Concentra Medical Center,Services,$217.00 ,9/29/2017
Concentra Medical Center,Services,$217.00 ,10/10/2017
Concentra Medical Center,Services,$614.50 ,10/27/2017
Concentra Medical Center,Services,$434.00 ,10/31/2017
Concentra Medical Center,Services,$217.00 ,11/10/2017
Concentra Medical Center,Services,$434.00 ,11/14/2017
Concentra Medical Center,Services,$614.50 ,11/28/2017
Concentra Medical Center,Services,$386.00 ,12/5/2017
Concentra Medical Center,Services,$361.00 ,12/19/2017
Concentra Medical Center,Services,$30.00 ,12/22/2017
Concentra Medical Centers  Occupational,Services,$738.50 ,1/10/2017
Concentra Medical Centers  Occupational,Services,$62.50 ,1/13/2017
Concentra Medical Centers  Occupational,Services,$217.00 ,1/17/2017
Concentra Medical Centers  Occupational,Services,$325.50 ,1/20/2017
Concentra Medical Centers  Occupational,Services,"$3,588.50 ",1/27/2017
Concentra Medical Centers  Occupational,Services,$373.50 ,2/3/2017
Concentra Medical Centers  Occupational,Services,$537.00 ,2/7/2017
Concentra Medical Centers  Occupational,Services,"$1,852.50 ",2/10/2017
Concentra Medical Centers  Occupational,Services,$217.00 ,2/14/2017
Concentra Medical Centers  Occupational,Services,$434.00 ,2/17/2017
Concentra Medical Centers  Occupational,Services,"$1,462.00 ",3/3/2017
Concentra Medical Centers  Occupational,Services,"$1,318.50 ",3/14/2017
Concentra Medical Centers  Occupational,Services,$938.00 ,3/24/2017
Concentra Medical Centers  Occupational,Services,$651.00 ,3/28/2017
Concentra Medical Centers  Occupational,Services,$358.00 ,3/31/2017
Concentra Medical Centers  Occupational,Services,$737.50 ,4/4/2017
Concentra Medical Centers  Occupational,Services,$325.50 ,4/7/2017
Concentra Medical Centers  Occupational,Services,$930.60 ,4/14/2017
Concentra Medical Centers  Occupational,Services,"$8,074.20 ",4/18/2017
Concentra Medical Centers  Occupational,Services,"$1,125.00 ",4/28/2017
Concentra Medical Centers  Occupational,Services,$921.00 ,5/5/2017
Concentra Medical Centers  Occupational,Services,$398.00 ,5/9/2017
Concentra Medical Centers  Occupational,Services,"$3,254.45 ",5/12/2017
Concentra Medical Centers  Occupational,Services,"$1,275.50 ",5/16/2017
Concentra Medical Centers  Occupational,Services,"$2,243.65 ",5/26/2017
Concentra Medical Centers  Occupational,Services,$809.00 ,6/1/2017
Concentra Medical Centers  Occupational,Services,$494.50 ,6/6/2017
Concentra Medical Centers  Occupational,Services,$217.00 ,6/13/2017
Concentra Medical Centers  Occupational,Services,$182.50 ,6/16/2017
Concentra Medical Centers  Occupational,Services,"$1,016.50 ",6/23/2017
Concentra Medical Centers  Occupational,Services,"$2,094.95 ",6/27/2017
Concentra Medical Centers  Occupational,Services,"$2,301.10 ",6/30/2017
Concentra Medical Centers  Occupational,Services,"$1,324.05 ",7/7/2017
Concentra Medical Centers  Occupational,Services,$451.00 ,7/11/2017
Concentra Medical Centers  Occupational,Services,$935.30 ,7/14/2017
Concentra Medical Centers  Occupational,Services,$40.00 ,7/18/2017
Concentra Medical Centers  Occupational,Services,"$1,772.05 ",7/21/2017
Concentra Medical Centers  Occupational,Services,$325.50 ,7/28/2017
Concentra Medical Centers  Occupational,Services,$514.00 ,8/1/2017
Concentra Medical Centers  Occupational,Services,$541.65 ,8/4/2017
Concentra Medical Centers  Occupational,Services,$80.00 ,8/8/2017
Concentra Medical Centers  Occupational,Services,$217.00 ,8/15/2017
Concentra Medical Centers  Occupational,Services,"$1,468.95 ",8/18/2017
Concentra Medical Centers  Occupational,Services,"$1,808.50 ",8/25/2017
Concentra Medical Centers  Occupational,Services,$934.50 ,8/29/2017
Concentra Medical Centers  Occupational,Services,"$2,967.10 ",9/1/2017
Concentra Medical Centers  Occupational,Services,$217.00 ,9/7/2017
Concentra Medical Centers  Occupational,Services,"$1,119.50 ",9/12/2017
Concentra Medical Centers  Occupational,Services,"$3,083.60 ",9/22/2017
Concentra Medical Centers  Occupational,Services,$325.50 ,9/29/2017
Concentra Medical Centers  Occupational,Services,$22.50 ,10/3/2017
Concentra Medical Centers  Occupational,Services,"$1,719.92 ",10/6/2017
Concentra Medical Centers  Occupational,Services,$434.00 ,10/10/2017
Concentra Medical Centers  Occupational,Services,$230.00 ,10/17/2017
Concentra Medical Centers  Occupational,Services,"$3,135.70 ",10/27/2017
Concentra Medical Centers  Occupational,Services,$542.50 ,10/31/2017
Concentra Medical Centers  Occupational,Services,$639.45 ,11/3/2017
Concentra Medical Centers  Occupational,Services,$325.50 ,11/10/2017
Concentra Medical Centers  Occupational,Services,$632.00 ,11/14/2017
Concentra Medical Centers  Occupational,Services,$928.50 ,11/28/2017
Concentra Medical Centers  Occupational,Services,$373.50 ,12/5/2017
Concentra Medical Centers  Occupational,Services,$341.00 ,12/12/2017
Concentra Medical Centers  Occupational,Services,$955.50 ,12/19/2017
Concentra Medical Centers  Occupational,Services,"$4,890.80 ",12/22/2017
Conference Of Minority Transportation Officials - COMTO,Miscellaneous,$250.00 ,9/29/2017
Contech MSI Co,Services,$267.00 ,1/17/2017
Contech MSI Co,Services,$267.00 ,4/18/2017
Contech MSI Co,Services,$267.00 ,6/30/2017
Contech MSI Co,Services,$267.00 ,10/10/2017
Continental Battery Company,Fuel/Parts Inventory,"$6,946.80 ",1/13/2017
Continental Battery Company,Fuel/Parts Inventory,"$10,903.80 ",2/17/2017
Continental Battery Company,Fuel/Parts Inventory,"$1,488.60 ",2/24/2017
Continental Battery Company,Fuel/Parts Inventory,"$3,969.60 ",4/21/2017
Continental Battery Company,Fuel/Parts Inventory,"$10,270.80 ",6/27/2017
Continental Battery Company,Fuel/Parts Inventory,"$3,645.00 ",6/30/2017
Continental Battery Company,Fuel/Parts Inventory,"$5,796.00 ",8/15/2017
Continental Battery Company,Fuel/Parts Inventory,"$19,166.00 ",8/22/2017
Continental Battery Company,Fuel/Parts Inventory,"$5,920.80 ",9/12/2017
Continental Battery Company,Fuel/Parts Inventory,"$5,544.90 ",9/26/2017
Continental Battery Company,Fuel/Parts Inventory,"$10,212.00 ",9/29/2017
Continental Battery Company,Fuel/Parts Inventory,"$2,520.00 ",11/3/2017
Continental Battery Company,Fuel/Parts Inventory,"$3,312.00 ",11/7/2017
Continental Battery Company,Fuel/Parts Inventory,"$13,116.00 ",11/10/2017
Continental Battery Company,Fuel/Parts Inventory,"$2,682.00 ",11/17/2017
Continental Battery Company,Fuel/Parts Inventory,"$8,021.40 ",11/21/2017
Continental Construction Co,Building/Bldg Improvement,"$90,010.00 ",9/29/2017
ConvergeOne Inc,Services,"$3,405.00 ",1/17/2017
ConvergeOne Inc,Services,"$2,999.00 ",6/20/2017
ConvergeOne Inc,Services,"$3,405.00 ",10/17/2017
ConvergeOne Inc,Services,$144.00 ,12/1/2017
Cook DuPage Transportation Co,Purchased Transportation,"$4,087,910.03 ",2/1/2017
Cook DuPage Transportation Co,Purchased Transportation,"$4,441,570.08 ",3/9/2017
Cook DuPage Transportation Co,Purchased Transportation,"$4,116,654.37 ",3/27/2017
Cook DuPage Transportation Co,Purchased Transportation,"$4,649,641.27 ",4/28/2017
Cook DuPage Transportation Co,Purchased Transportation,"$4,350,148.82 ",5/26/2017
Cook DuPage Transportation Co,Purchased Transportation,"$4,480,478.43 ",6/23/2017
Cook DuPage Transportation Co,Purchased Transportation,"$4,222,950.16 ",7/24/2017
Cook DuPage Transportation Co,Purchased Transportation,"$4,132,013.22 ",8/18/2017
Cook DuPage Transportation Co,Purchased Transportation,"$4,210,220.33 ",9/21/2017
Cook DuPage Transportation Co,Purchased Transportation,"$3,990,457.09 ",10/23/2017
Cook DuPage Transportation Co,Purchased Transportation,"$4,227,010.99 ",11/22/2017
Cook DuPage Transportation Co,Purchased Transportation,"$4,036,497.48 ",12/22/2017
Corbel Solutions LLC,Services,"$13,466.00 ",1/10/2017
Corbel Solutions LLC,Services,"$15,019.00 ",3/21/2017
Corbel Solutions LLC,Materials and Supplies,"$12,198.00 ",4/14/2017
Corkys Catering Inc,Miscellaneous,$574.52 ,10/12/2017
Corporate Cost Control Inc,Services,"$1,050.00 ",2/24/2017
Corporate Cost Control Inc,Services,"$1,075.00 ",3/7/2017
Corporate Cost Control Inc,Services,"$1,075.00 ",6/16/2017
Corporate Cost Control Inc,Services,"$1,075.00 ",9/22/2017
Corporate Cost Control Inc,Services,"$1,075.00 ",12/8/2017
Cosmopolitan Cleaning And Maintenance,Services,"$4,593.32 ",1/20/2017
Cosmopolitan Cleaning And Maintenance,Services,"$5,741.65 ",8/1/2017
Cosmopolitan Cleaning And Maintenance,Services,"$1,148.33 ",9/1/2017
Cosmopolitan Cleaning And Maintenance,Services,"$1,148.33 ",10/27/2017
Cosmopolitan Cleaning And Maintenance,Services,"$3,444.99 ",12/1/2017
Crawford Murphy & Tilly Inc,Building/Bldg Improvement,"$2,999.90 ",8/25/2017
Crowe Horwath LLP,Services,"$8,500.00 ",1/27/2017
Crowe Horwath LLP,Services,"$2,675.00 ",2/24/2017
Crowe Horwath LLP,Services,"$4,000.00 ",6/16/2017
Crowe Horwath LLP,Services,"$2,000.00 ",6/30/2017
Crystal Lake Chamber of Commerce,Miscellaneous,$144.00 ,2/3/2017
CSched USA,Services,"$18,252.50 ",4/21/2017
CSched USA,Services,"$7,695.00 ",8/25/2017
CSched USA,Services,"$4,235.00 ",10/6/2017
CSched USA,Services,"$1,032.50 ",10/20/2017
Cubic Transportation Systems,Services,"$201,492.10 ",1/10/2017
Cubic Transportation Systems,Services,"$172,508.07 ",1/19/2017
Cubic Transportation Systems,Services,"$24,196.84 ",2/2/2017
Cubic Transportation Systems,Services,"$3,582.00 ",2/9/2017
Cubic Transportation Systems,Services,"$22,008.39 ",3/14/2017
Cubic Transportation Systems,Services,"$7,060.00 ",3/21/2017
Cubic Transportation Systems,Services,"$343,038.85 ",4/4/2017
Cubic Transportation Systems,Services,"$4,376.44 ",4/13/2017
Cubic Transportation Systems,Services,"$17,671.02 ",5/12/2017
Cubic Transportation Systems,Services,"$29,141.21 ",5/26/2017
Cubic Transportation Systems,Services,"$21,717.42 ",7/12/2017
Cubic Transportation Systems,Services,"$17,671.02 ",7/21/2017
Cubic Transportation Systems,Services,"$491,724.76 ",8/2/2017
Cubic Transportation Systems,Services,"$17,833.02 ",8/24/2017
Cubic Transportation Systems,Services,"$5,625.08 ",9/8/2017
Cubic Transportation Systems,Services,"$4,906.21 ",9/20/2017
Cubic Transportation Systems,Services,"$25,052.39 ",9/26/2017
Cubic Transportation Systems,Services,"$185,229.83 ",10/31/2017
Cubic Transportation Systems,Services,"$3,582.00 ",11/3/2017
Cubic Transportation Systems,Services,"$312,936.00 ",11/7/2017
Cubic Transportation Systems,Services,"$18,319.02 ",11/28/2017
Cubic Transportation Systems,Services,"$315,745.27 ",12/5/2017
Cubic Transportation Systems,Services,"$3,564.00 ",12/14/2017
Cubic Transportation Systems,Services,"$16,495.97 ",12/18/2017
Cumberland Service Center,Services,"$2,300.00 ",2/17/2017
Cumberland Service Center,Services,"$2,300.00 ",6/23/2017
Cumberland Service Center,Services,"$2,300.00 ",11/17/2017
Cummins Npower LLC,Services,"$1,813.00 ",1/10/2017
Cummins Npower LLC,Equipment,"$68,852.00 ",1/13/2017
Cummins Npower LLC,Fuel/Parts Inventory,"$11,804.96 ",1/13/2017
Cummins Npower LLC,Services,"$12,609.82 ",1/13/2017
Cummins Npower LLC,Fuel/Parts Inventory,$100.74 ,1/17/2017
Cummins Npower LLC,Equipment,"$275,408.00 ",1/20/2017
Cummins Npower LLC,Fuel/Parts Inventory,"$6,630.68 ",1/20/2017
Cummins Npower LLC,Services,"$2,651.44 ",1/20/2017
Cummins Npower LLC,Fuel/Parts Inventory,$37.90 ,1/24/2017
Cummins Npower LLC,Services,"$2,651.44 ",1/24/2017
Cummins Npower LLC,Fuel/Parts Inventory,"$1,768.64 ",1/31/2017
Cummins Sales and Service,Fuel/Parts Inventory,$15.16 ,2/3/2017
Cummins Sales and Service,Fuel/Parts Inventory,"$2,039.86 ",2/10/2017
Cummins Sales and Service,Materials and Supplies,$110.00 ,2/10/2017
Cummins Sales and Service,Fuel/Parts Inventory,$703.43 ,2/14/2017
Cummins Sales and Service,Materials and Supplies,($110.00),2/14/2017
Cummins Sales and Service,Services,"$23,220.73 ",2/14/2017
Cummins Sales and Service,Fuel/Parts Inventory,"$16,250.46 ",2/17/2017
Cummins Sales and Service,Services,"$3,545.59 ",2/17/2017
Cummins Sales and Service,Fuel/Parts Inventory,"$12,083.88 ",2/24/2017
Cummins Sales and Service,Materials and Supplies,$16.10 ,2/24/2017
Cummins Sales and Service,Services,"$4,905.00 ",2/24/2017
Cummins Sales and Service,Services,"$2,651.44 ",2/28/2017
Cummins Sales and Service,Fuel/Parts Inventory,"$4,246.84 ",3/3/2017
Cummins Sales and Service,Fuel/Parts Inventory,"$2,366.91 ",3/7/2017
Cummins Sales and Service,Fuel/Parts Inventory,"$12,989.19 ",3/10/2017
Cummins Sales and Service,Services,"$2,518.86 ",3/14/2017
Cummins Sales and Service,Fuel/Parts Inventory,"$7,316.82 ",3/17/2017
Cummins Sales and Service,Fuel/Parts Inventory,"$7,033.51 ",3/24/2017
Cummins Sales and Service,Fuel/Parts Inventory,"$4,095.61 ",3/28/2017
Cummins Sales and Service,Services,"$17,110.92 ",3/28/2017
Cummins Sales and Service,Fuel/Parts Inventory,"$9,284.63 ",3/31/2017
Cummins Sales and Service,Services,"$2,651.44 ",4/4/2017
Cummins Sales and Service,Fuel/Parts Inventory,"$7,180.15 ",4/7/2017
Cummins Sales and Service,Services,"$15,825.12 ",4/7/2017
Cummins Sales and Service,Fuel/Parts Inventory,"$14,260.46 ",4/14/2017
Cummins Sales and Service,Fuel/Parts Inventory,"$7,452.30 ",4/21/2017
Cummins Sales and Service,Fuel/Parts Inventory,"$1,021.85 ",4/28/2017
Cummins Sales and Service,Fuel/Parts Inventory,"$1,876.28 ",5/2/2017
Cummins Sales and Service,Services,"$5,233.73 ",5/2/2017
Cummins Sales and Service,Fuel/Parts Inventory,"$11,567.79 ",5/12/2017
Cummins Sales and Service,Services,"$22,743.15 ",5/12/2017
Cummins Sales and Service,Services,"$4,684.46 ",5/16/2017
Cummins Sales and Service,Fuel/Parts Inventory,$995.91 ,5/23/2017
Cummins Sales and Service,Services,"$2,467.40 ",6/1/2017
Cummins Sales and Service,Fuel/Parts Inventory,"$21,982.65 ",6/6/2017
Cummins Sales and Service,Fuel/Parts Inventory,"$8,789.02 ",6/27/2017
Cummins Sales and Service,Services,"$1,078.00 ",6/27/2017
Cummins Sales and Service,Fuel/Parts Inventory,"$11,198.75 ",6/30/2017
Cummins Sales and Service,Equipment,"$34,426.00 ",7/7/2017
Cummins Sales and Service,Fuel/Parts Inventory,"$2,919.68 ",7/7/2017
Cummins Sales and Service,Services,"$21,995.15 ",7/7/2017
Cummins Sales and Service,Services,"$6,142.15 ",7/11/2017
Cummins Sales and Service,Fuel/Parts Inventory,"$4,517.88 ",7/25/2017
Cummins Sales and Service,Fuel/Parts Inventory,"$6,454.13 ",8/1/2017
Cummins Sales and Service,Services,$747.61 ,8/1/2017
Cummins Sales and Service,Fuel/Parts Inventory,"$3,486.84 ",8/4/2017
Cummins Sales and Service,Fuel/Parts Inventory,"$1,900.52 ",8/8/2017
Cummins Sales and Service,Services,"$22,022.13 ",8/8/2017
Cummins Sales and Service,Fuel/Parts Inventory,"$3,295.78 ",8/11/2017
Cummins Sales and Service,Fuel/Parts Inventory,"$9,481.24 ",8/15/2017
Cummins Sales and Service,Fuel/Parts Inventory,"$1,833.98 ",8/22/2017
Cummins Sales and Service,Services,"$13,750.00 ",8/22/2017
Cummins Sales and Service,Equipment,"$309,834.00 ",8/25/2017
Cummins Sales and Service,Fuel/Parts Inventory,"$2,814.34 ",8/25/2017
Cummins Sales and Service,Fuel/Parts Inventory,"$8,228.70 ",8/29/2017
Cummins Sales and Service,Materials and Supplies,"$1,806.25 ",8/29/2017
Cummins Sales and Service,Fuel/Parts Inventory,"$6,324.74 ",9/7/2017
Cummins Sales and Service,Fuel/Parts Inventory,$608.59 ,9/12/2017
Cummins Sales and Service,Services,"$23,776.35 ",9/12/2017
Cummins Sales and Service,Services,"$1,284.71 ",9/15/2017
Cummins Sales and Service,Services,$809.10 ,9/19/2017
Cummins Sales and Service,Fuel/Parts Inventory,"$3,095.73 ",9/22/2017
Cummins Sales and Service,Fuel/Parts Inventory,"$10,441.18 ",9/26/2017
Cummins Sales and Service,Fuel/Parts Inventory,"$24,971.86 ",9/29/2017
Cummins Sales and Service,Services,"$7,753.47 ",9/29/2017
Cummins Sales and Service,Fuel/Parts Inventory,"$1,516.08 ",10/3/2017
Cummins Sales and Service,Fuel/Parts Inventory,"$2,161.46 ",10/6/2017
Cummins Sales and Service,Fuel/Parts Inventory,"$3,257.30 ",10/10/2017
Cummins Sales and Service,Equipment,"$34,426.00 ",10/13/2017
Cummins Sales and Service,Fuel/Parts Inventory,"$3,357.32 ",10/13/2017
Cummins Sales and Service,Fuel/Parts Inventory,"$26,189.65 ",10/20/2017
Cummins Sales and Service,Materials and Supplies,($660.00),10/20/2017
Cummins Sales and Service,Services,"$13,293.48 ",10/20/2017
Cummins Sales and Service,Fuel/Parts Inventory,$550.96 ,10/31/2017
Cummins Sales and Service,Materials and Supplies,($50.00),10/31/2017
Cummins Sales and Service,Fuel/Parts Inventory,$126.88 ,11/3/2017
Cummins Sales and Service,Fuel/Parts Inventory,"$3,354.02 ",11/7/2017
Cummins Sales and Service,Fuel/Parts Inventory,"$1,899.62 ",11/14/2017
Cummins Sales and Service,Fuel/Parts Inventory,"$6,091.91 ",11/17/2017
Cummins Sales and Service,Fuel/Parts Inventory,$595.90 ,12/1/2017
Cummins Sales and Service,Services,"$13,130.72 ",12/1/2017
Cummins Sales and Service,Services,"$1,325.00 ",12/8/2017
Cummins Sales and Service,Fuel/Parts Inventory,"$3,744.31 ",12/12/2017
Cummins Sales and Service,Services,"$2,225.00 ",12/12/2017
Cummins Sales and Service,Equipment,"$378,686.00 ",12/15/2017
Cummins Sales and Service,Fuel/Parts Inventory,"$1,487.26 ",12/15/2017
Cummins Sales and Service,Equipment,"$34,426.00 ",12/19/2017
Cummins Sales and Service,Services,"$1,375.00 ",12/22/2017
Cummins Sales and Service,Services,"$1,176.00 ",12/28/2017
Curran Contracting Company,Building/Bldg Improvement,"$966,829.00 ",3/17/2017
Curran Contracting Company,Building/Bldg Improvement,"$229,124.25 ",4/11/2017
Curran Contracting Company,Building/Bldg Improvement,"$555,630.89 ",5/26/2017
Curran Contracting Company,Building/Bldg Improvement,"$319,477.13 ",9/22/2017
Curran Contracting Company,Building/Bldg Improvement,"$67,811.00 ",12/5/2017
Curved Glass Distributors,Fuel/Parts Inventory,$587.00 ,2/7/2017
Curved Glass Distributors,Fuel/Parts Inventory,$587.00 ,2/24/2017
Cylinders Inc,Services,$570.00 ,2/10/2017
Cylinders Inc,Services,$654.50 ,4/11/2017
D & K Truck Safety Lane,Services,$702.00 ,1/27/2017
D & K Truck Safety Lane,Services,$520.00 ,2/14/2017
D & K Truck Safety Lane,Services,$598.00 ,4/14/2017
D & K Truck Safety Lane,Services,$26.00 ,4/28/2017
D & K Truck Safety Lane,Services,$572.00 ,5/12/2017
D & K Truck Safety Lane,Services,$624.00 ,5/19/2017
D & K Truck Safety Lane,Services,$78.00 ,6/1/2017
D & K Truck Safety Lane,Services,$572.00 ,6/20/2017
D & K Truck Safety Lane,Services,$754.00 ,7/21/2017
D & K Truck Safety Lane,Services,$468.00 ,8/11/2017
D & K Truck Safety Lane,Services,$650.00 ,9/22/2017
D & K Truck Safety Lane,Services,$104.00 ,10/3/2017
D & K Truck Safety Lane,Services,$494.00 ,10/13/2017
D & K Truck Safety Lane,Services,$494.00 ,11/17/2017
D & K Truck Safety Lane,Services,$546.00 ,12/8/2017
D&W Diesel Inc,Fuel/Parts Inventory,"$8,049.57 ",1/20/2017
D&W Diesel Inc,Materials and Supplies,"$5,300.00 ",1/20/2017
D&W Diesel Inc,Fuel/Parts Inventory,"$4,786.34 ",2/3/2017
D&W Diesel Inc,Fuel/Parts Inventory,"$4,152.49 ",2/7/2017
D&W Diesel Inc,Fuel/Parts Inventory,$723.26 ,2/10/2017
D&W Diesel Inc,Fuel/Parts Inventory,"$1,836.11 ",2/14/2017
D&W Diesel Inc,Fuel/Parts Inventory,"$1,805.10 ",2/21/2017
D&W Diesel Inc,Fuel/Parts Inventory,$765.92 ,2/28/2017
D&W Diesel Inc,Fuel/Parts Inventory,"$2,616.06 ",3/3/2017
D&W Diesel Inc,Fuel/Parts Inventory,"$2,188.64 ",3/10/2017
D&W Diesel Inc,Fuel/Parts Inventory,"$1,083.06 ",3/14/2017
D&W Diesel Inc,Fuel/Parts Inventory,"$1,072.00 ",3/24/2017
D&W Diesel Inc,Fuel/Parts Inventory,$722.04 ,4/18/2017
D&W Diesel Inc,Fuel/Parts Inventory,"$1,314.00 ",5/12/2017
D&W Diesel Inc,Fuel/Parts Inventory,"$1,533.00 ",5/16/2017
D&W Diesel Inc,Fuel/Parts Inventory,$599.24 ,6/1/2017
D&W Diesel Inc,Fuel/Parts Inventory,"$3,324.87 ",6/6/2017
D&W Diesel Inc,Fuel/Parts Inventory,"$2,203.88 ",6/23/2017
D&W Diesel Inc,Fuel/Parts Inventory,"$1,922.24 ",7/7/2017
D&W Diesel Inc,Fuel/Parts Inventory,$599.24 ,7/14/2017
D&W Diesel Inc,Fuel/Parts Inventory,"$2,282.05 ",8/4/2017
D&W Diesel Inc,Fuel/Parts Inventory,"$2,287.65 ",8/18/2017
D&W Diesel Inc,Fuel/Parts Inventory,"$3,972.10 ",9/1/2017
D&W Diesel Inc,Fuel/Parts Inventory,"$4,510.98 ",9/7/2017
D&W Diesel Inc,Fuel/Parts Inventory,"$3,717.70 ",9/12/2017
D&W Diesel Inc,Fuel/Parts Inventory,$541.53 ,9/19/2017
D&W Diesel Inc,Fuel/Parts Inventory,"$4,789.70 ",10/3/2017
D&W Diesel Inc,Fuel/Parts Inventory,"$2,190.00 ",10/6/2017
D&W Diesel Inc,Fuel/Parts Inventory,$149.81 ,10/13/2017
D&W Diesel Inc,Fuel/Parts Inventory,$361.02 ,10/20/2017
D&W Diesel Inc,Fuel/Parts Inventory,"$5,576.55 ",10/27/2017
D&W Diesel Inc,Fuel/Parts Inventory,$970.33 ,11/7/2017
D&W Diesel Inc,Fuel/Parts Inventory,"$6,299.81 ",11/17/2017
D&W Diesel Inc,Fuel/Parts Inventory,"$2,952.56 ",11/28/2017
D&W Diesel Inc,Fuel/Parts Inventory,$361.02 ,12/5/2017
D&W Diesel Inc,Fuel/Parts Inventory,"$1,894.73 ",12/12/2017
Dataskill Inc,Services,"$15,494.66 ",1/13/2017
Dataskill Inc,Services,"$17,430.94 ",12/1/2017
Data-Tec Systems Inc,Services,$713.00 ,1/20/2017
Data-Tec Systems Inc,Services,$663.00 ,4/7/2017
Data-Tec Systems Inc,Services,$713.00 ,7/11/2017
Data-Tec Systems Inc,Services,$763.00 ,12/22/2017
Debbie Dzialo,Purchased Transportation,$51.00 ,8/1/2017
Decker Supply Co,Services,$578.30 ,1/17/2017
Delcan Corp,Equipment,"$106,356.22 ",6/23/2017
Delfs Garage,Services,$234.50 ,1/10/2017
Delfs Garage,Services,$188.00 ,1/27/2017
Delfs Garage,Services,$258.00 ,2/14/2017
Delfs Garage,Services,$188.00 ,3/10/2017
Delfs Garage,Services,$188.00 ,4/14/2017
Delfs Garage,Services,$352.00 ,5/9/2017
Delfs Garage,Services,$258.00 ,6/23/2017
Delfs Garage,Services,$164.50 ,7/21/2017
Delfs Garage,Services,$258.00 ,8/18/2017
Delfs Garage,Services,$188.00 ,9/15/2017
Delfs Garage,Services,$211.50 ,10/13/2017
Delfs Garage,Services,$234.50 ,12/1/2017
Delfs Garage,Services,$281.50 ,12/8/2017
Delta Sonic Car Wash,Materials and Supplies,$15.99 ,1/5/2017
Delta Sonic Car Wash,Services,$147.00 ,1/5/2017
Delta Sonic Car Wash,Services,$109.50 ,1/13/2017
Delta Sonic Car Wash,Services,$109.50 ,2/10/2017
Delta Sonic Car Wash,Services,$270.00 ,2/17/2017
Delta Sonic Car Wash,Materials and Supplies,$79.95 ,3/28/2017
Delta Sonic Car Wash,Services,$312.00 ,3/31/2017
Delta Sonic Car Wash,Materials and Supplies,$63.96 ,4/28/2017
Delta Sonic Car Wash,Services,$312.00 ,4/28/2017
Delta Sonic Car Wash,Services,$301.50 ,5/19/2017
Delta Sonic Car Wash,Materials and Supplies,$127.92 ,5/23/2017
Delta Sonic Car Wash,Services,$171.00 ,6/23/2017
Delta Sonic Car Wash,Materials and Supplies,$615.93 ,8/8/2017
Delta Sonic Car Wash,Materials and Supplies,$63.96 ,9/7/2017
Delta Sonic Car Wash,Miscellaneous,$272.50 ,9/15/2017
Delta Sonic Car Wash,Miscellaneous,$570.50 ,9/29/2017
Delta Sonic Car Wash,Materials and Supplies,$47.97 ,10/17/2017
Delta Sonic Car Wash,Miscellaneous,$215.00 ,10/17/2017
Delta Sonic Car Wash,Miscellaneous,$257.00 ,12/5/2017
Delta Sonic Car Wash,Materials and Supplies,$15.99 ,12/12/2017
Delta Sonic Car Wash,Miscellaneous,$159.50 ,12/12/2017
DemandTrans Solutions,Services,$400.00 ,1/13/2017
DemandTrans Solutions,Services,$400.00 ,2/21/2017
DemandTrans Solutions,Services,$400.00 ,2/24/2017
DemandTrans Solutions,Services,"$1,200.00 ",8/1/2017
Dependable Fire Equipment,Miscellaneous,$247.35 ,1/13/2017
Dept of Financial & Professional Reg,Miscellaneous,$150.00 ,2/28/2017
Des Plaines Chamber,Miscellaneous,$50.00 ,6/23/2017
Des Plaines Office Equipment,Leases and Rentals,"$4,244.22 ",4/28/2017
Des Plaines Office Equipment,Leases and Rentals,"$4,244.22 ",5/5/2017
Des Plaines Office Equipment,Leases and Rentals,$225.00 ,5/12/2017
Des Plaines Office Equipment,Leases and Rentals,"$4,244.22 ",5/26/2017
Des Plaines Office Equipment,Leases and Rentals,"$4,244.22 ",6/30/2017
Des Plaines Office Equipment,Leases and Rentals,"$4,244.22 ",7/25/2017
Des Plaines Office Equipment,Services,$750.00 ,8/1/2017
Des Plaines Office Equipment,Leases and Rentals,"$4,442.22 ",8/29/2017
Des Plaines Office Equipment,Leases and Rentals,"$4,442.22 ",9/22/2017
Des Plaines Office Equipment,Leases and Rentals,"$4,442.22 ",10/24/2017
Des Plaines Office Equipment,Leases and Rentals,"$4,442.22 ",11/17/2017
Des Plaines Office Equipment,Leases and Rentals,"$4,442.22 ",12/15/2017
Diesel Emissions Service,Fuel/Parts Inventory,"$4,210.00 ",1/13/2017
Diesel Emissions Service,Fuel/Parts Inventory,"$4,210.00 ",3/24/2017
Diesel Emissions Service,Fuel/Parts Inventory,"$14,735.00 ",4/18/2017
Diesel Injection Service Co,Fuel/Parts Inventory,"$13,760.70 ",1/10/2017
Diesel Injection Service Co,Fuel/Parts Inventory,"$10,500.00 ",1/24/2017
Diesel Injection Service Co,Fuel/Parts Inventory,"$10,500.00 ",1/31/2017
Diesel Injection Service Co,Fuel/Parts Inventory,"$2,100.00 ",2/14/2017
Diesel Injection Service Co,Fuel/Parts Inventory,"$4,143.06 ",2/17/2017
Diesel Injection Service Co,Fuel/Parts Inventory,$120.50 ,2/28/2017
Diesel Injection Service Co,Fuel/Parts Inventory,"$17,234.20 ",3/10/2017
Diesel Injection Service Co,Fuel/Parts Inventory,"$21,000.00 ",3/31/2017
Diesel Injection Service Co,Fuel/Parts Inventory,$43.60 ,4/14/2017
Diesel Injection Service Co,Fuel/Parts Inventory,"$17,004.00 ",4/18/2017
Diesel Injection Service Co,Fuel/Parts Inventory,"$12,869.04 ",4/28/2017
Diesel Injection Service Co,Fuel/Parts Inventory,"$2,090.00 ",5/9/2017
Diesel Injection Service Co,Fuel/Parts Inventory,"$15,723.80 ",5/16/2017
Diesel Injection Service Co,Fuel/Parts Inventory,"$2,396.00 ",6/1/2017
Diesel Injection Service Co,Fuel/Parts Inventory,"$14,522.00 ",7/7/2017
Diesel Injection Service Co,Fuel/Parts Inventory,$218.00 ,7/14/2017
Diesel Injection Service Co,Fuel/Parts Inventory,"$6,119.50 ",7/18/2017
Diesel Injection Service Co,Fuel/Parts Inventory,$123.00 ,7/25/2017
Diesel Injection Service Co,Fuel/Parts Inventory,"$4,200.00 ",7/28/2017
Diesel Injection Service Co,Fuel/Parts Inventory,"$16,168.00 ",8/4/2017
Diesel Injection Service Co,Fuel/Parts Inventory,"$2,011.00 ",8/25/2017
Diesel Injection Service Co,Fuel/Parts Inventory,"$11,329.00 ",9/1/2017
Diesel Injection Service Co,Fuel/Parts Inventory,"$12,600.00 ",10/6/2017
Diesel Injection Service Co,Fuel/Parts Inventory,"$4,200.00 ",10/20/2017
Diesel Injection Service Co,Fuel/Parts Inventory,$571.15 ,12/12/2017
Diesel Radiator Company,Fuel/Parts Inventory,"$4,752.00 ",3/28/2017
Diesel Radiator Company,Fuel/Parts Inventory,"$1,016.00 ",5/16/2017
Diesel Radiator Company,Fuel/Parts Inventory,"$2,943.00 ",8/4/2017
Direct Machinery Outlet Inc,Fuel/Parts Inventory,"$2,232.00 ",1/10/2017
Direct Machinery Outlet Inc,Fuel/Parts Inventory,"$9,064.00 ",1/17/2017
Direct Machinery Outlet Inc,Fuel/Parts Inventory,"$3,416.00 ",3/31/2017
Direct Machinery Outlet Inc,Fuel/Parts Inventory,"$8,212.00 ",5/16/2017
Direct Machinery Outlet Inc,Fuel/Parts Inventory,"$5,060.00 ",6/6/2017
Direct Machinery Outlet Inc,Fuel/Parts Inventory,"$2,790.00 ",7/7/2017
Direct Machinery Outlet Inc,Fuel/Parts Inventory,"$3,974.00 ",7/18/2017
Direct Machinery Outlet Inc,Fuel/Parts Inventory,"$5,090.00 ",7/25/2017
Direct Machinery Outlet Inc,Fuel/Parts Inventory,"$5,550.00 ",8/18/2017
Direct Machinery Outlet Inc,Fuel/Parts Inventory,"$3,416.00 ",8/25/2017
Direct Machinery Outlet Inc,Fuel/Parts Inventory,"$11,854.00 ",9/1/2017
Dispatch Taxi Affiliation,Purchased Transportation,"$1,889.75 ",1/5/2017
Dispatch Taxi Affiliation,Purchased Transportation,$710.25 ,3/10/2017
Dispatch Taxi Affiliation,Purchased Transportation,"$6,197.50 ",8/25/2017
Dispatch Taxi Affiliation,Purchased Transportation,$18.75 ,11/3/2017
Dorothy Brown Circuit Court,Services,$177.00 ,3/28/2017
Dorothy Carson,Purchased Transportation,$33.00 ,9/29/2017
Dr Sprinkler Irrigation LLC,Services,$948.50 ,2/10/2017
Dr Sprinkler Irrigation LLC,Casualty and Liability,$975.00 ,6/23/2017
Dr Sprinkler Irrigation LLC,Services,$895.00 ,6/23/2017
Dr Sprinkler Irrigation LLC,Casualty and Liability,$960.00 ,6/27/2017
Dr Sprinkler Irrigation LLC,Casualty and Liability,$395.00 ,8/1/2017
Dr Sprinkler Irrigation LLC,Casualty and Liability,$405.00 ,8/11/2017
Dr Sprinkler Irrigation LLC,Services,"$1,290.00 ",8/11/2017
Dr Sprinkler Irrigation LLC,Casualty and Liability,"$2,965.00 ",8/18/2017
Dr Sprinkler Irrigation LLC,Services,$965.00 ,8/25/2017
Dr Sprinkler Irrigation LLC,Services,"$1,370.00 ",9/15/2017
Dr Sprinkler Irrigation LLC,Services,$195.00 ,11/10/2017
Drive Train Service & Components,Fuel/Parts Inventory,"$4,982.00 ",2/3/2017
Drive Train Service & Components,Fuel/Parts Inventory,"$1,366.00 ",2/7/2017
Drive Train Service & Components,Fuel/Parts Inventory,"$3,350.00 ",2/17/2017
Drive Train Service & Components,Fuel/Parts Inventory,$188.00 ,2/28/2017
Drive Train Service & Components,Fuel/Parts Inventory,"$2,726.00 ",3/10/2017
Drive Train Service & Components,Fuel/Parts Inventory,$940.00 ,3/28/2017
Drive Train Service & Components,Fuel/Parts Inventory,$893.00 ,4/4/2017
Drive Train Service & Components,Fuel/Parts Inventory,"$2,272.00 ",4/14/2017
Drive Train Service & Components,Fuel/Parts Inventory,"$5,593.00 ",5/16/2017
Drive Train Service & Components,Fuel/Parts Inventory,"$5,405.00 ",6/6/2017
Drive Train Service & Components,Fuel/Parts Inventory,"$9,554.00 ",6/20/2017
Drivecam Video Systems,Services,"$4,446.00 ",10/10/2017
Dunbar Armored,Services,$343.98 ,1/17/2017
Dunbar Armored,Services,$496.86 ,2/17/2017
Dunbar Armored,Services,$439.53 ,3/17/2017
Dunbar Armored,Services,$611.52 ,4/11/2017
Dunbar Armored,Services,$382.20 ,5/12/2017
Dunbar Armored,Services,$477.75 ,6/16/2017
Dunbar Armored,Services,$477.75 ,7/14/2017
Dunbar Armored,Services,$363.09 ,8/15/2017
Dunbar Armored,Services,$458.64 ,9/15/2017
Dunbar Armored,Services,$477.75 ,10/13/2017
Dunbar Armored,Services,$515.97 ,11/10/2017
Dunbar Armored,Services,$401.31 ,12/15/2017
DuPage Mayors & Managers Conference,Miscellaneous,$150.00 ,2/24/2017
Dura Automotive Systems LLC,Fuel/Parts Inventory,"$2,961.15 ",2/7/2017
Dura Automotive Systems LLC,Fuel/Parts Inventory,$258.00 ,2/10/2017
Dura Automotive Systems LLC,Fuel/Parts Inventory,$967.00 ,2/24/2017
Dura Automotive Systems LLC,Fuel/Parts Inventory,"$3,122.00 ",2/28/2017
Dura Automotive Systems LLC,Fuel/Parts Inventory,"$3,913.45 ",9/22/2017
Dura Automotive Systems LLC,Fuel/Parts Inventory,"$8,071.20 ",11/14/2017
E&R Towing and Garage Inc,Services,"$1,282.50 ",1/5/2017
E&R Towing and Garage Inc,Services,"$1,520.00 ",1/10/2017
E&R Towing and Garage Inc,Services,$617.50 ,1/13/2017
E&R Towing and Garage Inc,Services,$190.00 ,1/17/2017
E&R Towing and Garage Inc,Services,$760.00 ,1/20/2017
E&R Towing and Garage Inc,Services,$380.00 ,1/27/2017
E&R Towing and Garage Inc,Services,$665.00 ,2/3/2017
E&R Towing and Garage Inc,Services,$427.50 ,2/7/2017
E&R Towing and Garage Inc,Services,"$1,900.00 ",2/10/2017
E&R Towing and Garage Inc,Services,$190.00 ,2/17/2017
E&R Towing and Garage Inc,Services,$570.00 ,2/28/2017
E&R Towing and Garage Inc,Services,$855.00 ,3/3/2017
E&R Towing and Garage Inc,Services,$570.00 ,3/7/2017
E&R Towing and Garage Inc,Services,$190.00 ,3/10/2017
E&R Towing and Garage Inc,Services,$617.50 ,3/17/2017
E&R Towing and Garage Inc,Services,$380.00 ,3/21/2017
E&R Towing and Garage Inc,Services,"$1,377.50 ",3/24/2017
E&R Towing and Garage Inc,Services,$190.00 ,3/28/2017
E&R Towing and Garage Inc,Services,$665.00 ,3/31/2017
E&R Towing and Garage Inc,Services,$237.50 ,4/4/2017
E&R Towing and Garage Inc,Services,$665.00 ,4/7/2017
E&R Towing and Garage Inc,Services,$475.00 ,4/11/2017
E&R Towing and Garage Inc,Services,$807.50 ,4/14/2017
E&R Towing and Garage Inc,Services,$475.00 ,4/18/2017
E&R Towing and Garage Inc,Services,"$1,045.00 ",4/21/2017
E&R Towing and Garage Inc,Services,$380.00 ,4/25/2017
E&R Towing and Garage Inc,Services,$784.00 ,4/28/2017
E&R Towing and Garage Inc,Services,$588.00 ,5/2/2017
E&R Towing and Garage Inc,Services,$147.00 ,5/5/2017
E&R Towing and Garage Inc,Services,$245.00 ,5/9/2017
E&R Towing and Garage Inc,Services,$784.00 ,5/12/2017
E&R Towing and Garage Inc,Services,$637.00 ,5/16/2017
E&R Towing and Garage Inc,Services,"$1,617.00 ",5/19/2017
E&R Towing and Garage Inc,Services,$245.00 ,5/23/2017
E&R Towing and Garage Inc,Services,$968.00 ,5/26/2017
E&R Towing and Garage Inc,Services,$784.00 ,6/1/2017
E&R Towing and Garage Inc,Services,$588.00 ,6/6/2017
E&R Towing and Garage Inc,Services,"$1,219.00 ",6/13/2017
E&R Towing and Garage Inc,Services,"$1,027.00 ",6/20/2017
E&R Towing and Garage Inc,Services,"$3,381.00 ",6/23/2017
E&R Towing and Garage Inc,Services,$196.00 ,6/30/2017
E&R Towing and Garage Inc,Services,$294.00 ,7/7/2017
E&R Towing and Garage Inc,Services,$196.00 ,7/11/2017
E&R Towing and Garage Inc,Services,"$2,684.50 ",7/18/2017
E&R Towing and Garage Inc,Services,$833.00 ,7/21/2017
E&R Towing and Garage Inc,Services,$196.00 ,7/25/2017
E&R Towing and Garage Inc,Services,"$1,127.00 ",7/28/2017
E&R Towing and Garage Inc,Services,$686.00 ,8/1/2017
E&R Towing and Garage Inc,Services,$441.00 ,8/4/2017
E&R Towing and Garage Inc,Services,$882.00 ,8/8/2017
E&R Towing and Garage Inc,Services,$931.00 ,8/11/2017
E&R Towing and Garage Inc,Services,$490.00 ,8/15/2017
E&R Towing and Garage Inc,Services,$441.00 ,8/18/2017
E&R Towing and Garage Inc,Services,$196.00 ,8/22/2017
E&R Towing and Garage Inc,Services,"$1,617.00 ",8/29/2017
E&R Towing and Garage Inc,Services,$490.00 ,9/7/2017
E&R Towing and Garage Inc,Services,$392.00 ,9/15/2017
E&R Towing and Garage Inc,Services,$392.00 ,9/19/2017
E&R Towing and Garage Inc,Services,"$1,225.00 ",10/6/2017
E&R Towing and Garage Inc,Services,$196.00 ,10/17/2017
E&R Towing and Garage Inc,Services,$196.00 ,10/20/2017
E&R Towing and Garage Inc,Services,$196.00 ,11/17/2017
E&R Towing and Garage Inc,Services,$392.00 ,11/21/2017
E&R Towing and Garage Inc,Services,$441.00 ,12/1/2017
E&R Towing and Garage Inc,Services,$539.00 ,12/15/2017
Eaton Corporation,Services,$968.00 ,7/14/2017
Eco Clean Maintenance Inc,Services,"$1,162.00 ",1/13/2017
Eco Clean Maintenance Inc,Services,$676.00 ,2/10/2017
Eco Clean Maintenance Inc,Services,$486.00 ,2/14/2017
Eco Clean Maintenance Inc,Services,$486.00 ,3/10/2017
Eco Clean Maintenance Inc,Services,$676.00 ,3/21/2017
Eco Clean Maintenance Inc,Services,"$1,162.00 ",4/7/2017
Eco Clean Maintenance Inc,Services,"$1,162.00 ",5/5/2017
Eco Clean Maintenance Inc,Services,$486.00 ,6/9/2017
Eco Clean Maintenance Inc,Services,$676.00 ,6/13/2017
Eco Clean Maintenance Inc,Services,$486.00 ,7/18/2017
Eco Clean Maintenance Inc,Services,$676.00 ,7/21/2017
Eco Clean Maintenance Inc,Services,"$1,162.00 ",8/4/2017
Eco Clean Maintenance Inc,Services,$486.00 ,9/19/2017
Eco Clean Maintenance Inc,Services,$676.00 ,9/22/2017
Eco Clean Maintenance Inc,Services,$486.00 ,10/3/2017
Eco Clean Maintenance Inc,Services,$676.00 ,10/6/2017
Eco Clean Maintenance Inc,Services,$486.00 ,11/10/2017
Eco Clean Maintenance Inc,Services,$676.00 ,11/28/2017
Eco Clean Maintenance Inc,Services,$486.00 ,12/15/2017
Eco Clean Maintenance Inc,Services,$676.00 ,12/22/2017
Eco Lighting Services and Technology LLC,Services,$474.06 ,1/5/2017
Eco Lighting Services and Technology LLC,Services,"$4,361.19 ",1/10/2017
Eco Lighting Services and Technology LLC,Services,"$5,200.34 ",1/17/2017
Eco Lighting Services and Technology LLC,Services,"$2,218.93 ",2/10/2017
Eco Lighting Services and Technology LLC,Services,$542.15 ,2/14/2017
Eco Lighting Services and Technology LLC,Services,"$3,142.76 ",2/21/2017
Eco Lighting Services and Technology LLC,Services,$492.99 ,3/3/2017
Eco Lighting Services and Technology LLC,Services,$972.00 ,3/14/2017
Eco Lighting Services and Technology LLC,Services,"$1,492.84 ",3/24/2017
Eco Lighting Services and Technology LLC,Services,$632.00 ,3/31/2017
Eco Lighting Services and Technology LLC,Services,"$2,403.80 ",4/11/2017
Eco Lighting Services and Technology LLC,Services,"$2,699.25 ",5/16/2017
Eco Lighting Services and Technology LLC,Services,"$1,309.67 ",5/23/2017
Eco Lighting Services and Technology LLC,Services,"$1,160.87 ",6/6/2017
Eco Lighting Services and Technology LLC,Services,"$2,697.94 ",6/20/2017
Eco Lighting Services and Technology LLC,Services,$972.00 ,7/7/2017
Eco Lighting Services and Technology LLC,Services,$956.60 ,7/18/2017
Eco Lighting Services and Technology LLC,Services,"$2,237.37 ",7/25/2017
Eco Lighting Services and Technology LLC,Services,"$2,027.66 ",8/1/2017
Eco Lighting Services and Technology LLC,Services,$972.00 ,9/1/2017
Eco Lighting Services and Technology LLC,Services,"$1,909.92 ",9/19/2017
Eco Lighting Services and Technology LLC,Services,"$1,617.20 ",10/6/2017
Eco Lighting Services and Technology LLC,Services,"$2,321.51 ",10/20/2017
Eco Lighting Services and Technology LLC,Services,"$2,394.99 ",11/14/2017
Eco Lighting Services and Technology LLC,Services,"$1,285.53 ",12/19/2017
Eco Lighting Services and Technology LLC,Services,"$1,851.17 ",12/28/2017
Edward B Krinsky Inc,Services,$700.00 ,7/18/2017
Edwards Engineering Inc,Services,$504.00 ,1/13/2017
Edwards Engineering Inc,Services,$712.91 ,1/24/2017
Edwards Engineering Inc,Services,"$1,140.00 ",2/7/2017
Edwards Engineering Inc,Services,"$10,741.00 ",2/24/2017
Edwards Engineering Inc,Services,"$5,352.00 ",4/7/2017
Edwards Engineering Inc,Services,"$1,140.00 ",4/28/2017
Edwards Engineering Inc,Services,"$1,115.50 ",6/20/2017
Edwards Engineering Inc,Services,$756.00 ,7/18/2017
Edwards Engineering Inc,Services,"$1,140.00 ",8/11/2017
Edwards Engineering Inc,Services,"$1,140.00 ",12/19/2017
ElDorado National (California) Inc,Fuel/Parts Inventory,"$12,758.64 ",1/5/2017
ElDorado National (California) Inc,Fuel/Parts Inventory,$765.06 ,1/10/2017
ElDorado National (California) Inc,Fuel/Parts Inventory,"$16,971.29 ",1/13/2017
ElDorado National (California) Inc,Vehicle,"$2,726,708.80 ",1/13/2017
ElDorado National (California) Inc,Fuel/Parts Inventory,"$8,096.86 ",1/17/2017
ElDorado National (California) Inc,Fuel/Parts Inventory,$47.88 ,1/20/2017
ElDorado National (California) Inc,Fuel/Parts Inventory,"$9,004.06 ",1/24/2017
ElDorado National (California) Inc,Fuel/Parts Inventory,"$7,498.17 ",1/27/2017
ElDorado National (California) Inc,Fuel/Parts Inventory,$867.00 ,1/31/2017
ElDorado National (California) Inc,Fuel/Parts Inventory,"$2,163.96 ",2/3/2017
ElDorado National (California) Inc,Fuel/Parts Inventory,"$15,113.02 ",2/7/2017
ElDorado National (California) Inc,Fuel/Parts Inventory,"$27,916.90 ",2/10/2017
ElDorado National (California) Inc,Fuel/Parts Inventory,$472.66 ,2/14/2017
ElDorado National (California) Inc,Fuel/Parts Inventory,"$17,727.69 ",2/17/2017
ElDorado National (California) Inc,Fuel/Parts Inventory,"$7,247.27 ",2/21/2017
ElDorado National (California) Inc,Fuel/Parts Inventory,"$5,751.22 ",2/28/2017
ElDorado National (California) Inc,Fuel/Parts Inventory,"$18,697.68 ",3/3/2017
ElDorado National (California) Inc,Fuel/Parts Inventory,"$7,782.08 ",3/10/2017
ElDorado National (California) Inc,Fuel/Parts Inventory,"$22,650.84 ",3/17/2017
ElDorado National (California) Inc,Fuel/Parts Inventory,"$4,494.32 ",3/21/2017
ElDorado National (California) Inc,Fuel/Parts Inventory,"$2,409.51 ",3/28/2017
ElDorado National (California) Inc,Fuel/Parts Inventory,"$8,547.09 ",3/31/2017
ElDorado National (California) Inc,Fuel/Parts Inventory,$160.00 ,4/4/2017
ElDorado National (California) Inc,Fuel/Parts Inventory,"$7,579.47 ",4/7/2017
ElDorado National (California) Inc,Fuel/Parts Inventory,"$1,150.00 ",4/11/2017
ElDorado National (California) Inc,Materials and Supplies,$525.00 ,4/11/2017
ElDorado National (California) Inc,Fuel/Parts Inventory,"$6,998.35 ",4/14/2017
ElDorado National (California) Inc,Fuel/Parts Inventory,"$2,546.45 ",4/18/2017
ElDorado National (California) Inc,Fuel/Parts Inventory,"$2,299.07 ",4/21/2017
ElDorado National (California) Inc,Fuel/Parts Inventory,"$6,936.42 ",4/25/2017
ElDorado National (California) Inc,Fuel/Parts Inventory,"$38,234.31 ",4/28/2017
ElDorado National (California) Inc,Fuel/Parts Inventory,"$2,300.00 ",5/2/2017
ElDorado National (California) Inc,Fuel/Parts Inventory,$25.52 ,5/5/2017
ElDorado National (California) Inc,Services,"$18,800.00 ",5/5/2017
ElDorado National (California) Inc,Vehicle,"$4,009,957.40 ",5/5/2017
ElDorado National (California) Inc,Fuel/Parts Inventory,"$17,111.92 ",5/19/2017
ElDorado National (California) Inc,Fuel/Parts Inventory,"$15,934.35 ",5/23/2017
ElDorado National (California) Inc,Fuel/Parts Inventory,"$2,349.16 ",5/26/2017
ElDorado National (California) Inc,Services,"$37,600.00 ",5/26/2017
ElDorado National (California) Inc,Fuel/Parts Inventory,"$25,687.88 ",6/1/2017
ElDorado National (California) Inc,Vehicle,"$8,057,063.80 ",6/9/2017
ElDorado National (California) Inc,Fuel/Parts Inventory,"$30,291.91 ",6/16/2017
ElDorado National (California) Inc,Services,"$9,400.00 ",6/20/2017
ElDorado National (California) Inc,Fuel/Parts Inventory,"$10,755.88 ",6/23/2017
ElDorado National (California) Inc,Vehicle,"$2,011,170.20 ",6/23/2017
ElDorado National (California) Inc,Fuel/Parts Inventory,"$4,970.82 ",6/30/2017
ElDorado National (California) Inc,Fuel/Parts Inventory,"$6,934.97 ",7/7/2017
ElDorado National (California) Inc,Fuel/Parts Inventory,"$2,064.49 ",7/11/2017
ElDorado National (California) Inc,Vehicle,"$1,592,464.00 ",7/14/2017
ElDorado National (California) Inc,Fuel/Parts Inventory,$863.75 ,7/18/2017
ElDorado National (California) Inc,Fuel/Parts Inventory,"$4,274.65 ",7/25/2017
ElDorado National (California) Inc,Fuel/Parts Inventory,$711.50 ,7/28/2017
ElDorado National (California) Inc,Fuel/Parts Inventory,"$17,334.24 ",8/4/2017
ElDorado National (California) Inc,Fuel/Parts Inventory,"$2,421.07 ",8/8/2017
ElDorado National (California) Inc,Fuel/Parts Inventory,$18.24 ,8/15/2017
ElDorado National (California) Inc,Fuel/Parts Inventory,"$6,481.04 ",8/18/2017
ElDorado National (California) Inc,Fuel/Parts Inventory,"$12,518.88 ",8/29/2017
ElDorado National (California) Inc,Services,"$35,250.00 ",9/1/2017
ElDorado National (California) Inc,Vehicle,"$8,618,158.98 ",9/1/2017
ElDorado National (California) Inc,Fuel/Parts Inventory,"$1,435.05 ",9/12/2017
ElDorado National (California) Inc,Fuel/Parts Inventory,"$12,371.00 ",9/15/2017
ElDorado National (California) Inc,Vehicle,"$221,389.47 ",9/15/2017
ElDorado National (California) Inc,Fuel/Parts Inventory,"$3,672.36 ",9/19/2017
ElDorado National (California) Inc,Fuel/Parts Inventory,"$1,360.50 ",9/22/2017
ElDorado National (California) Inc,Fuel/Parts Inventory,$802.35 ,9/26/2017
ElDorado National (California) Inc,Vehicle,"$5,147,880.72 ",9/29/2017
ElDorado National (California) Inc,Fuel/Parts Inventory,"$8,806.54 ",10/3/2017
ElDorado National (California) Inc,Fuel/Parts Inventory,"$15,192.61 ",10/6/2017
ElDorado National (California) Inc,Materials and Supplies,($0.01),10/6/2017
ElDorado National (California) Inc,Fuel/Parts Inventory,"$3,336.65 ",10/10/2017
ElDorado National (California) Inc,Fuel/Parts Inventory,$256.19 ,10/13/2017
ElDorado National (California) Inc,Vehicle,"$4,721,756.48 ",10/13/2017
ElDorado National (California) Inc,Fuel/Parts Inventory,"$1,311.55 ",10/20/2017
ElDorado National (California) Inc,Services,"$14,100.00 ",10/20/2017
ElDorado National (California) Inc,Vehicle,"$6,766,445.67 ",10/20/2017
ElDorado National (California) Inc,Services,"$23,500.00 ",10/24/2017
ElDorado National (California) Inc,Vehicle,"$13,264,907.54 ",10/24/2017
ElDorado National (California) Inc,Fuel/Parts Inventory,$690.55 ,10/27/2017
ElDorado National (California) Inc,Vehicle,"$6,134,067.57 ",10/27/2017
ElDorado National (California) Inc,Fuel/Parts Inventory,"$2,828.70 ",11/3/2017
ElDorado National (California) Inc,Fuel/Parts Inventory,"$1,378.05 ",11/7/2017
ElDorado National (California) Inc,Fuel/Parts Inventory,$557.51 ,11/10/2017
ElDorado National (California) Inc,Fuel/Parts Inventory,"$2,967.06 ",11/14/2017
ElDorado National (California) Inc,Vehicle,"$2,698,146.56 ",11/14/2017
ElDorado National (California) Inc,Fuel/Parts Inventory,"$33,042.00 ",11/17/2017
ElDorado National (California) Inc,Materials and Supplies,($0.06),11/17/2017
ElDorado National (California) Inc,Fuel/Parts Inventory,$637.00 ,11/21/2017
ElDorado National (California) Inc,Fuel/Parts Inventory,"$1,921.76 ",11/28/2017
ElDorado National (California) Inc,Fuel/Parts Inventory,"$2,658.62 ",12/1/2017
ElDorado National (California) Inc,Services,"$28,200.00 ",12/1/2017
ElDorado National (California) Inc,Fuel/Parts Inventory,"$5,437.77 ",12/5/2017
ElDorado National (California) Inc,Vehicle,"$15,300.00 ",12/5/2017
ElDorado National (California) Inc,Fuel/Parts Inventory,"$2,705.83 ",12/8/2017
ElDorado National (California) Inc,Vehicle,"$311,704.81 ",12/8/2017
ElDorado National (California) Inc,Fuel/Parts Inventory,"$1,898.95 ",12/12/2017
ElDorado National (California) Inc,Fuel/Parts Inventory,"$2,099.70 ",12/15/2017
ElDorado National (California) Inc,Fuel/Parts Inventory,"$13,961.13 ",12/22/2017
ElDorado National (California) Inc,Fuel/Parts Inventory,"$9,138.67 ",12/28/2017
ElDorado National (California) Inc,Vehicle,"$667,743.00 ",12/28/2017
Elegante Cuisine Inc,Services,$622.10 ,9/7/2017
Elgin Chamber Of Commerce,Miscellaneous,$295.00 ,2/24/2017
Elgin Hispanic Network,Miscellaneous,$80.00 ,2/24/2017
Employee,Employee - Expense Reimbursement,($55.08),12/6/2016
Employee,Employee - Expense Reimbursement,($75.00),12/21/2016
Employee,Employee - Expense Reimbursement,"$7,614.66 ",1/5/2017
Employee,Employee - Expense Reimbursement,"$2,258.49 ",1/10/2017
Employee,Employee - Expense Reimbursement,"$2,556.75 ",1/13/2017
Employee,Employee - Expense Reimbursement,"$1,321.28 ",1/17/2017
Employee,Employee - Expense Reimbursement,$405.60 ,1/20/2017
Employee,Employee - Expense Reimbursement,"$2,519.78 ",1/24/2017
Employee,Employee - Expense Reimbursement,"$1,306.75 ",1/27/2017
Employee,Employee - Expense Reimbursement,$111.84 ,1/31/2017
Employee,Employee - Expense Reimbursement,"$1,509.18 ",2/3/2017
Employee,Employee - Expense Reimbursement,$435.00 ,2/7/2017
Employee,Employee - Expense Reimbursement,"$5,680.46 ",2/10/2017
Employee,Employee - Expense Reimbursement,$369.88 ,2/14/2017
Employee,Employee - Expense Reimbursement,$610.72 ,2/17/2017
Employee,Employee - Expense Reimbursement,$625.19 ,2/21/2017
Employee,Employee - Expense Reimbursement,"$1,565.41 ",2/24/2017
Employee,Employee - Expense Reimbursement,$735.49 ,2/28/2017
Employee,Employee - Expense Reimbursement,"$1,806.23 ",3/3/2017
Employee,Employee - Expense Reimbursement,"$1,735.76 ",3/7/2017
Employee,Employee - Expense Reimbursement,$989.99 ,3/10/2017
Employee,Employee - Expense Reimbursement,"$1,009.19 ",3/17/2017
Employee,Employee - Expense Reimbursement,"$1,778.88 ",3/21/2017
Employee,Employee - Expense Reimbursement,"$1,656.71 ",3/24/2017
Employee,Employee - Expense Reimbursement,$240.38 ,3/28/2017
Employee,Employee - Expense Reimbursement,"$2,209.11 ",3/31/2017
Employee,Employee - Expense Reimbursement,"$1,143.03 ",4/4/2017
Employee,Employee - Expense Reimbursement,$289.28 ,4/7/2017
Employee,Employee - Expense Reimbursement,"$3,115.36 ",4/14/2017
Employee,Employee - Expense Reimbursement,$31.00 ,4/18/2017
Employee,Employee - Expense Reimbursement,"$1,728.28 ",4/21/2017
Employee,Employee - Expense Reimbursement,$514.26 ,4/25/2017
Employee,Employee - Expense Reimbursement,"$1,457.99 ",4/28/2017
Employee,Employee - Expense Reimbursement,"$1,360.49 ",5/2/2017
Employee,Employee - Expense Reimbursement,"$1,234.49 ",5/5/2017
Employee,Employee - Expense Reimbursement,$710.10 ,5/9/2017
Employee,Employee - Expense Reimbursement,$326.99 ,5/12/2017
Employee,Employee - Expense Reimbursement,"$1,111.13 ",5/16/2017
Employee,Employee - Expense Reimbursement,"$1,602.12 ",5/19/2017
Employee,Employee - Expense Reimbursement,"$5,246.74 ",5/23/2017
Employee,Employee - Expense Reimbursement,"$6,770.95 ",5/26/2017
Employee,Employee - Expense Reimbursement,$811.91 ,6/1/2017
Employee,Employee - Expense Reimbursement,"$5,662.17 ",6/6/2017
Employee,Employee - Expense Reimbursement,"$1,312.18 ",6/9/2017
Employee,Employee - Expense Reimbursement,"$3,631.20 ",6/13/2017
Employee,Employee - Expense Reimbursement,"$1,700.51 ",6/16/2017
Employee,Employee - Expense Reimbursement,$547.32 ,6/20/2017
Employee,Employee - Expense Reimbursement,"$1,158.10 ",6/23/2017
Employee,Employee - Expense Reimbursement,$395.00 ,6/27/2017
Employee,Employee - Expense Reimbursement,"$1,724.48 ",6/30/2017
Employee,Employee - Expense Reimbursement,$408.09 ,7/7/2017
Employee,Employee - Expense Reimbursement,$87.00 ,7/11/2017
Employee,Employee - Expense Reimbursement,"$1,096.25 ",7/14/2017
Employee,Employee - Expense Reimbursement,$492.25 ,7/18/2017
Employee,Employee - Expense Reimbursement,$794.93 ,7/21/2017
Employee,Employee - Expense Reimbursement,$174.40 ,7/25/2017
Employee,Employee - Expense Reimbursement,"$5,307.36 ",7/28/2017
Employee,Employee - Expense Reimbursement,$542.69 ,8/1/2017
Employee,Employee - Expense Reimbursement,"$1,275.12 ",8/4/2017
Employee,Employee - Expense Reimbursement,"$3,844.29 ",8/11/2017
Employee,Employee - Expense Reimbursement,"$1,347.01 ",8/15/2017
Employee,Employee - Expense Reimbursement,"$1,406.10 ",8/18/2017
Employee,Employee - Expense Reimbursement,$376.39 ,8/22/2017
Employee,Employee - Expense Reimbursement,"$1,010.19 ",8/25/2017
Employee,Employee - Expense Reimbursement,$601.82 ,8/29/2017
Employee,Employee - Expense Reimbursement,"$3,839.35 ",9/1/2017
Employee,Employee - Expense Reimbursement,$153.36 ,9/7/2017
Employee,Employee - Expense Reimbursement,"$1,232.52 ",9/12/2017
Employee,Employee - Expense Reimbursement,$998.00 ,9/15/2017
Employee,Employee - Expense Reimbursement,$686.86 ,9/19/2017
Employee,Employee - Expense Reimbursement,"$1,553.14 ",9/29/2017
Employee,Employee - Expense Reimbursement,$315.24 ,10/3/2017
Employee,Employee - Expense Reimbursement,"$1,307.14 ",10/6/2017
Employee,Employee - Expense Reimbursement,$777.23 ,10/10/2017
Employee,Employee - Expense Reimbursement,$426.89 ,10/13/2017
Employee,Employee - Expense Reimbursement,"$1,654.31 ",10/17/2017
Employee,Employee - Expense Reimbursement,"$1,498.05 ",10/20/2017
Employee,Employee - Expense Reimbursement,$125.00 ,10/24/2017
Employee,Employee - Expense Reimbursement,"$1,446.33 ",10/27/2017
Employee,Employee - Expense Reimbursement,$240.58 ,10/31/2017
Employee,Employee - Expense Reimbursement,"$4,859.78 ",11/3/2017
Employee,Employee - Expense Reimbursement,$593.49 ,11/7/2017
Employee,Employee - Expense Reimbursement,"$3,722.01 ",11/10/2017
Employee,Employee - Expense Reimbursement,"$2,393.32 ",11/14/2017
Employee,Employee - Expense Reimbursement,"$5,720.43 ",11/17/2017
Employee,Employee - Expense Reimbursement,$947.99 ,11/28/2017
Employee,Employee - Expense Reimbursement,"$3,763.84 ",12/1/2017
Employee,Employee - Expense Reimbursement,"$1,222.51 ",12/5/2017
Employee,Employee - Expense Reimbursement,$778.92 ,12/8/2017
Employee,Employee - Expense Reimbursement,$510.00 ,12/12/2017
Employee,Employee - Expense Reimbursement,"$13,285.65 ",12/15/2017
Employee,Employee - Expense Reimbursement,"$1,382.21 ",12/19/2017
Employee,Employee - Expense Reimbursement,"$5,131.72 ",12/22/2017
Employee,Employee - Expense Reimbursement,"$1,911.57 ",12/28/2017
Energy Intelligence Group Inc,Miscellaneous,"$3,490.00 ",11/28/2017
Enterprise Oil Co,Materials and Supplies,"$1,952.89 ",2/28/2017
Environment Mechanical Services,Services,"$2,980.87 ",11/28/2017
ERC Delivery Service Inc,Miscellaneous,$208.00 ,7/25/2017
ERC Delivery Service Inc,Miscellaneous,$80.00 ,10/3/2017
ERC Delivery Service Inc,Miscellaneous,$80.00 ,10/10/2017
ERC Delivery Service Inc,Miscellaneous,$208.00 ,10/24/2017
ERC Delivery Service Inc,Miscellaneous,$80.00 ,12/1/2017
Eric Blohm,Services,$168.75 ,7/7/2017
Eric Edgreen,Purchased Transportation,($8.00),7/15/2016
ESRI Inc,Services,"$1,695.00 ",6/16/2017
ESRI Inc,Services,"$2,149.05 ",8/11/2017
ESRI Inc,Services,"$23,791.78 ",9/26/2017
Evanston Police Department,Services,$120.00 ,8/11/2017
Everlights,Services,$253.15 ,1/27/2017
Everlights,Services,$253.20 ,2/17/2017
Everlights,Services,$147.62 ,3/21/2017
Everlights,Services,$280.65 ,4/14/2017
Everlights,Services,$166.00 ,6/6/2017
Everlights,Services,$148.90 ,6/23/2017
Everlights,Services,$211.38 ,6/27/2017
Everlights,Services,$146.13 ,9/19/2017
Everlights,Services,$375.95 ,10/20/2017
Everlights,Services,$211.15 ,11/3/2017
Everlights,Services,$284.74 ,11/7/2017
Everlights,Services,$202.50 ,11/14/2017
Everlights,Services,$138.23 ,12/8/2017
ExamWorks Clinical Solutions LLC,Services,"$2,550.00 ",1/13/2017
ExamWorks Clinical Solutions LLC,Services,"$3,400.00 ",1/17/2017
ExamWorks Clinical Solutions LLC,Services,$850.00 ,3/7/2017
ExamWorks Clinical Solutions LLC,Services,$850.00 ,3/14/2017
ExamWorks Clinical Solutions LLC,Services,$850.00 ,4/14/2017
ExamWorks Clinical Solutions LLC,Services,$850.00 ,5/19/2017
ExamWorks Clinical Solutions LLC,Services,$850.00 ,7/7/2017
ExamWorks Clinical Solutions LLC,Services,$850.00 ,8/1/2017
ExamWorks Clinical Solutions LLC,Services,$850.00 ,9/1/2017
ExamWorks Clinical Solutions LLC,Services,$850.00 ,10/3/2017
ExamWorks Clinical Solutions LLC,Services,$850.00 ,11/3/2017
ExamWorks Clinical Solutions LLC,Services,$850.00 ,11/17/2017
ExamWorks Clinical Solutions LLC,Services,$850.00 ,12/28/2017
Experian Health Inc,Services,"$26,622.40 ",3/28/2017
Experian Health Inc,Services,"$26,499.30 ",5/5/2017
Experian Health Inc,Services,"$2,000.00 ",6/1/2017
Experian Health Inc,Services,"$25,276.15 ",8/18/2017
Experian Health Inc,Services,"$17,193.15 ",11/10/2017
Experian Health Inc,Services,"$3,418.15 ",12/15/2017
Experian National Resource,Services,$56.66 ,1/17/2017
Experian National Resource,Services,$27.96 ,2/24/2017
Experian National Resource,Services,$28.70 ,4/14/2017
Experian National Resource,Services,$27.72 ,5/5/2017
Experian National Resource,Services,$27.48 ,5/12/2017
Experian National Resource,Services,$27.96 ,6/20/2017
Experian National Resource,Services,$28.20 ,7/14/2017
Experian National Resource,Services,$36.96 ,8/11/2017
Experian National Resource,Services,$27.48 ,9/12/2017
Experian National Resource,Services,$28.20 ,10/10/2017
Experian National Resource,Services,$31.71 ,11/10/2017
Experian National Resource,Services,$27.72 ,12/15/2017
F H Paschen S N Nielsen & Associates LLC,Services,"$2,990.00 ",8/25/2017
F H Paschen S N Nielsen & Associates LLC,Casualty and Liability,"$106,000.00 ",9/1/2017
F H Paschen S N Nielsen & Associates LLC,Building/Bldg Improvement,"$264,251.70 ",11/17/2017
Factory Cleaning Equipment,Materials and Supplies,$558.00 ,3/10/2017
Fand Auto Spa Inc,Services,$248.00 ,3/3/2017
Fand Auto Spa Inc,Services,$549.00 ,5/26/2017
Fand Auto Spa Inc,Services,$77.00 ,7/7/2017
Fand Auto Spa Inc,Services,$498.00 ,9/26/2017
Fand Auto Spa Inc,Services,$42.00 ,11/28/2017
Fastenal,Materials and Supplies,"$1,076.25 ",1/10/2017
Fastenal,Materials and Supplies,$365.64 ,1/27/2017
Fastenal,Materials and Supplies,$468.83 ,4/11/2017
Fastenal,Materials and Supplies,$904.55 ,4/18/2017
Fastenal,Materials and Supplies,$287.49 ,7/7/2017
Fastenal,Materials and Supplies,$17.37 ,7/21/2017
Fastenal,Materials and Supplies,$162.95 ,8/4/2017
Fastenal,Materials and Supplies,$717.50 ,9/12/2017
Fastenal,Materials and Supplies,$112.07 ,10/3/2017
Fasteners Plus Inc,Materials and Supplies,$40.00 ,1/24/2017
Fasteners Plus International,Materials and Supplies,$160.50 ,3/10/2017
Fasteners Plus International,Materials and Supplies,$101.08 ,4/28/2017
Fasteners Plus International,Materials and Supplies,$298.22 ,7/21/2017
Fasteners Plus International,Materials and Supplies,$89.38 ,7/25/2017
Fasteners Plus International,Materials and Supplies,$32.40 ,8/11/2017
Fasteners Plus International,Materials and Supplies,"$1,046.54 ",9/7/2017
Fasteners Plus International,Materials and Supplies,$65.25 ,12/15/2017
FBG Corporation,Building/Bldg Improvement,"$322,012.60 ",1/20/2017
FBG Corporation,Equipment,"$31,263.22 ",1/20/2017
FBG Corporation,Building/Bldg Improvement,"$191,024.50 ",5/2/2017
FBG Corporation,Equipment,"$30,751.31 ",5/2/2017
FBG Corporation,Building/Bldg Improvement,"$65,402.51 ",8/30/2017
FBG Corporation,Equipment,"$6,564.00 ",8/30/2017
Federal Transit Administration,Services,"$70,762.00 ",2/17/2017
FedEx,Materials and Supplies,$438.50 ,4/25/2017
FedResults Inc,Miscellaneous,"$2,296.94 ",2/7/2017
FedResults Inc,Miscellaneous,"$2,296.94 ",4/7/2017
FedResults Inc,Miscellaneous,"$2,296.94 ",4/18/2017
FedResults Inc,Miscellaneous,"$2,296.94 ",4/21/2017
FedResults Inc,Miscellaneous,"$2,296.94 ",5/19/2017
FedResults Inc,Miscellaneous,"$2,296.94 ",6/27/2017
FedResults Inc,Miscellaneous,"$2,296.94 ",7/28/2017
FedResults Inc,Miscellaneous,"$9,187.76 ",11/7/2017
Feece Oil Co,Fuel/Parts Inventory,$708.00 ,1/5/2017
Feece Oil Co,Fuel/Parts Inventory,"$2,124.00 ",1/27/2017
Feece Oil Co,Fuel/Parts Inventory,"$7,641.96 ",2/10/2017
Feece Oil Co,Fuel/Parts Inventory,"$3,300.00 ",3/10/2017
Feece Oil Co,Fuel/Parts Inventory,$688.00 ,3/24/2017
Feece Oil Co,Fuel/Parts Inventory,"$2,064.00 ",4/11/2017
Feece Oil Co,Fuel/Parts Inventory,"$1,376.00 ",4/28/2017
Feece Oil Co,Fuel/Parts Inventory,"$3,346.28 ",7/28/2017
Feece Oil Co,Fuel/Parts Inventory,"$2,064.00 ",11/3/2017
Feece Oil Co,Fuel/Parts Inventory,"$6,573.77 ",12/28/2017
Fence Masters Inc,Building/Bldg Improvement,"$89,454.40 ",2/7/2017
Fence Masters Inc,Building/Bldg Improvement,"$9,681.60 ",5/16/2017
FIA Card Services NA Bank of America,Materials and Supplies,$757.22 ,1/13/2017
FIA Card Services NA Bank of America,Miscellaneous,"$2,023.35 ",1/13/2017
FIA Card Services NA Bank of America,Services,$499.86 ,1/13/2017
Fidelity Security Life Insurance Eye,Health Insurance,"$2,216.32 ",1/18/2017
Fidelity Security Life Insurance Eye,Health Insurance,"$2,130.24 ",2/22/2017
Fidelity Security Life Insurance Eye,Health Insurance,"$2,179.84 ",3/16/2017
Fidelity Security Life Insurance Eye,Health Insurance,"$2,211.20 ",4/14/2017
Fidelity Security Life Insurance Eye,Health Insurance,"$2,192.96 ",5/15/2017
Fidelity Security Life Insurance Eye,Health Insurance,"$2,247.36 ",6/23/2017
Fidelity Security Life Insurance Eye,Health Insurance,"$2,200.32 ",7/14/2017
Fidelity Security Life Insurance Eye,Health Insurance,"$2,187.20 ",8/14/2017
Fidelity Security Life Insurance Eye,Health Insurance,"$2,221.44 ",9/15/2017
Fidelity Security Life Insurance Eye,Health Insurance,"$2,188.64 ",10/18/2017
Fidelity Security Life Insurance Eye,Health Insurance,"$2,205.44 ",11/17/2017
Fidelity Security Life Insurance Eye,Health Insurance,"$2,229.92 ",12/15/2017
Filter Services Illinois,Fuel/Parts Inventory,$240.00 ,1/5/2017
Filter Services Illinois,Materials and Supplies,$189.12 ,2/17/2017
Filter Services Illinois,Materials and Supplies,$175.32 ,3/3/2017
Filter Services Illinois,Materials and Supplies,"$3,850.60 ",3/31/2017
Filter Services Illinois,Materials and Supplies,$276.00 ,5/16/2017
Filter Services Illinois,Fuel/Parts Inventory,$710.00 ,6/20/2017
Filter Services Illinois,Materials and Supplies,$372.00 ,8/29/2017
Filter Services Illinois,Fuel/Parts Inventory,"$1,060.00 ",9/19/2017
Filter Services Illinois,Fuel/Parts Inventory,$144.00 ,9/22/2017
Filter Services Illinois,Materials and Supplies,"$3,235.20 ",10/24/2017
Filter Services Illinois,Fuel/Parts Inventory,"$2,290.00 ",11/3/2017
Filter Services Illinois,Fuel/Parts Inventory,$443.00 ,11/17/2017
Filter Services Illinois,Fuel/Parts Inventory,$72.00 ,12/1/2017
Filter Services Illinois,Fuel/Parts Inventory,"$3,288.00 ",12/5/2017
Filter Services Illinois,Fuel/Parts Inventory,$180.00 ,12/15/2017
Filter Services Illinois,Materials and Supplies,$466.56 ,12/22/2017
Filter Services Illinois,Fuel/Parts Inventory,"$1,180.00 ",12/28/2017
Firestone Complete Auto Care,Materials and Supplies,$786.48 ,12/1/2017
Firestone Complete Auto Care,Materials and Supplies,$633.70 ,12/15/2017
Firestone Complete AutoCare,Materials and Supplies,"$1,259.80 ",4/21/2017
Firestone Complete AutoCare,Materials and Supplies,"$1,007.84 ",4/28/2017
Firestone Complete AutoCare,Materials and Supplies,"$1,007.84 ",6/1/2017
Firestone Complete AutoCare,Materials and Supplies,$606.92 ,6/23/2017
Firestone Complete AutoCare,Materials and Supplies,$867.86 ,9/7/2017
First Ayd Corporation,Materials and Supplies,$140.40 ,1/17/2017
First Ayd Corporation,Services,$424.50 ,1/17/2017
First Ayd Corporation,Materials and Supplies,$208.08 ,1/24/2017
First Ayd Corporation,Services,$424.50 ,2/21/2017
First Ayd Corporation,Services,$339.60 ,3/31/2017
First Ayd Corporation,Services,$424.50 ,5/23/2017
First Ayd Corporation,Services,$424.50 ,5/26/2017
First Ayd Corporation,Services,$424.50 ,6/30/2017
First Ayd Corporation,Services,$509.40 ,8/18/2017
First Ayd Corporation,Services,$424.50 ,9/29/2017
First Ayd Corporation,Services,$509.40 ,11/3/2017
First Fence,Services,"$1,690.00 ",10/13/2017
First Fence,Services,"$2,020.00 ",12/5/2017
First Student,Materials and Supplies,"($1,873.07)",1/17/2017
First Student,Purchased Transportation,"$381,445.15 ",1/17/2017
First Student,Materials and Supplies,"($2,164.91)",2/17/2017
First Student,Purchased Transportation,"$328,782.36 ",2/17/2017
First Student,Materials and Supplies,"($2,075.15)",3/10/2017
First Student,Purchased Transportation,"$312,493.23 ",3/10/2017
First Student,Materials and Supplies,($619.53),4/14/2017
First Student,Purchased Transportation,"$337,226.38 ",4/14/2017
First Student,Purchased Transportation,"$20,273.42 ",5/2/2017
First Student,Materials and Supplies,($123.51),5/12/2017
First Student,Purchased Transportation,"$314,928.91 ",5/12/2017
First Student,Materials and Supplies,"($3,488.93)",6/13/2017
First Student,Purchased Transportation,"$348,794.19 ",6/13/2017
First Student,Materials and Supplies,"($2,518.24)",7/11/2017
First Student,Purchased Transportation,"$371,544.60 ",7/11/2017
First Student,Materials and Supplies,"($2,187.17)",8/15/2017
First Student,Purchased Transportation,"$344,377.39 ",8/15/2017
First Student,Materials and Supplies,"($4,208.90)",9/15/2017
First Student,Purchased Transportation,"$337,526.38 ",9/15/2017
First Student,Purchased Transportation,"$50,181.89 ",9/26/2017
First Student,Materials and Supplies,"($3,202.90)",10/13/2017
First Student,Purchased Transportation,"$153,549.52 ",10/13/2017
First Student,Purchased Transportation,"$167,941.40 ",10/24/2017
First Student,Materials and Supplies,"($3,100.14)",11/10/2017
First Student,Purchased Transportation,"$353,450.85 ",11/10/2017
First Student,Materials and Supplies,"($2,224.34)",12/8/2017
First Student,Purchased Transportation,"$349,568.50 ",12/8/2017
First Transit Inc,Purchased Transportation,"$89,663.36 ",1/5/2017
First Transit Inc,Purchased Transportation,"$429,178.56 ",1/13/2017
First Transit Inc,Purchased Transportation,"$202,429.72 ",1/20/2017
First Transit Inc,Purchased Transportation,"$399,907.71 ",1/24/2017
First Transit Inc,Equipment,"$8,682.96 ",1/27/2017
First Transit Inc,Purchased Transportation,"$42,648.38 ",1/27/2017
First Transit Inc,Utilities,"($2,985.28)",1/27/2017
First Transit Inc,Purchased Transportation,"$150,380.64 ",2/3/2017
First Transit Inc,Purchased Transportation,"$1,911,662.40 ",2/7/2017
First Transit Inc,Purchased Transportation,"$891,959.03 ",2/10/2017
First Transit Inc,Purchased Transportation,"$142,979.84 ",2/14/2017
First Transit Inc,Purchased Transportation,"$147,470.43 ",2/17/2017
First Transit Inc,Purchased Transportation,"$808,309.67 ",3/3/2017
First Transit Inc,Purchased Transportation,"$316,565.17 ",3/7/2017
First Transit Inc,Equipment,"$12,600.84 ",3/10/2017
First Transit Inc,Purchased Transportation,"$42,499.38 ",3/10/2017
First Transit Inc,Utilities,"($2,610.58)",3/10/2017
First Transit Inc,Purchased Transportation,"$304,581.23 ",3/24/2017
First Transit Inc,Purchased Transportation,"$161,180.81 ",3/28/2017
First Transit Inc,Purchased Transportation,"$214,977.80 ",3/31/2017
First Transit Inc,Purchased Transportation,"$40,177.50 ",4/11/2017
First Transit Inc,Utilities,"($1,923.91)",4/11/2017
First Transit Inc,Purchased Transportation,"$1,328,263.69 ",4/21/2017
First Transit Inc,Purchased Transportation,"$958,910.38 ",4/28/2017
First Transit Inc,Purchased Transportation,"$199,209.58 ",5/2/2017
First Transit Inc,Purchased Transportation,"$88,689.26 ",5/5/2017
First Transit Inc,Purchased Transportation,"$82,568.19 ",5/9/2017
First Transit Inc,Purchased Transportation,"$192,962.72 ",5/19/2017
First Transit Inc,Purchased Transportation,"$234,675.73 ",5/23/2017
First Transit Inc,Purchased Transportation,"$898,150.65 ",5/26/2017
First Transit Inc,Purchased Transportation,"$197,915.05 ",6/1/2017
First Transit Inc,Purchased Transportation,"$72,403.17 ",6/6/2017
First Transit Inc,Equipment,"$23,200.00 ",6/9/2017
First Transit Inc,Purchased Transportation,"$473,423.66 ",6/13/2017
First Transit Inc,Purchased Transportation,"$1,427,210.52 ",6/23/2017
First Transit Inc,Equipment,"$21,801.68 ",6/27/2017
First Transit Inc,Purchased Transportation,"$101,060.66 ",6/27/2017
First Transit Inc,Purchased Transportation,"$64,995.96 ",6/30/2017
First Transit Inc,Purchased Transportation,"$189,654.38 ",7/7/2017
First Transit Inc,Purchased Transportation,"$217,784.33 ",7/11/2017
First Transit Inc,Purchased Transportation,"$182,035.94 ",7/14/2017
First Transit Inc,Equipment,"$21,801.68 ",7/21/2017
First Transit Inc,Purchased Transportation,"$887,033.93 ",7/21/2017
First Transit Inc,Materials and Supplies,($110.00),7/28/2017
First Transit Inc,Purchased Transportation,"$615,317.00 ",7/28/2017
First Transit Inc,Equipment,"$11,150.00 ",8/4/2017
First Transit Inc,Purchased Transportation,"$396,851.15 ",8/4/2017
First Transit Inc,Purchased Transportation,"$108,900.86 ",8/11/2017
First Transit Inc,Purchased Transportation,"$806,577.66 ",8/18/2017
First Transit Inc,Purchased Transportation,"$234,951.34 ",8/29/2017
First Transit Inc,Purchased Transportation,"$169,538.52 ",9/1/2017
First Transit Inc,Purchased Transportation,"$146,067.76 ",9/7/2017
First Transit Inc,Purchased Transportation,"$312,315.94 ",9/12/2017
First Transit Inc,Purchased Transportation,"$954,107.22 ",9/19/2017
First Transit Inc,Purchased Transportation,"$165,209.35 ",9/22/2017
First Transit Inc,Purchased Transportation,"$115,710.16 ",9/29/2017
First Transit Inc,Purchased Transportation,"$274,854.54 ",10/3/2017
First Transit Inc,Equipment,"$11,600.00 ",10/10/2017
First Transit Inc,Purchased Transportation,"$225,373.72 ",10/10/2017
First Transit Inc,Purchased Transportation,"$192,314.91 ",10/13/2017
First Transit Inc,Purchased Transportation,"$797,645.94 ",10/20/2017
First Transit Inc,Purchased Transportation,"$662,984.59 ",10/24/2017
First Transit Inc,Purchased Transportation,"$11,300.96 ",10/27/2017
First Transit Inc,Purchased Transportation,"$77,263.01 ",10/31/2017
First Transit Inc,Purchased Transportation,"$483,507.81 ",11/10/2017
First Transit Inc,Purchased Transportation,"$104,339.93 ",11/14/2017
First Transit Inc,Purchased Transportation,"$876,660.82 ",11/21/2017
First Transit Inc,Materials and Supplies,($10.40),11/28/2017
First Transit Inc,Purchased Transportation,"$98,614.58 ",11/28/2017
First Transit Inc,Purchased Transportation,"$285,886.33 ",12/1/2017
First Transit Inc,Purchased Transportation,"$155,727.08 ",12/5/2017
First Transit Inc,Purchased Transportation,"$289,607.39 ",12/12/2017
First Transit Inc,Purchased Transportation,"$843,903.47 ",12/15/2017
First Transit Inc,Miscellaneous,"($352,972.16)",12/19/2017
First Transit Inc,Purchased Transportation,"$705,944.32 ",12/19/2017
First Transit Inc,Purchased Transportation,"$167,191.56 ",12/28/2017
Five Star Kleen,Services,"$5,740.00 ",1/13/2017
Five Star Kleen,Services,"$8,941.00 ",2/24/2017
Five Star Kleen,Services,"$8,240.50 ",3/14/2017
Five Star Kleen,Services,"$9,445.50 ",4/11/2017
Five Star Kleen,Services,"$8,084.00 ",5/9/2017
Five Star Kleen,Services,"$7,390.00 ",6/9/2017
Five Star Kleen,Services,"$5,753.50 ",7/21/2017
Five Star Kleen,Services,"$5,482.00 ",8/18/2017
Five Star Kleen,Services,"$5,961.50 ",9/19/2017
Five Star Kleen,Services,"$5,430.50 ",10/10/2017
Five Star Kleen,Services,"$5,599.50 ",11/7/2017
Five Star Kleen,Services,"$5,853.00 ",12/15/2017
Flag Desk Inc,Materials and Supplies,$984.00 ,2/10/2017
Flash Cab Company,Purchased Transportation,"$8,237.85 ",1/5/2017
Flash Cab Company,Purchased Transportation,"$2,797.20 ",1/24/2017
Flash Cab Company,Purchased Transportation,"$8,444.15 ",2/10/2017
Flash Cab Company,Purchased Transportation,"$30,656.75 ",2/28/2017
Flash Cab Company,Purchased Transportation,"$19,247.65 ",3/21/2017
Flash Cab Company,Purchased Transportation,"$2,699.30 ",3/24/2017
Flash Cab Company,Purchased Transportation,"$15,446.25 ",4/4/2017
Flash Cab Company,Purchased Transportation,"$19,650.15 ",4/18/2017
Flash Cab Company,Purchased Transportation,"$14,635.15 ",5/9/2017
Flash Cab Company,Purchased Transportation,"$29,204.34 ",5/16/2017
Flash Cab Company,Purchased Transportation,"$4,407.54 ",6/23/2017
Flash Cab Company,Purchased Transportation,"$51,877.75 ",6/27/2017
Flash Cab Company,Purchased Transportation,"$27,278.75 ",7/21/2017
Flash Cab Company,Purchased Transportation,"$23,112.06 ",7/25/2017
Flash Cab Company,Purchased Transportation,$830.87 ,8/1/2017
Flash Cab Company,Purchased Transportation,"$45,296.15 ",8/29/2017
Flash Cab Company,Purchased Transportation,"$23,956.30 ",9/12/2017
Flash Cab Company,Purchased Transportation,"$18,989.70 ",9/29/2017
Flash Cab Company,Purchased Transportation,"$7,637.89 ",10/24/2017
Flash Cab Company,Purchased Transportation,"$48,352.05 ",10/31/2017
Flash Cab Company,Purchased Transportation,$960.69 ,11/7/2017
Flash Cab Company,Purchased Transportation,"$2,063.76 ",11/10/2017
Flash Cab Company,Purchased Transportation,"$3,460.09 ",11/28/2017
Flash Cab Company,Purchased Transportation,"$55,616.00 ",12/12/2017
Flash Cab Company,Purchased Transportation,"$26,199.92 ",12/19/2017
Fleet Analytics LLC,Services,"$46,294.00 ",3/3/2017
Fleet Analytics LLC,Services,"$3,912.00 ",4/11/2017
Fleet Analytics LLC,Services,"$1,992.00 ",5/16/2017
Fleet Analytics LLC,Services,"$1,992.00 ",6/20/2017
Fleet Analytics LLC,Services,"$1,992.00 ",7/21/2017
Fleet Analytics LLC,Services,"$1,992.00 ",9/7/2017
Fleet Analytics LLC,Services,"$1,992.00 ",9/22/2017
Fleet Analytics LLC,Services,"$1,992.00 ",10/20/2017
Fleet Analytics LLC,Services,"$1,992.00 ",11/10/2017
Fleet Analytics LLC,Services,"$1,992.00 ",12/8/2017
Fleet Response,Casualty and Liability,"$4,317.90 ",1/5/2017
Fleet Response,Casualty and Liability,"$34,710.78 ",1/17/2017
Fleet Response,Casualty and Liability,"$4,413.43 ",1/27/2017
Fleet Response,Casualty and Liability,"$11,392.38 ",2/10/2017
Fleet Response,Casualty and Liability,"$1,295.60 ",2/21/2017
Fleet Response,Casualty and Liability,"$3,812.51 ",3/10/2017
Fleet Response,Casualty and Liability,"$8,209.70 ",3/14/2017
Fleet Response,Casualty and Liability,"$11,522.89 ",4/21/2017
Fleet Response,Casualty and Liability,"$8,124.14 ",5/16/2017
Fleet Response,Casualty and Liability,"$2,779.00 ",5/19/2017
Fleet Response,Casualty and Liability,"$7,769.54 ",6/20/2017
Fleet Response,Casualty and Liability,"$9,681.85 ",7/7/2017
Fleet Response,Casualty and Liability,"$15,354.04 ",7/18/2017
Fleet Response,Casualty and Liability,"$3,026.45 ",7/25/2017
Fleet Response,Casualty and Liability,"$9,320.95 ",8/15/2017
Fleet Response,Casualty and Liability,$665.75 ,8/18/2017
Fleet Response,Casualty and Liability,"$5,701.75 ",9/19/2017
Fleet Response,Casualty and Liability,"$1,493.59 ",10/10/2017
Fleet Response,Casualty and Liability,"$9,711.56 ",10/17/2017
Fleet Response,Casualty and Liability,$783.99 ,11/10/2017
Fleet Response,Casualty and Liability,"$17,677.88 ",11/14/2017
Fleet Response,Casualty and Liability,"$2,187.72 ",11/28/2017
Fleet Response,Casualty and Liability,"$11,460.38 ",12/22/2017
Fleet Safety Conference,Services,$680.00 ,6/23/2017
FleetPride Inc,Materials and Supplies,$402.26 ,1/31/2017
FleetPride Inc,Materials and Supplies,$51.45 ,3/24/2017
FleetPride Inc,Materials and Supplies,$54.24 ,4/7/2017
FleetPride Inc,Materials and Supplies,$23.00 ,6/23/2017
Forward Space LLC,Materials and Supplies,"$6,834.39 ",1/5/2017
Forward Space LLC,Materials and Supplies,$655.74 ,3/3/2017
Forward Space LLC,Materials and Supplies,"$2,582.78 ",3/10/2017
Forward Space LLC,Materials and Supplies,"$13,562.80 ",4/21/2017
Forward Space LLC,Materials and Supplies,$476.81 ,4/28/2017
Forward Space LLC,Materials and Supplies,"$1,692.44 ",5/9/2017
Forward Space LLC,Materials and Supplies,$141.89 ,5/12/2017
Forward Space LLC,Materials and Supplies,"$2,911.75 ",5/23/2017
Forward Space LLC,Materials and Supplies,"$3,318.96 ",5/26/2017
Forward Space LLC,Materials and Supplies,"$3,872.92 ",7/25/2017
Forward Space LLC,Materials and Supplies,"$1,495.56 ",10/13/2017
Fountain Plaza Retail LLC,Land,$945.00 ,6/23/2017
Fox Metro Water Reclamation District,Utilities,$468.22 ,1/13/2017
Fox Metro Water Reclamation District,Utilities,$839.37 ,3/14/2017
Fox Metro Water Reclamation District,Utilities,$51.50 ,4/21/2017
Fox Metro Water Reclamation District,Utilities,$845.08 ,5/2/2017
Fox Metro Water Reclamation District,Utilities,$919.38 ,7/7/2017
Fox Metro Water Reclamation District,Utilities,$978.48 ,9/26/2017
Fox Metro Water Reclamation District,Utilities,$937.29 ,11/7/2017
Fox Valley Fire & Safety,Services,$849.30 ,1/27/2017
Fox Valley Fire & Safety,Services,$140.00 ,1/31/2017
Fox Valley Fire & Safety,Materials and Supplies,$136.00 ,2/10/2017
Fox Valley Fire & Safety,Services,$70.00 ,2/10/2017
Fox Valley Fire & Safety,Fuel/Parts Inventory,$423.80 ,2/14/2017
Fox Valley Fire & Safety,Services,"$8,270.00 ",2/17/2017
Fox Valley Fire & Safety,Fuel/Parts Inventory,$254.28 ,2/28/2017
Fox Valley Fire & Safety,Services,$234.00 ,2/28/2017
Fox Valley Fire & Safety,Fuel/Parts Inventory,$169.52 ,3/10/2017
Fox Valley Fire & Safety,Services,$234.00 ,3/28/2017
Fox Valley Fire & Safety,Services,$70.00 ,3/31/2017
Fox Valley Fire & Safety,Services,$786.00 ,4/4/2017
Fox Valley Fire & Safety,Services,$814.00 ,4/7/2017
Fox Valley Fire & Safety,Services,"$2,675.00 ",4/11/2017
Fox Valley Fire & Safety,Services,"$1,000.00 ",4/14/2017
Fox Valley Fire & Safety,Materials and Supplies,$68.00 ,4/18/2017
Fox Valley Fire & Safety,Materials and Supplies,$68.00 ,4/28/2017
Fox Valley Fire & Safety,Services,"$1,131.35 ",4/28/2017
Fox Valley Fire & Safety,Materials and Supplies,$68.00 ,5/2/2017
Fox Valley Fire & Safety,Fuel/Parts Inventory,$254.28 ,5/5/2017
Fox Valley Fire & Safety,Materials and Supplies,"$1,250.65 ",5/5/2017
Fox Valley Fire & Safety,Services,"$1,807.40 ",5/5/2017
Fox Valley Fire & Safety,Services,$803.00 ,5/12/2017
Fox Valley Fire & Safety,Materials and Supplies,$68.00 ,5/19/2017
Fox Valley Fire & Safety,Services,"$1,087.12 ",5/19/2017
Fox Valley Fire & Safety,Services,$70.00 ,5/23/2017
Fox Valley Fire & Safety,Fuel/Parts Inventory,$169.52 ,6/16/2017
Fox Valley Fire & Safety,Materials and Supplies,$68.00 ,6/16/2017
Fox Valley Fire & Safety,Services,$70.00 ,6/23/2017
Fox Valley Fire & Safety,Services,$234.00 ,6/27/2017
Fox Valley Fire & Safety,Fuel/Parts Inventory,$254.28 ,6/30/2017
Fox Valley Fire & Safety,Services,"$2,106.10 ",6/30/2017
Fox Valley Fire & Safety,Services,$396.00 ,7/11/2017
Fox Valley Fire & Safety,Services,$258.00 ,7/18/2017
Fox Valley Fire & Safety,Services,$70.00 ,7/21/2017
Fox Valley Fire & Safety,Services,$759.00 ,7/28/2017
Fox Valley Fire & Safety,Services,"$1,908.00 ",8/8/2017
Fox Valley Fire & Safety,Materials and Supplies,$68.00 ,8/18/2017
Fox Valley Fire & Safety,Services,$664.00 ,8/18/2017
Fox Valley Fire & Safety,Materials and Supplies,$68.00 ,9/12/2017
Fox Valley Fire & Safety,Services,$158.30 ,9/22/2017
Fox Valley Fire & Safety,Services,$320.00 ,9/26/2017
Fox Valley Fire & Safety,Materials and Supplies,$288.47 ,9/29/2017
Fox Valley Fire & Safety,Services,$866.65 ,9/29/2017
Fox Valley Fire & Safety,Services,$938.00 ,10/6/2017
Fox Valley Fire & Safety,Services,$198.00 ,10/13/2017
Fox Valley Fire & Safety,Services,$70.00 ,10/17/2017
Fox Valley Fire & Safety,Services,$932.36 ,10/24/2017
Fox Valley Fire & Safety,Materials and Supplies,$136.00 ,10/27/2017
Fox Valley Fire & Safety,Services,$734.15 ,10/27/2017
Fox Valley Fire & Safety,Services,$429.00 ,12/5/2017
Fox Valley Fire & Safety,Materials and Supplies,$68.00 ,12/28/2017
Francotyp Postalia Inc - FP Mailing Solution,Services,$274.86 ,1/17/2017
Francotyp Postalia Inc - FP Mailing Solution,Services,$274.86 ,2/10/2017
Francotyp Postalia Inc - FP Mailing Solution,Services,"$3,000.00 ",3/8/2017
Francotyp Postalia Inc - FP Mailing Solution,Services,$549.72 ,4/4/2017
Francotyp Postalia Inc - FP Mailing Solution,Services,$274.86 ,4/21/2017
Francotyp Postalia Inc - FP Mailing Solution,Services,$274.86 ,5/12/2017
Francotyp Postalia Inc - FP Mailing Solution,Services,$274.86 ,6/16/2017
Francotyp Postalia Inc - FP Mailing Solution,Services,$549.72 ,8/22/2017
Francotyp Postalia Inc - FP Mailing Solution,Services,$274.86 ,9/29/2017
Francotyp Postalia Inc - FP Mailing Solution,Services,$274.86 ,10/20/2017
Francotyp Postalia Inc - FP Mailing Solution,Services,$274.86 ,11/28/2017
Francotyp Postalia Inc - FP Mailing Solution,Services,$274.86 ,12/22/2017
Freedom 1st Transportation,Purchased Transportation,"$29,943.16 ",1/5/2017
Freedom 1st Transportation,Purchased Transportation,"$49,221.81 ",1/13/2017
Freedom 1st Transportation,Purchased Transportation,"$44,841.97 ",2/7/2017
Freedom 1st Transportation,Purchased Transportation,"$27,083.94 ",2/14/2017
Freedom 1st Transportation,Purchased Transportation,"$88,110.25 ",3/10/2017
Freedom 1st Transportation,Purchased Transportation,"$90,789.27 ",4/11/2017
Freedom 1st Transportation,Purchased Transportation,"$55,127.99 ",5/9/2017
Freedom 1st Transportation,Purchased Transportation,"$32,491.05 ",5/23/2017
Freedom 1st Transportation,Purchased Transportation,"$78,661.18 ",6/9/2017
Freedom 1st Transportation,Purchased Transportation,"$57,302.70 ",7/7/2017
Freedom 1st Transportation,Purchased Transportation,"$32,783.20 ",7/11/2017
Freedom 1st Transportation,Purchased Transportation,"$91,231.82 ",8/11/2017
Freedom 1st Transportation,Purchased Transportation,"$28,365.38 ",9/1/2017
Freedom 1st Transportation,Purchased Transportation,"$54,357.55 ",9/12/2017
Freedom 1st Transportation,Purchased Transportation,"$63,654.57 ",10/3/2017
Freedom 1st Transportation,Purchased Transportation,"$34,099.25 ",10/6/2017
Freedom 1st Transportation,Purchased Transportation,"$29,956.75 ",11/10/2017
Freedom 1st Transportation,Purchased Transportation,"$55,602.27 ",11/21/2017
Freedom 1st Transportation,Purchased Transportation,"$31,156.61 ",12/1/2017
Freedom 1st Transportation,Purchased Transportation,"$58,973.10 ",12/15/2017
G & E Sales,Materials and Supplies,$370.67 ,5/5/2017
G & E Sales,Materials and Supplies,$626.74 ,6/9/2017
Gabriel Environmental Services,Services,$760.00 ,6/23/2017
Gabriel Roeder Smith & Co,Services,"$2,434.25 ",9/26/2017
"Galls, An Aramark Company LLC",Fringe Benefits,"$11,697.04 ",1/5/2017
"Galls, An Aramark Company LLC",Fringe Benefits,"$8,874.07 ",1/10/2017
"Galls, An Aramark Company LLC",Fringe Benefits,"$2,218.87 ",1/13/2017
"Galls, An Aramark Company LLC",Fringe Benefits,"$8,424.45 ",1/17/2017
"Galls, An Aramark Company LLC",Fringe Benefits,"$2,669.63 ",1/20/2017
"Galls, An Aramark Company LLC",Fringe Benefits,"$6,240.69 ",1/24/2017
"Galls, An Aramark Company LLC",Fringe Benefits,"$4,927.49 ",1/27/2017
"Galls, An Aramark Company LLC",Fringe Benefits,"$7,637.19 ",1/31/2017
"Galls, An Aramark Company LLC",Fringe Benefits,$507.46 ,2/3/2017
"Galls, An Aramark Company LLC",Fringe Benefits,"$4,356.70 ",2/7/2017
"Galls, An Aramark Company LLC",Fringe Benefits,$13.67 ,2/10/2017
"Galls, An Aramark Company LLC",Fringe Benefits,"$3,184.94 ",2/14/2017
"Galls, An Aramark Company LLC",Fringe Benefits,"$4,836.81 ",2/17/2017
"Galls, An Aramark Company LLC",Fringe Benefits,"$11,218.90 ",2/21/2017
"Galls, An Aramark Company LLC",Fringe Benefits,"$8,342.14 ",2/24/2017
"Galls, An Aramark Company LLC",Fringe Benefits,"$2,886.79 ",2/28/2017
"Galls, An Aramark Company LLC",Fringe Benefits,"$2,787.58 ",3/3/2017
"Galls, An Aramark Company LLC",Fringe Benefits,$872.41 ,3/7/2017
"Galls, An Aramark Company LLC",Fringe Benefits,"$5,950.92 ",3/10/2017
"Galls, An Aramark Company LLC",Fringe Benefits,"$4,552.19 ",3/17/2017
"Galls, An Aramark Company LLC",Fringe Benefits,"$1,434.50 ",3/21/2017
"Galls, An Aramark Company LLC",Fringe Benefits,"$7,596.56 ",3/24/2017
"Galls, An Aramark Company LLC",Fringe Benefits,"$2,770.06 ",3/28/2017
"Galls, An Aramark Company LLC",Fringe Benefits,"$6,107.74 ",3/31/2017
"Galls, An Aramark Company LLC",Fringe Benefits,"$6,735.36 ",4/4/2017
"Galls, An Aramark Company LLC",Fringe Benefits,"$3,482.11 ",4/7/2017
"Galls, An Aramark Company LLC",Fringe Benefits,"$1,463.03 ",4/14/2017
"Galls, An Aramark Company LLC",Fringe Benefits,"$3,830.27 ",4/18/2017
"Galls, An Aramark Company LLC",Fringe Benefits,"$8,013.55 ",4/21/2017
"Galls, An Aramark Company LLC",Fringe Benefits,"$3,201.26 ",4/28/2017
"Galls, An Aramark Company LLC",Fringe Benefits,"$5,302.39 ",5/5/2017
"Galls, An Aramark Company LLC",Fringe Benefits,"$6,328.15 ",5/9/2017
"Galls, An Aramark Company LLC",Fringe Benefits,"$1,614.75 ",5/16/2017
"Galls, An Aramark Company LLC",Fringe Benefits,"$3,075.77 ",5/19/2017
"Galls, An Aramark Company LLC",Fringe Benefits,"$1,113.78 ",5/23/2017
"Galls, An Aramark Company LLC",Fringe Benefits,"$5,395.63 ",5/26/2017
"Galls, An Aramark Company LLC",Fringe Benefits,"$9,606.91 ",6/1/2017
"Galls, An Aramark Company LLC",Fringe Benefits,$692.99 ,6/6/2017
"Galls, An Aramark Company LLC",Fringe Benefits,"$2,566.09 ",6/9/2017
"Galls, An Aramark Company LLC",Purchased Transportation,$210.00 ,6/13/2017
"Galls, An Aramark Company LLC",Fringe Benefits,$695.27 ,6/20/2017
"Galls, An Aramark Company LLC",Fringe Benefits,"$3,861.10 ",6/23/2017
"Galls, An Aramark Company LLC",Fringe Benefits,"$2,997.83 ",6/27/2017
"Galls, An Aramark Company LLC",Fringe Benefits,"$12,491.59 ",6/30/2017
